Service Area,Service Division,Expense Type,Expense Code,Detailed Expense Type,Payment Date,Transaction Number,Amount Exc Vat,Supplier Name
Adult and Health Services,Head of Adults,Third Party Payments,470101,Purchase of Care,01-Nov-2017,3356042-2410401,"6,031.16",3 RED ADMIRAL COURT.
Adult and Health Services,Head of Adults,Third Party Payments,470101,Purchase of Care,01-Nov-2017,3356043-2408238,"3,438.06",A CHARLES THOMAS (CARE) LTD.
Adult and Health Services,Head of Adults,Third Party Payments,470101,Purchase of Care,01-Nov-2017,3356043-2408239,"2,399.00",A CHARLES THOMAS (CARE) LTD.
Adult and Health Services,Head of Adults,Third Party Payments,470101,Purchase of Care,01-Nov-2017,3356043-2408240,"2,139.24",A CHARLES THOMAS (CARE) LTD.
Adult and Health Services,Head of Adults,Third Party Payments,470101,Purchase of Care,01-Nov-2017,3356043-2408241,"2,139.24",A CHARLES THOMAS (CARE) LTD.
Adult and Health Services,Head of Adults,Third Party Payments,470101,Purchase of Care,01-Nov-2017,3356043-2408242,534.81,A CHARLES THOMAS (CARE) LTD.
Adult and Health Services,Head of Adults,Third Party Payments,470101,Purchase of Care,01-Nov-2017,3356043-2408243,"2,139.24",A CHARLES THOMAS (CARE) LTD.
Adult and Health Services,Head of Adults,Third Party Payments,470101,Purchase of Care,01-Nov-2017,3356043-2408244,"2,139.24",A CHARLES THOMAS (CARE) LTD.
Adult and Health Services,Head of Adults,Third Party Payments,470101,Purchase of Care,01-Nov-2017,3356043-2408245,"2,139.24",A CHARLES THOMAS (CARE) LTD.
Adult and Health Services,Head of Adults,Third Party Payments,470101,Purchase of Care,01-Nov-2017,3356043-2408246,"2,139.24",A CHARLES THOMAS (CARE) LTD.
Adult and Health Services,Head of Adults,Third Party Payments,470101,Purchase of Care,01-Nov-2017,3356043-2408247,"2,139.24",A CHARLES THOMAS (CARE) LTD.
Adult and Health Services,Head of Adults,Third Party Payments,470101,Purchase of Care,01-Nov-2017,3356043-2408248,"2,139.24",A CHARLES THOMAS (CARE) LTD.
Adult and Health Services,Head of Adults,Third Party Payments,470101,Purchase of Care,01-Nov-2017,3356043-2408249,"2,139.24",A CHARLES THOMAS (CARE) LTD.
Adult and Health Services,Head of Adults,Third Party Payments,470101,Purchase of Care,01-Nov-2017,3356043-2408250,"2,139.24",A CHARLES THOMAS (CARE) LTD.
Adult and Health Services,Head of Adults,Third Party Payments,470101,Purchase of Care,01-Nov-2017,3356043-2408251,"2,139.24",A CHARLES THOMAS (CARE) LTD.
Adult and Health Services,Head of Adults,Third Party Payments,470101,Purchase of Care,01-Nov-2017,3356043-2408252,"2,139.24",A CHARLES THOMAS (CARE) LTD.
Adult and Health Services,Head of Adults,Third Party Payments,470101,Purchase of Care,01-Nov-2017,3356043-2408253,"2,139.24",A CHARLES THOMAS (CARE) LTD.
Adult and Health Services,Head of Adults,Third Party Payments,470101,Purchase of Care,01-Nov-2017,3356043-2408254,"2,139.24",A CHARLES THOMAS (CARE) LTD.
Adult and Health Services,Head of Adults,Third Party Payments,470101,Purchase of Care,01-Nov-2017,3356043-2408255,"2,139.24",A CHARLES THOMAS (CARE) LTD.
Adult and Health Services,Head of Adults,Third Party Payments,470101,Purchase of Care,01-Nov-2017,3356043-2408256,"2,139.24",A CHARLES THOMAS (CARE) LTD.
Adult and Health Services,Head of Adults,Third Party Payments,470101,Purchase of Care,01-Nov-2017,3356043-2408258,"2,139.24",A CHARLES THOMAS (CARE) LTD.
Adult and Health Services,Head of Adults,Third Party Payments,470101,Purchase of Care,01-Nov-2017,3356043-2408259,993.21,A CHARLES THOMAS (CARE) LTD.
Adult and Health Services,Head of Adults,Third Party Payments,470101,Purchase of Care,01-Nov-2017,3356043-2408260,"2,139.24",A CHARLES THOMAS (CARE) LTD.
Adult and Health Services,Head of Adults,Third Party Payments,470101,Purchase of Care,01-Nov-2017,3356043-2408261,"2,139.24",A CHARLES THOMAS (CARE) LTD.
Adult and Health Services,Head of Adults,Third Party Payments,470101,Purchase of Care,01-Nov-2017,3356043-2408262,"2,139.24",A CHARLES THOMAS (CARE) LTD.
Adult and Health Services,Head of Adults,Third Party Payments,470101,Purchase of Care,01-Nov-2017,3356043-2408263,"2,139.24",A CHARLES THOMAS (CARE) LTD.
Adult and Health Services,Head of Adults,Third Party Payments,470101,Purchase of Care,01-Nov-2017,3356043-2408264,"2,139.24",A CHARLES THOMAS (CARE) LTD.
Adult and Health Services,Head of Adults,Third Party Payments,470101,Purchase of Care,01-Nov-2017,3356043-2408265,"2,139.24",A CHARLES THOMAS (CARE) LTD.
Adult and Health Services,Head of Adults,Third Party Payments,470101,Purchase of Care,01-Nov-2017,3356043-2408266,"2,139.24",A CHARLES THOMAS (CARE) LTD.
Adult and Health Services,Head of Adults,Third Party Payments,470101,Purchase of Care,01-Nov-2017,3356043-2408267,"2,139.24",A CHARLES THOMAS (CARE) LTD.
Adult and Health Services,Head of Adults,Third Party Payments,470101,Purchase of Care,01-Nov-2017,3356043-2411962,916.81,A CHARLES THOMAS (CARE) LTD.
Adult and Health Services,Head of Adults,Third Party Payments,470101,Purchase of Care,01-Nov-2017,3356043-2411963,"1,604.43",A CHARLES THOMAS (CARE) LTD.
Adult and Health Services,Head of Adults,Third Party Payments,474101,Purchase of Care,01-Nov-2017,3356044-2386804,"2,848.00",ABBEYMOOR CLINIC.
Adult and Health Services,Head of Adults,Third Party Payments,474101,Purchase of Care,01-Nov-2017,3356044-2386806,"2,848.00",ABBEYMOOR CLINIC.
Adult and Health Services,Head of Adults,Third Party Payments,474101,Purchase of Care,01-Nov-2017,3356044-2386807,"2,303.28",ABBEYMOOR CLINIC.
Adult and Health Services,Head of Adults,Third Party Payments,474101,Purchase of Care,01-Nov-2017,3356044-2391721,"2,848.00",ABBEYMOOR CLINIC.
Adult and Health Services,Head of Adults,Third Party Payments,474101,Purchase of Care,01-Nov-2017,3356044-2391723,"2,848.00",ABBEYMOOR CLINIC.
Adult and Health Services,Head of Adults,Third Party Payments,474101,Purchase of Care,01-Nov-2017,3356044-2391724,"2,303.28",ABBEYMOOR CLINIC.
Adult and Health Services,Head of Adults,Third Party Payments,474101,Purchase of Care,01-Nov-2017,3356044-2398242,"2,848.00",ABBEYMOOR CLINIC.
Adult and Health Services,Head of Adults,Third Party Payments,474101,Purchase of Care,01-Nov-2017,3356044-2398244,"2,848.00",ABBEYMOOR CLINIC.
Adult and Health Services,Head of Adults,Third Party Payments,474101,Purchase of Care,01-Nov-2017,3356044-2398245,"2,303.28",ABBEYMOOR CLINIC.
Adult and Health Services,Head of Adults,Third Party Payments,474101,Purchase of Care,01-Nov-2017,3356044-2401331,"2,303.28",ABBEYMOOR CLINIC.
Adult and Health Services,Head of Adults,Third Party Payments,474101,Purchase of Care,01-Nov-2017,3356044-2402147,"2,848.00",ABBEYMOOR CLINIC.
Adult and Health Services,Head of Adults,Third Party Payments,474101,Purchase of Care,01-Nov-2017,3356044-2402796,"2,848.00",ABBEYMOOR CLINIC.
Adult and Health Services,Head of Adults,Third Party Payments,474101,Purchase of Care,01-Nov-2017,3356044-2409740,"2,848.00",ABBEYMOOR CLINIC.
Adult and Health Services,Head of Adults,Third Party Payments,474101,Purchase of Care,01-Nov-2017,3356044-2409742,"2,848.00",ABBEYMOOR CLINIC.
Adult and Health Services,Head of Adults,Third Party Payments,474101,Purchase of Care,01-Nov-2017,3356044-2409743,"2,303.28",ABBEYMOOR CLINIC.
Adult and Health Services,Head of Adults,Third Party Payments,470101,Purchase of Care,01-Nov-2017,3356044-2386805,"2,000.00",ABBEYMOOR CLINIC.
Adult and Health Services,Head of Adults,Third Party Payments,470101,Purchase of Care,01-Nov-2017,3356044-2391722,"2,000.00",ABBEYMOOR CLINIC.
Adult and Health Services,Head of Adults,Third Party Payments,470101,Purchase of Care,01-Nov-2017,3356044-2398243,"2,000.00",ABBEYMOOR CLINIC.
Adult and Health Services,Head of Adults,Third Party Payments,470101,Purchase of Care,01-Nov-2017,3356044-2402497,"2,000.00",ABBEYMOOR CLINIC.
Adult and Health Services,Head of Adults,Third Party Payments,470101,Purchase of Care,01-Nov-2017,3356044-2409741,"2,000.00",ABBEYMOOR CLINIC.
Adult and Health Services,Head of Adults,Third Party Payments,470101,Purchase of Care,01-Nov-2017,3356045-2410818,"2,368.44",ABBEYVALE CARE CENTRE.
Adult and Health Services,Head of Adults,Third Party Payments,470101,Purchase of Care,01-Nov-2017,3356045-2410824,"1,250.00",ABBEYVALE CARE CENTRE.
Adult and Health Services,Head of Adults,Third Party Payments,470101,Purchase of Care,01-Nov-2017,3356045-2410827,"2,139.24",ABBEYVALE CARE CENTRE.
Adult and Health Services,Head of Adults,Third Party Payments,470101,Purchase of Care,01-Nov-2017,3356045-2410829,"2,139.24",ABBEYVALE CARE CENTRE.
Adult and Health Services,Head of Adults,Third Party Payments,470101,Purchase of Care,01-Nov-2017,3356045-2410830,"2,139.24",ABBEYVALE CARE CENTRE.
Adult and Health Services,Head of Adults,Third Party Payments,470101,Purchase of Care,01-Nov-2017,3356045-2410831,"2,139.24",ABBEYVALE CARE CENTRE.
Adult and Health Services,Head of Adults,Third Party Payments,470101,Purchase of Care,01-Nov-2017,3356045-2410833,"2,139.24",ABBEYVALE CARE CENTRE.
Adult and Health Services,Head of Adults,Third Party Payments,470101,Purchase of Care,01-Nov-2017,3356045-2410834,"2,139.24",ABBEYVALE CARE CENTRE.
Adult and Health Services,Head of Adults,Third Party Payments,470101,Purchase of Care,01-Nov-2017,3356045-2410836,"1,390.00",ABBEYVALE CARE CENTRE.
Adult and Health Services,Head of Adults,Third Party Payments,470101,Purchase of Care,01-Nov-2017,3356045-2410837,"2,139.24",ABBEYVALE CARE CENTRE.
Adult and Health Services,Head of Adults,Third Party Payments,470101,Purchase of Care,01-Nov-2017,3356045-2410840,"2,500.00",ABBEYVALE CARE CENTRE.
Adult and Health Services,Head of Adults,Third Party Payments,470101,Purchase of Care,01-Nov-2017,3356045-2410844,"2,139.24",ABBEYVALE CARE CENTRE.
Adult and Health Services,Head of Adults,Third Party Payments,470101,Purchase of Care,01-Nov-2017,3356045-2411847,993.21,ABBEYVALE CARE CENTRE.
Adult and Health Services,Head of Adults,Third Party Payments,470101,Purchase of Care,01-Nov-2017,3356045-2411848,"1,910.03",ABBEYVALE CARE CENTRE.
Adult and Health Services,Head of Adults,Third Party Payments,470101,Purchase of Care,01-Nov-2017,3356045-2411849,"2,139.24",ABBEYVALE CARE CENTRE.
Adult and Health Services,Head of Adults,Third Party Payments,470101,Purchase of Care,01-Nov-2017,3356045-2411850,669.64,ABBEYVALE CARE CENTRE.
Adult and Health Services,Head of Adults,Third Party Payments,470101,Purchase of Care,01-Nov-2017,3356045-2411851,"5,118.90",ABBEYVALE CARE CENTRE.
Adult and Health Services,Head of Adults,Third Party Payments,470101,Purchase of Care,01-Nov-2017,3356045-2411852,"2,946.43",ABBEYVALE CARE CENTRE.
Adult and Health Services,Head of Adults,Third Party Payments,470101,Purchase of Care,01-Nov-2017,3356045-2411853,535.71,ABBEYVALE CARE CENTRE.
Adult and Health Services,Head of Adults,Third Party Payments,470101,Purchase of Care,01-Nov-2017,3356045-2411854,625.00,ABBEYVALE CARE CENTRE.
Adult and Health Services,Head of Adults,Third Party Payments,471101,Purchase of Care,01-Nov-2017,3356045-2410822,"2,218.20",ABBEYVALE CARE CENTRE.
Adult and Health Services,Head of Adults,Third Party Payments,471101,Purchase of Care,01-Nov-2017,3356045-2410823,"1,109.12",ABBEYVALE CARE CENTRE.
Adult and Health Services,Head of Adults,Third Party Payments,471101,Purchase of Care,01-Nov-2017,3356045-2410825,"2,218.20",ABBEYVALE CARE CENTRE.
Adult and Health Services,Head of Adults,Third Party Payments,471101,Purchase of Care,01-Nov-2017,3356045-2410828,"2,218.20",ABBEYVALE CARE CENTRE.
Adult and Health Services,Head of Adults,Third Party Payments,471101,Purchase of Care,01-Nov-2017,3356045-2410832,"2,218.20",ABBEYVALE CARE CENTRE.
Adult and Health Services,Head of Adults,Third Party Payments,471101,Purchase of Care,01-Nov-2017,3356045-2410835,"2,218.20",ABBEYVALE CARE CENTRE.
Adult and Health Services,Head of Adults,Third Party Payments,471101,Purchase of Care,01-Nov-2017,3356045-2410838,"2,218.20",ABBEYVALE CARE CENTRE.
Adult and Health Services,Head of Adults,Third Party Payments,471101,Purchase of Care,01-Nov-2017,3356045-2410839,"1,109.12",ABBEYVALE CARE CENTRE.
Adult and Health Services,Head of Adults,Third Party Payments,471101,Purchase of Care,01-Nov-2017,3356045-2410841,"2,218.20",ABBEYVALE CARE CENTRE.
Adult and Health Services,Head of Adults,Third Party Payments,471101,Purchase of Care,01-Nov-2017,3356045-2410842,"2,218.20",ABBEYVALE CARE CENTRE.
Adult and Health Services,Head of Adults,Third Party Payments,471101,Purchase of Care,01-Nov-2017,3356045-2410843,"2,539.28",ABBEYVALE CARE CENTRE.
Adult and Health Services,Head of Adults,Third Party Payments,470101,Purchase of Care,01-Nov-2017,3356046-2408810,"1,373.86",ACORN GRANGE NURSING HOME.
Adult and Health Services,Head of Adults,Third Party Payments,470101,Purchase of Care,01-Nov-2017,3356046-2408811,650.77,ACORN GRANGE NURSING HOME.
Adult and Health Services,Head of Adults,Third Party Payments,470101,Purchase of Care,01-Nov-2017,3356046-2408815,"2,024.64",ACORN GRANGE NURSING HOME.
Adult and Health Services,Head of Adults,Third Party Payments,470101,Purchase of Care,01-Nov-2017,3356046-2408816,"2,024.64",ACORN GRANGE NURSING HOME.
Adult and Health Services,Head of Adults,Third Party Payments,470101,Purchase of Care,01-Nov-2017,3356046-2408818,"2,024.64",ACORN GRANGE NURSING HOME.
Adult and Health Services,Head of Adults,Third Party Payments,470101,Purchase of Care,01-Nov-2017,3356046-2408827,"2,024.64",ACORN GRANGE NURSING HOME.
Adult and Health Services,Head of Adults,Third Party Payments,470101,Purchase of Care,01-Nov-2017,3356046-2408828,"2,024.64",ACORN GRANGE NURSING HOME.
Adult and Health Services,Head of Adults,Third Party Payments,470101,Purchase of Care,01-Nov-2017,3356046-2408830,"2,024.64",ACORN GRANGE NURSING HOME.
Adult and Health Services,Head of Adults,Third Party Payments,470101,Purchase of Care,01-Nov-2017,3356046-2408833,"2,024.64",ACORN GRANGE NURSING HOME.
Adult and Health Services,Head of Adults,Third Party Payments,470101,Purchase of Care,01-Nov-2017,3356046-2408839,"2,024.64",ACORN GRANGE NURSING HOME.
Adult and Health Services,Head of Adults,Third Party Payments,470101,Purchase of Care,01-Nov-2017,3356046-2408840,"2,024.64",ACORN GRANGE NURSING HOME.
Adult and Health Services,Head of Adults,Third Party Payments,470101,Purchase of Care,01-Nov-2017,3356046-2408841,"2,024.64",ACORN GRANGE NURSING HOME.
Adult and Health Services,Head of Adults,Third Party Payments,470101,Purchase of Care,01-Nov-2017,3356046-2412304,"1,952.33",ACORN GRANGE NURSING HOME.
Adult and Health Services,Head of Adults,Third Party Payments,471101,Purchase of Care,01-Nov-2017,3356046-2408808,"2,104.76",ACORN GRANGE NURSING HOME.
Adult and Health Services,Head of Adults,Third Party Payments,471101,Purchase of Care,01-Nov-2017,3356046-2408809,"2,104.76",ACORN GRANGE NURSING HOME.
Adult and Health Services,Head of Adults,Third Party Payments,471101,Purchase of Care,01-Nov-2017,3356046-2408814,"2,104.76",ACORN GRANGE NURSING HOME.
Adult and Health Services,Head of Adults,Third Party Payments,471101,Purchase of Care,01-Nov-2017,3356046-2408817,"1,879.25",ACORN GRANGE NURSING HOME.
Adult and Health Services,Head of Adults,Third Party Payments,471101,Purchase of Care,01-Nov-2017,3356046-2408819,"2,104.76",ACORN GRANGE NURSING HOME.
Adult and Health Services,Head of Adults,Third Party Payments,471101,Purchase of Care,01-Nov-2017,3356046-2408820,"1,052.36",ACORN GRANGE NURSING HOME.
Adult and Health Services,Head of Adults,Third Party Payments,471101,Purchase of Care,01-Nov-2017,3356046-2408821,"2,104.76",ACORN GRANGE NURSING HOME.
Adult and Health Services,Head of Adults,Third Party Payments,471101,Purchase of Care,01-Nov-2017,3356046-2408824,"2,104.76",ACORN GRANGE NURSING HOME.
Adult and Health Services,Head of Adults,Third Party Payments,471101,Purchase of Care,01-Nov-2017,3356046-2408825,"2,104.76",ACORN GRANGE NURSING HOME.
Adult and Health Services,Head of Adults,Third Party Payments,471101,Purchase of Care,01-Nov-2017,3356046-2408826,"2,104.76",ACORN GRANGE NURSING HOME.
Adult and Health Services,Head of Adults,Third Party Payments,471101,Purchase of Care,01-Nov-2017,3356046-2408829,"2,104.76",ACORN GRANGE NURSING HOME.
Adult and Health Services,Head of Adults,Third Party Payments,471101,Purchase of Care,01-Nov-2017,3356046-2408831,"2,104.76",ACORN GRANGE NURSING HOME.
Adult and Health Services,Head of Adults,Third Party Payments,471101,Purchase of Care,01-Nov-2017,3356046-2408832,"1,052.36",ACORN GRANGE NURSING HOME.
Adult and Health Services,Head of Adults,Third Party Payments,471101,Purchase of Care,01-Nov-2017,3356046-2408834,"2,104.76",ACORN GRANGE NURSING HOME.
Adult and Health Services,Head of Adults,Third Party Payments,471101,Purchase of Care,01-Nov-2017,3356046-2408835,"2,104.76",ACORN GRANGE NURSING HOME.
Adult and Health Services,Head of Adults,Third Party Payments,471101,Purchase of Care,01-Nov-2017,3356046-2408836,"2,104.76",ACORN GRANGE NURSING HOME.
Adult and Health Services,Head of Adults,Third Party Payments,471101,Purchase of Care,01-Nov-2017,3356046-2408837,"2,104.76",ACORN GRANGE NURSING HOME.
Adult and Health Services,Head of Adults,Third Party Payments,471101,Purchase of Care,01-Nov-2017,3356046-2408838,"2,104.76",ACORN GRANGE NURSING HOME.
Adult and Health Services,Central/Other,Debtors,930024,Debtor-free nursing care,01-Nov-2017,3356047-2410925,620.20,AKARI CARE LTD T/A AYCLIFFE CARE HOME.
Adult and Health Services,Central/Other,Debtors,930024,Debtor-free nursing care,01-Nov-2017,3356047-2410936,620.20,AKARI CARE LTD T/A AYCLIFFE CARE HOME.
Adult and Health Services,Central/Other,Debtors,930024,Debtor-free nursing care,01-Nov-2017,3356047-2410944,620.20,AKARI CARE LTD T/A AYCLIFFE CARE HOME.
Adult and Health Services,Central/Other,Debtors,930024,Debtor-free nursing care,01-Nov-2017,3356047-2410948,620.20,AKARI CARE LTD T/A AYCLIFFE CARE HOME.
Adult and Health Services,Central/Other,Debtors,930024,Debtor-free nursing care,01-Nov-2017,3356047-2410954,620.20,AKARI CARE LTD T/A AYCLIFFE CARE HOME.
Adult and Health Services,Central/Other,Debtors,930024,Debtor-free nursing care,01-Nov-2017,3356047-2410960,620.20,AKARI CARE LTD T/A AYCLIFFE CARE HOME.
Adult and Health Services,Central/Other,Debtors,930024,Debtor-free nursing care,01-Nov-2017,3356047-2410962,620.20,AKARI CARE LTD T/A AYCLIFFE CARE HOME.
Adult and Health Services,Central/Other,Debtors,930024,Debtor-free nursing care,01-Nov-2017,3356047-2410965,620.20,AKARI CARE LTD T/A AYCLIFFE CARE HOME.
Adult and Health Services,Central/Other,Debtors,930024,Debtor-free nursing care,01-Nov-2017,3356047-2412301,"1,018.90",AKARI CARE LTD T/A AYCLIFFE CARE HOME.
Adult and Health Services,Head of Adults,Third Party Payments,474101,Purchase of Care,01-Nov-2017,3356047-2410921,"1,600.28",AKARI CARE LTD T/A AYCLIFFE CARE HOME.
Adult and Health Services,Head of Adults,Third Party Payments,474101,Purchase of Care,01-Nov-2017,3356047-2410924,"2,240.40",AKARI CARE LTD T/A AYCLIFFE CARE HOME.
Adult and Health Services,Head of Adults,Third Party Payments,474101,Purchase of Care,01-Nov-2017,3356047-2410926,"1,120.20",AKARI CARE LTD T/A AYCLIFFE CARE HOME.
Adult and Health Services,Head of Adults,Third Party Payments,474101,Purchase of Care,01-Nov-2017,3356047-2410931,"1,023.28",AKARI CARE LTD T/A AYCLIFFE CARE HOME.
Adult and Health Services,Head of Adults,Third Party Payments,474101,Purchase of Care,01-Nov-2017,3356047-2410935,"2,240.40",AKARI CARE LTD T/A AYCLIFFE CARE HOME.
Adult and Health Services,Head of Adults,Third Party Payments,474101,Purchase of Care,01-Nov-2017,3356047-2410937,"1,520.27",AKARI CARE LTD T/A AYCLIFFE CARE HOME.
Adult and Health Services,Head of Adults,Third Party Payments,474101,Purchase of Care,01-Nov-2017,3356047-2410939,"1,023.28",AKARI CARE LTD T/A AYCLIFFE CARE HOME.
Adult and Health Services,Head of Adults,Third Party Payments,474101,Purchase of Care,01-Nov-2017,3356047-2410947,"2,240.40",AKARI CARE LTD T/A AYCLIFFE CARE HOME.
Adult and Health Services,Head of Adults,Third Party Payments,474101,Purchase of Care,01-Nov-2017,3356047-2410949,"1,023.32",AKARI CARE LTD T/A AYCLIFFE CARE HOME.
Adult and Health Services,Head of Adults,Third Party Payments,474101,Purchase of Care,01-Nov-2017,3356047-2410953,"2,240.40",AKARI CARE LTD T/A AYCLIFFE CARE HOME.
Adult and Health Services,Head of Adults,Third Party Payments,474101,Purchase of Care,01-Nov-2017,3356047-2410961,"2,240.40",AKARI CARE LTD T/A AYCLIFFE CARE HOME.
Adult and Health Services,Head of Adults,Third Party Payments,474101,Purchase of Care,01-Nov-2017,3356047-2410964,"2,240.40",AKARI CARE LTD T/A AYCLIFFE CARE HOME.
Adult and Health Services,Head of Adults,Third Party Payments,474101,Purchase of Care,01-Nov-2017,3356047-2410969,"1,023.32",AKARI CARE LTD T/A AYCLIFFE CARE HOME.
Adult and Health Services,Head of Adults,Third Party Payments,474101,Purchase of Care,01-Nov-2017,3356047-2411676,"1,520.27",AKARI CARE LTD T/A AYCLIFFE CARE HOME.
Adult and Health Services,Head of Adults,Third Party Payments,474101,Purchase of Care,01-Nov-2017,3356047-2412300,"3,680.66",AKARI CARE LTD T/A AYCLIFFE CARE HOME.
Adult and Health Services,Head of Adults,Third Party Payments,470101,Purchase of Care,01-Nov-2017,3356047-2410923,"2,139.24",AKARI CARE LTD T/A AYCLIFFE CARE HOME.
Adult and Health Services,Head of Adults,Third Party Payments,470101,Purchase of Care,01-Nov-2017,3356047-2410928,"2,139.24",AKARI CARE LTD T/A AYCLIFFE CARE HOME.
Adult and Health Services,Head of Adults,Third Party Payments,470101,Purchase of Care,01-Nov-2017,3356047-2410941,"2,139.24",AKARI CARE LTD T/A AYCLIFFE CARE HOME.
Adult and Health Services,Head of Adults,Third Party Payments,470101,Purchase of Care,01-Nov-2017,3356047-2410942,"2,139.24",AKARI CARE LTD T/A AYCLIFFE CARE HOME.
Adult and Health Services,Head of Adults,Third Party Payments,470101,Purchase of Care,01-Nov-2017,3356047-2410943,"2,139.24",AKARI CARE LTD T/A AYCLIFFE CARE HOME.
Adult and Health Services,Head of Adults,Third Party Payments,470101,Purchase of Care,01-Nov-2017,3356047-2410951,"2,139.24",AKARI CARE LTD T/A AYCLIFFE CARE HOME.
Adult and Health Services,Head of Adults,Third Party Payments,470101,Purchase of Care,01-Nov-2017,3356047-2410966,"2,139.24",AKARI CARE LTD T/A AYCLIFFE CARE HOME.
Adult and Health Services,Head of Adults,Third Party Payments,470101,Purchase of Care,01-Nov-2017,3356047-2410968,"2,139.24",AKARI CARE LTD T/A AYCLIFFE CARE HOME.
Adult and Health Services,Head of Adults,Third Party Payments,470101,Purchase of Care,01-Nov-2017,3356047-2410971,"2,139.24",AKARI CARE LTD T/A AYCLIFFE CARE HOME.
Adult and Health Services,Head of Adults,Third Party Payments,470101,Purchase of Care,01-Nov-2017,3356047-2410972,"2,139.24",AKARI CARE LTD T/A AYCLIFFE CARE HOME.
Adult and Health Services,Head of Adults,Third Party Payments,471101,Purchase of Care,01-Nov-2017,3356047-2410933,"2,218.20",AKARI CARE LTD T/A AYCLIFFE CARE HOME.
Adult and Health Services,Head of Adults,Third Party Payments,471101,Purchase of Care,01-Nov-2017,3356047-2410934,"2,218.20",AKARI CARE LTD T/A AYCLIFFE CARE HOME.
Adult and Health Services,Head of Adults,Third Party Payments,471101,Purchase of Care,01-Nov-2017,3356047-2410945,"2,218.20",AKARI CARE LTD T/A AYCLIFFE CARE HOME.
Adult and Health Services,Head of Adults,Third Party Payments,471101,Purchase of Care,01-Nov-2017,3356047-2410946,"2,218.20",AKARI CARE LTD T/A AYCLIFFE CARE HOME.
Adult and Health Services,Head of Adults,Third Party Payments,471101,Purchase of Care,01-Nov-2017,3356047-2410952,"2,218.20",AKARI CARE LTD T/A AYCLIFFE CARE HOME.
Adult and Health Services,Head of Adults,Third Party Payments,471101,Purchase of Care,01-Nov-2017,3356047-2410955,"2,218.20",AKARI CARE LTD T/A AYCLIFFE CARE HOME.
Adult and Health Services,Head of Adults,Third Party Payments,471101,Purchase of Care,01-Nov-2017,3356047-2410956,"2,218.20",AKARI CARE LTD T/A AYCLIFFE CARE HOME.
Adult and Health Services,Head of Adults,Third Party Payments,471101,Purchase of Care,01-Nov-2017,3356047-2410957,"2,218.20",AKARI CARE LTD T/A AYCLIFFE CARE HOME.
Adult and Health Services,Head of Adults,Third Party Payments,471101,Purchase of Care,01-Nov-2017,3356047-2410958,"2,218.20",AKARI CARE LTD T/A AYCLIFFE CARE HOME.
Adult and Health Services,Head of Adults,Third Party Payments,471101,Purchase of Care,01-Nov-2017,3356047-2410959,"2,218.20",AKARI CARE LTD T/A AYCLIFFE CARE HOME.
Adult and Health Services,Head of Adults,Third Party Payments,471101,Purchase of Care,01-Nov-2017,3356047-2410963,"2,218.20",AKARI CARE LTD T/A AYCLIFFE CARE HOME.
Adult and Health Services,Head of Adults,Third Party Payments,471101,Purchase of Care,01-Nov-2017,3356047-2410967,"2,218.20",AKARI CARE LTD T/A AYCLIFFE CARE HOME.
Adult and Health Services,Head of Adults,Third Party Payments,471101,Purchase of Care,01-Nov-2017,3356047-2410973,"2,218.20",AKARI CARE LTD T/A AYCLIFFE CARE HOME.
Adult and Health Services,Head of Adults,Third Party Payments,471101,Purchase of Care,01-Nov-2017,3356047-2410974,"2,218.20",AKARI CARE LTD T/A AYCLIFFE CARE HOME.
Adult and Health Services,Head of Adults,Third Party Payments,474101,Purchase of Care,01-Nov-2017,3356048-2411459,"2,244.48",AKARI CARE LTD T/A PAVILION COURT CARE HOME.
Adult and Health Services,Head of Adults,Third Party Payments,474101,Purchase of Care,01-Nov-2017,3356049-2409799,"1,500.00",AKARI CARE LTD T/A PHILIPS COURT.
Adult and Health Services,Head of Adults,Third Party Payments,474101,Purchase of Care,01-Nov-2017,3356049-2409800,"1,140.00",AKARI CARE LTD T/A PHILIPS COURT.
Adult and Health Services,Head of Adults,Third Party Payments,474101,Purchase of Care,01-Nov-2017,3356049-2409801,"1,596.00",AKARI CARE LTD T/A PHILIPS COURT.
Adult and Health Services,Head of Adults,Third Party Payments,474101,Purchase of Care,01-Nov-2017,3356049-2409803,"2,000.00",AKARI CARE LTD T/A PHILIPS COURT.
Adult and Health Services,Head of Adults,Third Party Payments,474101,Purchase of Care,01-Nov-2017,3356049-2409804,"3,360.00",AKARI CARE LTD T/A PHILIPS COURT.
Adult and Health Services,Head of Adults,Third Party Payments,474101,Purchase of Care,01-Nov-2017,3356049-2409805,"1,140.00",AKARI CARE LTD T/A PHILIPS COURT.
Adult and Health Services,Head of Adults,Third Party Payments,470101,Purchase of Care,01-Nov-2017,3356049-2409802,"1,102.00",AKARI CARE LTD T/A PHILIPS COURT.
Adult and Health Services,Head of Adults,Third Party Payments,470101,Purchase of Care,01-Nov-2017,3356050-2409507,"2,139.24",AKARI CARE LTD T/A WESTERLEIGH NURSING HOME.
Adult and Health Services,Head of Adults,Third Party Payments,470101,Purchase of Care,01-Nov-2017,3356050-2409508,"2,139.24",AKARI CARE LTD T/A WESTERLEIGH NURSING HOME.
Adult and Health Services,Head of Adults,Third Party Payments,470101,Purchase of Care,01-Nov-2017,3356050-2409509,993.21,AKARI CARE LTD T/A WESTERLEIGH NURSING HOME.
Adult and Health Services,Head of Adults,Third Party Payments,470101,Purchase of Care,01-Nov-2017,3356050-2409510,"2,139.24",AKARI CARE LTD T/A WESTERLEIGH NURSING HOME.
Adult and Health Services,Head of Adults,Third Party Payments,470101,Purchase of Care,01-Nov-2017,3356050-2409511,"2,139.24",AKARI CARE LTD T/A WESTERLEIGH NURSING HOME.
Adult and Health Services,Head of Adults,Third Party Payments,470101,Purchase of Care,01-Nov-2017,3356050-2409512,"2,139.24",AKARI CARE LTD T/A WESTERLEIGH NURSING HOME.
Adult and Health Services,Head of Adults,Third Party Payments,470101,Purchase of Care,01-Nov-2017,3356050-2409513,"2,139.24",AKARI CARE LTD T/A WESTERLEIGH NURSING HOME.
Adult and Health Services,Head of Adults,Third Party Payments,470101,Purchase of Care,01-Nov-2017,3356050-2409514,534.81,AKARI CARE LTD T/A WESTERLEIGH NURSING HOME.
Adult and Health Services,Head of Adults,Third Party Payments,470101,Purchase of Care,01-Nov-2017,3356050-2409515,"2,139.24",AKARI CARE LTD T/A WESTERLEIGH NURSING HOME.
Adult and Health Services,Head of Adults,Third Party Payments,470101,Purchase of Care,01-Nov-2017,3356050-2409517,534.81,AKARI CARE LTD T/A WESTERLEIGH NURSING HOME.
Adult and Health Services,Head of Adults,Third Party Payments,470101,Purchase of Care,01-Nov-2017,3356050-2409518,"2,139.24",AKARI CARE LTD T/A WESTERLEIGH NURSING HOME.
Adult and Health Services,Head of Adults,Third Party Payments,470101,Purchase of Care,01-Nov-2017,3356050-2409519,"2,139.24",AKARI CARE LTD T/A WESTERLEIGH NURSING HOME.
Adult and Health Services,Head of Adults,Third Party Payments,470101,Purchase of Care,01-Nov-2017,3356050-2409520,"2,139.24",AKARI CARE LTD T/A WESTERLEIGH NURSING HOME.
Adult and Health Services,Head of Adults,Third Party Payments,470101,Purchase of Care,01-Nov-2017,3356050-2409528,"2,139.24",AKARI CARE LTD T/A WESTERLEIGH NURSING HOME.
Adult and Health Services,Head of Adults,Third Party Payments,470101,Purchase of Care,01-Nov-2017,3356050-2409530,"2,139.24",AKARI CARE LTD T/A WESTERLEIGH NURSING HOME.
Adult and Health Services,Head of Adults,Third Party Payments,470101,Purchase of Care,01-Nov-2017,3356050-2409531,"2,139.24",AKARI CARE LTD T/A WESTERLEIGH NURSING HOME.
Adult and Health Services,Head of Adults,Third Party Payments,470101,Purchase of Care,01-Nov-2017,3356050-2409533,"2,139.24",AKARI CARE LTD T/A WESTERLEIGH NURSING HOME.
Adult and Health Services,Head of Adults,Third Party Payments,470101,Purchase of Care,01-Nov-2017,3356050-2409534,"2,139.24",AKARI CARE LTD T/A WESTERLEIGH NURSING HOME.
Adult and Health Services,Head of Adults,Third Party Payments,470101,Purchase of Care,01-Nov-2017,3356050-2409535,"2,139.24",AKARI CARE LTD T/A WESTERLEIGH NURSING HOME.
Adult and Health Services,Head of Adults,Third Party Payments,470101,Purchase of Care,01-Nov-2017,3356050-2409536,"2,139.24",AKARI CARE LTD T/A WESTERLEIGH NURSING HOME.
Adult and Health Services,Head of Adults,Third Party Payments,470101,Purchase of Care,01-Nov-2017,3356050-2409537,"2,139.24",AKARI CARE LTD T/A WESTERLEIGH NURSING HOME.
Adult and Health Services,Head of Adults,Third Party Payments,470101,Purchase of Care,01-Nov-2017,3356050-2409538,"2,139.24",AKARI CARE LTD T/A WESTERLEIGH NURSING HOME.
Adult and Health Services,Head of Adults,Third Party Payments,470101,Purchase of Care,01-Nov-2017,3356050-2409539,"2,139.24",AKARI CARE LTD T/A WESTERLEIGH NURSING HOME.
Adult and Health Services,Head of Adults,Third Party Payments,470101,Purchase of Care,01-Nov-2017,3356050-2409540,"2,139.24",AKARI CARE LTD T/A WESTERLEIGH NURSING HOME.
Adult and Health Services,Head of Adults,Third Party Payments,470101,Purchase of Care,01-Nov-2017,3356050-2409541,"2,139.24",AKARI CARE LTD T/A WESTERLEIGH NURSING HOME.
Adult and Health Services,Head of Adults,Third Party Payments,470101,Purchase of Care,01-Nov-2017,3356050-2409542,951.32,AKARI CARE LTD T/A WESTERLEIGH NURSING HOME.
Adult and Health Services,Head of Adults,Third Party Payments,470101,Purchase of Care,01-Nov-2017,3356050-2409543,"2,139.24",AKARI CARE LTD T/A WESTERLEIGH NURSING HOME.
Adult and Health Services,Head of Adults,Third Party Payments,470101,Purchase of Care,01-Nov-2017,3356050-2409544,"2,139.24",AKARI CARE LTD T/A WESTERLEIGH NURSING HOME.
Adult and Health Services,Head of Adults,Third Party Payments,470101,Purchase of Care,01-Nov-2017,3356050-2409545,"2,139.24",AKARI CARE LTD T/A WESTERLEIGH NURSING HOME.
Adult and Health Services,Head of Adults,Third Party Payments,470101,Purchase of Care,01-Nov-2017,3356050-2409546,"2,139.24",AKARI CARE LTD T/A WESTERLEIGH NURSING HOME.
Adult and Health Services,Head of Adults,Third Party Payments,470101,Purchase of Care,01-Nov-2017,3356050-2409547,"2,139.24",AKARI CARE LTD T/A WESTERLEIGH NURSING HOME.
Adult and Health Services,Head of Adults,Third Party Payments,470101,Purchase of Care,01-Nov-2017,3356050-2409548,"2,139.24",AKARI CARE LTD T/A WESTERLEIGH NURSING HOME.
Adult and Health Services,Head of Adults,Third Party Payments,470101,Purchase of Care,01-Nov-2017,3356050-2409549,"2,139.24",AKARI CARE LTD T/A WESTERLEIGH NURSING HOME.
Adult and Health Services,Head of Adults,Third Party Payments,470101,Purchase of Care,01-Nov-2017,3356050-2409550,"2,139.24",AKARI CARE LTD T/A WESTERLEIGH NURSING HOME.
Adult and Health Services,Head of Adults,Third Party Payments,470101,Purchase of Care,01-Nov-2017,3356050-2411738,"2,674.05",AKARI CARE LTD T/A WESTERLEIGH NURSING HOME.
Adult and Health Services,Head of Adults,Third Party Payments,470101,Purchase of Care,01-Nov-2017,3356050-2412223,"2,139.24",AKARI CARE LTD T/A WESTERLEIGH NURSING HOME.
Adult and Health Services,Head of Adults,Third Party Payments,470101,Purchase of Care,01-Nov-2017,3356050-2412329,"1,986.44",AKARI CARE LTD T/A WESTERLEIGH NURSING HOME.
Adult and Health Services,Head of Adults,Third Party Payments,470101,Purchase of Care,01-Nov-2017,3356050-2412360,"1,680.83",AKARI CARE LTD T/A WESTERLEIGH NURSING HOME.
Adult and Health Services,Head of Adults,Third Party Payments,471101,Purchase of Care,01-Nov-2017,3356050-2409516,"2,218.20",AKARI CARE LTD T/A WESTERLEIGH NURSING HOME.
Adult and Health Services,Head of Adults,Third Party Payments,471101,Purchase of Care,01-Nov-2017,3356050-2409522,"2,218.20",AKARI CARE LTD T/A WESTERLEIGH NURSING HOME.
Adult and Health Services,Head of Adults,Third Party Payments,471101,Purchase of Care,01-Nov-2017,3356050-2409523,"2,218.20",AKARI CARE LTD T/A WESTERLEIGH NURSING HOME.
Adult and Health Services,Head of Adults,Third Party Payments,471101,Purchase of Care,01-Nov-2017,3356050-2409524,"2,218.20",AKARI CARE LTD T/A WESTERLEIGH NURSING HOME.
Adult and Health Services,Head of Adults,Third Party Payments,471101,Purchase of Care,01-Nov-2017,3356050-2409525,"2,218.20",AKARI CARE LTD T/A WESTERLEIGH NURSING HOME.
Adult and Health Services,Head of Adults,Third Party Payments,471101,Purchase of Care,01-Nov-2017,3356050-2409526,"2,218.20",AKARI CARE LTD T/A WESTERLEIGH NURSING HOME.
Adult and Health Services,Head of Adults,Third Party Payments,471101,Purchase of Care,01-Nov-2017,3356050-2409529,"2,218.20",AKARI CARE LTD T/A WESTERLEIGH NURSING HOME.
Adult and Health Services,Head of Adults,Third Party Payments,471101,Purchase of Care,01-Nov-2017,3356050-2409532,"1,013.20",AKARI CARE LTD T/A WESTERLEIGH NURSING HOME.
Adult and Health Services,Head of Adults,Third Party Payments,471101,Purchase of Care,01-Nov-2017,3356050-2412333,"5,862.38",AKARI CARE LTD T/A WESTERLEIGH NURSING HOME.
Adult and Health Services,Head of Adults,Third Party Payments,471101,Purchase of Care,01-Nov-2017,3356050-2412335,"3,327.30",AKARI CARE LTD T/A WESTERLEIGH NURSING HOME.
Adult and Health Services,Head of Adults,Third Party Payments,474101,Purchase of Care,01-Nov-2017,3356051-2409836,"2,155.44",AKARI CARE LTD T/A WORDSWORTH HOUSE NURSING HOME.
Adult and Health Services,Head of Adults,Third Party Payments,474101,Purchase of Care,01-Nov-2017,3356052-2411585,"3,152.00",ALDBOURNE NURSING HOME.
Adult and Health Services,Commissioning inc Supporting People,Debtors,930138,Debtor IC+ Residential Care Voids - CCG,01-Nov-2017,3356053-BROVOID22102017,"6,952.40",ALLIANCE CARE.
Adult and Health Services,Head of Adults,Debtors,930135,Debtor Residential Care - IC+ Rehabilitation,01-Nov-2017,3356053-2409389,764.01,ALLIANCE CARE.
Adult and Health Services,Head of Adults,Debtors,930135,Debtor Residential Care - IC+ Rehabilitation,01-Nov-2017,3356053-2411843,687.61,ALLIANCE CARE.
Adult and Health Services,Head of Adults,Debtors,930135,Debtor Residential Care - IC+ Rehabilitation,01-Nov-2017,3356053-2411855,993.21,ALLIANCE CARE.
Adult and Health Services,Head of Adults,Debtors,930135,Debtor Residential Care - IC+ Rehabilitation,01-Nov-2017,3356053-2411856,611.21,ALLIANCE CARE.
Adult and Health Services,Head of Adults,Debtors,930135,Debtor Residential Care - IC+ Rehabilitation,01-Nov-2017,3356053-2411857,"1,986.43",ALLIANCE CARE.
Adult and Health Services,Head of Adults,Debtors,930135,Debtor Residential Care - IC+ Rehabilitation,01-Nov-2017,3356053-2411863,687.61,ALLIANCE CARE.
Adult and Health Services,Central/Other,Debtors,930024,Debtor-free nursing care,01-Nov-2017,3356053-2409393,620.20,ALLIANCE CARE.
Adult and Health Services,Central/Other,Debtors,930024,Debtor-free nursing care,01-Nov-2017,3356053-2409395,620.20,ALLIANCE CARE.
Adult and Health Services,Central/Other,Debtors,930024,Debtor-free nursing care,01-Nov-2017,3356053-2409399,620.20,ALLIANCE CARE.
Adult and Health Services,Central/Other,Debtors,930024,Debtor-free nursing care,01-Nov-2017,3356053-2409406,620.20,ALLIANCE CARE.
Adult and Health Services,Central/Other,Debtors,930024,Debtor-free nursing care,01-Nov-2017,3356053-2409423,620.20,ALLIANCE CARE.
Adult and Health Services,Central/Other,Debtors,930024,Debtor-free nursing care,01-Nov-2017,3356053-2409430,620.20,ALLIANCE CARE.
Adult and Health Services,Head of Adults,Third Party Payments,474101,Purchase of Care,01-Nov-2017,3356053-2409392,"2,240.40",ALLIANCE CARE.
Adult and Health Services,Head of Adults,Third Party Payments,474101,Purchase of Care,01-Nov-2017,3356053-2409394,"2,240.40",ALLIANCE CARE.
Adult and Health Services,Head of Adults,Third Party Payments,474101,Purchase of Care,01-Nov-2017,3356053-2409398,"2,240.40",ALLIANCE CARE.
Adult and Health Services,Head of Adults,Third Party Payments,474101,Purchase of Care,01-Nov-2017,3356053-2409405,"2,240.40",ALLIANCE CARE.
Adult and Health Services,Head of Adults,Third Party Payments,474101,Purchase of Care,01-Nov-2017,3356053-2409422,"2,240.40",ALLIANCE CARE.
Adult and Health Services,Head of Adults,Third Party Payments,474101,Purchase of Care,01-Nov-2017,3356053-2409429,"2,240.40",ALLIANCE CARE.
Adult and Health Services,Head of Adults,Third Party Payments,470102,Purchase of Care,01-Nov-2017,3356053-2411860,"1,146.02",ALLIANCE CARE.
Adult and Health Services,Head of Adults,Third Party Payments,470101,Purchase of Care,01-Nov-2017,3356053-2409374,"2,139.24",ALLIANCE CARE.
Adult and Health Services,Head of Adults,Third Party Payments,470101,Purchase of Care,01-Nov-2017,3356053-2409375,"2,139.24",ALLIANCE CARE.
Adult and Health Services,Head of Adults,Third Party Payments,470101,Purchase of Care,01-Nov-2017,3356053-2409377,"2,139.24",ALLIANCE CARE.
Adult and Health Services,Head of Adults,Third Party Payments,470101,Purchase of Care,01-Nov-2017,3356053-2409379,"2,139.24",ALLIANCE CARE.
Adult and Health Services,Head of Adults,Third Party Payments,470101,Purchase of Care,01-Nov-2017,3356053-2409381,"2,399.00",ALLIANCE CARE.
Adult and Health Services,Head of Adults,Third Party Payments,470101,Purchase of Care,01-Nov-2017,3356053-2409382,"2,139.24",ALLIANCE CARE.
Adult and Health Services,Head of Adults,Third Party Payments,470101,Purchase of Care,01-Nov-2017,3356053-2409386,"2,139.24",ALLIANCE CARE.
Adult and Health Services,Head of Adults,Third Party Payments,470101,Purchase of Care,01-Nov-2017,3356053-2409397,"1,069.64",ALLIANCE CARE.
Adult and Health Services,Head of Adults,Third Party Payments,470101,Purchase of Care,01-Nov-2017,3356053-2409400,"2,139.24",ALLIANCE CARE.
Adult and Health Services,Head of Adults,Third Party Payments,470101,Purchase of Care,01-Nov-2017,3356053-2409401,"2,139.24",ALLIANCE CARE.
Adult and Health Services,Head of Adults,Third Party Payments,470101,Purchase of Care,01-Nov-2017,3356053-2409402,"2,139.24",ALLIANCE CARE.
Adult and Health Services,Head of Adults,Third Party Payments,470101,Purchase of Care,01-Nov-2017,3356053-2409409,"2,139.24",ALLIANCE CARE.
Adult and Health Services,Head of Adults,Third Party Payments,470101,Purchase of Care,01-Nov-2017,3356053-2409414,"2,399.00",ALLIANCE CARE.
Adult and Health Services,Head of Adults,Third Party Payments,470101,Purchase of Care,01-Nov-2017,3356053-2409415,"2,139.24",ALLIANCE CARE.
Adult and Health Services,Head of Adults,Third Party Payments,470101,Purchase of Care,01-Nov-2017,3356053-2409416,"2,139.24",ALLIANCE CARE.
Adult and Health Services,Head of Adults,Third Party Payments,470101,Purchase of Care,01-Nov-2017,3356053-2409417,"2,139.24",ALLIANCE CARE.
Adult and Health Services,Head of Adults,Third Party Payments,470101,Purchase of Care,01-Nov-2017,3356053-2409418,"2,139.24",ALLIANCE CARE.
Adult and Health Services,Head of Adults,Third Party Payments,470101,Purchase of Care,01-Nov-2017,3356053-2409419,"2,139.24",ALLIANCE CARE.
Adult and Health Services,Head of Adults,Third Party Payments,470101,Purchase of Care,01-Nov-2017,3356053-2409426,"2,139.24",ALLIANCE CARE.
Adult and Health Services,Head of Adults,Third Party Payments,470101,Purchase of Care,01-Nov-2017,3356053-2409431,"2,139.24",ALLIANCE CARE.
Adult and Health Services,Head of Adults,Third Party Payments,470101,Purchase of Care,01-Nov-2017,3356053-2409432,"2,139.24",ALLIANCE CARE.
Adult and Health Services,Head of Adults,Third Party Payments,470101,Purchase of Care,01-Nov-2017,3356053-2409433,"2,139.24",ALLIANCE CARE.
Adult and Health Services,Head of Adults,Third Party Payments,470101,Purchase of Care,01-Nov-2017,3356053-2409434,"2,399.00",ALLIANCE CARE.
Adult and Health Services,Head of Adults,Third Party Payments,470101,Purchase of Care,01-Nov-2017,3356053-2411862,611.21,ALLIANCE CARE.
Adult and Health Services,Head of Adults,Third Party Payments,470101,Purchase of Care,01-Nov-2017,3356053-2411864,"1,757.23",ALLIANCE CARE.
Adult and Health Services,Head of Adults,Third Party Payments,470101,Purchase of Care,01-Nov-2017,3356053-2411866,"1,069.62",ALLIANCE CARE.
Adult and Health Services,Head of Adults,Third Party Payments,471101,Purchase of Care,01-Nov-2017,3356053-2409373,"2,218.20",ALLIANCE CARE.
Adult and Health Services,Head of Adults,Third Party Payments,471101,Purchase of Care,01-Nov-2017,3356053-2409376,"1,109.08",ALLIANCE CARE.
Adult and Health Services,Head of Adults,Third Party Payments,471101,Purchase of Care,01-Nov-2017,3356053-2409390,"2,218.20",ALLIANCE CARE.
Adult and Health Services,Head of Adults,Third Party Payments,471101,Purchase of Care,01-Nov-2017,3356053-2409403,"2,218.20",ALLIANCE CARE.
Adult and Health Services,Head of Adults,Third Party Payments,471101,Purchase of Care,01-Nov-2017,3356053-2409404,"2,218.20",ALLIANCE CARE.
Adult and Health Services,Head of Adults,Third Party Payments,471101,Purchase of Care,01-Nov-2017,3356053-2409407,"2,218.20",ALLIANCE CARE.
Adult and Health Services,Head of Adults,Third Party Payments,471101,Purchase of Care,01-Nov-2017,3356053-2409408,"2,218.20",ALLIANCE CARE.
Adult and Health Services,Head of Adults,Third Party Payments,471101,Purchase of Care,01-Nov-2017,3356053-2409410,"2,218.20",ALLIANCE CARE.
Adult and Health Services,Head of Adults,Third Party Payments,471101,Purchase of Care,01-Nov-2017,3356053-2409420,"2,218.20",ALLIANCE CARE.
Adult and Health Services,Head of Adults,Third Party Payments,471101,Purchase of Care,01-Nov-2017,3356053-2409424,"2,218.20",ALLIANCE CARE.
Adult and Health Services,Head of Adults,Third Party Payments,471101,Purchase of Care,01-Nov-2017,3356053-2409425,"1,109.08",ALLIANCE CARE.
Adult and Health Services,Head of Adults,Third Party Payments,471101,Purchase of Care,01-Nov-2017,3356053-2409427,"2,218.20",ALLIANCE CARE.
Adult and Health Services,Head of Adults,Third Party Payments,471101,Purchase of Care,01-Nov-2017,3356053-2409428,"2,218.20",ALLIANCE CARE.
Adult and Health Services,Head of Adults,Third Party Payments,471101,Purchase of Care,01-Nov-2017,3356053-2411846,"1,742.87",ALLIANCE CARE.
Adult and Health Services,Head of Adults,Third Party Payments,470101,Purchase of Care,01-Nov-2017,3356054-2410521,"1,984.00",ALLINGTON HOUSE CARE HOME.
Adult and Health Services,Head of Adults,Third Party Payments,474101,Purchase of Care,01-Nov-2017,3356055-2410978,"1,056.00",ALLISON HOUSE.
Adult and Health Services,Head of Adults,Third Party Payments,471101,Purchase of Care,01-Nov-2017,3356056-2411461,"2,187.48",AMERIND GROVE NURSING HOME.
Adult and Health Services,Head of Adults,Third Party Payments,470101,Purchase of Care,01-Nov-2017,3356057-2410690,"2,084.00",ANCHOR CAREHOMES LTD T/A WYNYARD WOODS GRANGE RESIDENTIAL CARE HOME.
Adult and Health Services,Head of Adults,Third Party Payments,470101,Purchase of Care,01-Nov-2017,3356057-2410691,"2,084.00",ANCHOR CAREHOMES LTD T/A WYNYARD WOODS GRANGE RESIDENTIAL CARE HOME.
Adult and Health Services,Head of Adults,Third Party Payments,470101,Purchase of Care,01-Nov-2017,3356057-2410692,"2,084.00",ANCHOR CAREHOMES LTD T/A WYNYARD WOODS GRANGE RESIDENTIAL CARE HOME.
Adult and Health Services,Head of Adults,Third Party Payments,470101,Purchase of Care,01-Nov-2017,3356057-2410693,"1,563.00",ANCHOR CAREHOMES LTD T/A WYNYARD WOODS GRANGE RESIDENTIAL CARE HOME.
Adult and Health Services,Head of Adults,Third Party Payments,470101,Purchase of Care,01-Nov-2017,3356058-2408905,"2,016.00",ANCHOR HOUSING ASSOCIATION.
Adult and Health Services,Head of Adults,Third Party Payments,470101,Purchase of Care,01-Nov-2017,3356058-2408906,"2,016.00",ANCHOR HOUSING ASSOCIATION.
Adult and Health Services,Head of Adults,Third Party Payments,470101,Purchase of Care,01-Nov-2017,3356059-2411666,"2,204.00",ANCHOR TRUST T/A NORTHBOURNE CARE HOME.
Adult and Health Services,Commissioning inc Supporting People,Premises,145050,Cleaning and Domestic Supplies,01-Nov-2017,3356379-66081,"11,896.46",ANLABY OFFICE CLEANING SERVICES LTD.
Adult and Health Services,Head of Adults,Third Party Payments,474101,Purchase of Care,01-Nov-2017,3356060-2409492,"1,620.48",ANN CHARLTON LODGE.
Adult and Health Services,Head of Adults,Third Party Payments,470101,Purchase of Care,01-Nov-2017,3356061-2408441,"1,233.16",ASCOT CARE NORTHEAST LTD.
Adult and Health Services,Head of Adults,Third Party Payments,470101,Purchase of Care,01-Nov-2017,3356061-2408442,"1,069.62",ASCOT CARE NORTHEAST LTD.
Adult and Health Services,Head of Adults,Third Party Payments,470101,Purchase of Care,01-Nov-2017,3356061-2408443,"2,139.24",ASCOT CARE NORTHEAST LTD.
Adult and Health Services,Head of Adults,Third Party Payments,470101,Purchase of Care,01-Nov-2017,3356061-2408444,"1,535.08",ASCOT CARE NORTHEAST LTD.
Adult and Health Services,Head of Adults,Third Party Payments,470101,Purchase of Care,01-Nov-2017,3356061-2408446,"1,605.44",ASCOT CARE NORTHEAST LTD.
Adult and Health Services,Head of Adults,Third Party Payments,470101,Purchase of Care,01-Nov-2017,3356061-2408448,949.56,ASCOT CARE NORTHEAST LTD.
Adult and Health Services,Head of Adults,Third Party Payments,470101,Purchase of Care,01-Nov-2017,3356061-2408449,"2,139.24",ASCOT CARE NORTHEAST LTD.
Adult and Health Services,Head of Adults,Third Party Payments,470101,Purchase of Care,01-Nov-2017,3356061-2408450,"2,139.24",ASCOT CARE NORTHEAST LTD.
Adult and Health Services,Head of Adults,Third Party Payments,470101,Purchase of Care,01-Nov-2017,3356061-2408451,"1,145.68",ASCOT CARE NORTHEAST LTD.
Adult and Health Services,Head of Adults,Third Party Payments,470101,Purchase of Care,01-Nov-2017,3356061-2408453,"1,309.52",ASCOT CARE NORTHEAST LTD.
Adult and Health Services,Head of Adults,Third Party Payments,470101,Purchase of Care,01-Nov-2017,3356061-2408454,"2,139.24",ASCOT CARE NORTHEAST LTD.
Adult and Health Services,Head of Adults,Third Party Payments,470101,Purchase of Care,01-Nov-2017,3356061-2408455,"1,567.08",ASCOT CARE NORTHEAST LTD.
Adult and Health Services,Head of Adults,Third Party Payments,470101,Purchase of Care,01-Nov-2017,3356061-2408456,"1,601.44",ASCOT CARE NORTHEAST LTD.
Adult and Health Services,Head of Adults,Third Party Payments,470101,Purchase of Care,01-Nov-2017,3356061-2408457,"1,626.36",ASCOT CARE NORTHEAST LTD.
Adult and Health Services,Head of Adults,Third Party Payments,470101,Purchase of Care,01-Nov-2017,3356061-2408458,"1,601.44",ASCOT CARE NORTHEAST LTD.
Adult and Health Services,Head of Adults,Third Party Payments,470101,Purchase of Care,01-Nov-2017,3356061-2408459,"1,583.92",ASCOT CARE NORTHEAST LTD.
Adult and Health Services,Head of Adults,Third Party Payments,470101,Purchase of Care,01-Nov-2017,3356061-2408460,"1,554.12",ASCOT CARE NORTHEAST LTD.
Adult and Health Services,Head of Adults,Third Party Payments,470101,Purchase of Care,01-Nov-2017,3356061-2408462,"1,601.44",ASCOT CARE NORTHEAST LTD.
Adult and Health Services,Head of Adults,Third Party Payments,470101,Purchase of Care,01-Nov-2017,3356061-2408463,"1,601.44",ASCOT CARE NORTHEAST LTD.
Adult and Health Services,Head of Adults,Third Party Payments,470101,Purchase of Care,01-Nov-2017,3356061-2408464,"2,139.24",ASCOT CARE NORTHEAST LTD.
Adult and Health Services,Head of Adults,Third Party Payments,470101,Purchase of Care,01-Nov-2017,3356061-2408466,"1,317.60",ASCOT CARE NORTHEAST LTD.
Adult and Health Services,Head of Adults,Third Party Payments,470101,Purchase of Care,01-Nov-2017,3356061-2408467,"2,139.24",ASCOT CARE NORTHEAST LTD.
Adult and Health Services,Head of Adults,Third Party Payments,470101,Purchase of Care,01-Nov-2017,3356061-2411726,"3,590.86",ASCOT CARE NORTHEAST LTD.
Adult and Health Services,Head of Adults,Third Party Payments,471101,Purchase of Care,01-Nov-2017,3356061-2408445,"2,218.20",ASCOT CARE NORTHEAST LTD.
Adult and Health Services,Head of Adults,Third Party Payments,471101,Purchase of Care,01-Nov-2017,3356061-2408452,"2,218.20",ASCOT CARE NORTHEAST LTD.
Adult and Health Services,Head of Adults,Third Party Payments,471101,Purchase of Care,01-Nov-2017,3356061-2408461,"1,186.24",ASCOT CARE NORTHEAST LTD.
Adult and Health Services,Head of Adults,Third Party Payments,471101,Purchase of Care,01-Nov-2017,3356061-2408465,"1,808.92",ASCOT CARE NORTHEAST LTD.
Adult and Health Services,Head of Adults,Third Party Payments,470101,Purchase of Care,01-Nov-2017,3356062-2409118,"2,016.00",ASCOT CARE T/A THE GARDENS CARE HOME.
Adult and Health Services,Head of Adults,Third Party Payments,470101,Purchase of Care,01-Nov-2017,3356062-2409119,"2,016.00",ASCOT CARE T/A THE GARDENS CARE HOME.
Adult and Health Services,Head of Adults,Third Party Payments,470101,Purchase of Care,01-Nov-2017,3356063-2411225,"2,700.00",ASHFIELD NURSING HOME LTD.
Adult and Health Services,Head of Adults,Third Party Payments,470101,Purchase of Care,01-Nov-2017,3356064-2409115,969.00,ASHLEIGH HOUSE CARE HOME.
Adult and Health Services,Head of Adults,Third Party Payments,470101,Purchase of Care,01-Nov-2017,3356064-2409116,969.00,ASHLEIGH HOUSE CARE HOME.
Adult and Health Services,Head of Adults,Third Party Payments,470101,Purchase of Care,01-Nov-2017,3356064-2409117,"1,102.00",ASHLEIGH HOUSE CARE HOME.
Adult and Health Services,Head of Adults,Third Party Payments,470101,Purchase of Care,01-Nov-2017,3356065-2409112,"1,964.56",ASPIRE CARE GROUP.
Adult and Health Services,Head of Adults,Third Party Payments,470101,Purchase of Care,01-Nov-2017,3356065-2409113,"1,964.56",ASPIRE CARE GROUP.
Adult and Health Services,Head of Adults,Third Party Payments,470101,Purchase of Care,01-Nov-2017,3356065-2409114,"1,964.56",ASPIRE CARE GROUP.
Adult and Health Services,Head of Adults,Third Party Payments,470101,Purchase of Care,01-Nov-2017,3356066-2411264,953.88,ASPIRE CARE GROUP.
Adult and Health Services,Head of Adults,Third Party Payments,470101,Purchase of Care,01-Nov-2017,3356066-2411265,"1,964.56",ASPIRE CARE GROUP.
Adult and Health Services,Head of Adults,Third Party Payments,470101,Purchase of Care,01-Nov-2017,3356066-2411266,"1,964.56",ASPIRE CARE GROUP.
Adult and Health Services,Head of Adults,Third Party Payments,470101,Purchase of Care,01-Nov-2017,3356066-2411267,"1,561.96",ASPIRE CARE GROUP.
Adult and Health Services,Head of Adults,Third Party Payments,470101,Purchase of Care,01-Nov-2017,3356066-2411268,"1,574.84",ASPIRE CARE GROUP.
Adult and Health Services,Head of Adults,Third Party Payments,470101,Purchase of Care,01-Nov-2017,3356066-2411269,"1,426.76",ASPIRE CARE GROUP.
Adult and Health Services,Head of Adults,Third Party Payments,470101,Purchase of Care,01-Nov-2017,3356066-2411270,"1,426.68",ASPIRE CARE GROUP.
Adult and Health Services,Head of Adults,Third Party Payments,470101,Purchase of Care,01-Nov-2017,3356067-2410403,953.88,ASPIRE CARE GROUP.
Adult and Health Services,Head of Adults,Third Party Payments,470101,Purchase of Care,01-Nov-2017,3356067-2410404,"3,245.00",ASPIRE CARE GROUP.
Adult and Health Services,Head of Adults,Third Party Payments,470101,Purchase of Care,01-Nov-2017,3356067-2410405,"4,125.00",ASPIRE CARE GROUP.
Adult and Health Services,Head of Adults,Third Party Payments,470101,Purchase of Care,01-Nov-2017,3356067-2410407,"1,750.00",ASPIRE CARE GROUP.
Adult and Health Services,Head of Adults,Third Party Payments,470101,Purchase of Care,01-Nov-2017,3356067-2410408,668.64,ASPIRE CARE GROUP.
Adult and Health Services,Head of Adults,Third Party Payments,470101,Purchase of Care,01-Nov-2017,3356067-2410409,"1,964.56",ASPIRE CARE GROUP.
Adult and Health Services,Head of Adults,Third Party Payments,474101,Purchase of Care,01-Nov-2017,3356068-2411445,"2,071.76",ASTONBROOK CARE HOMES LTD T/A MOORLANDS CARE HOME.
Adult and Health Services,Head of Adults,Third Party Payments,474101,Purchase of Care,01-Nov-2017,3356069-2411221,"2,204.00",ATLAS CARE HOMES LTD T/A ASPEN COURT CARE HOME.
Adult and Health Services,Head of Adults,Third Party Payments,474101,Purchase of Care,01-Nov-2017,3356069-2411222,"1,140.00",ATLAS CARE HOMES LTD T/A ASPEN COURT CARE HOME.
Adult and Health Services,Head of Adults,Third Party Payments,470101,Purchase of Care,01-Nov-2017,3356070-2409913,"1,956.00",ATLAS CARE HOMES LTD T/A ASTER CARE NURSING HOME..
Adult and Health Services,Head of Adults,Third Party Payments,470101,Purchase of Care,01-Nov-2017,3356071-2387830,"3,900.00",ATLAS HEALTHCARE LTD.
Adult and Health Services,Head of Adults,Third Party Payments,470101,Purchase of Care,01-Nov-2017,3356071-2387831,"3,900.00",ATLAS HEALTHCARE LTD.
Adult and Health Services,Head of Adults,Third Party Payments,470101,Purchase of Care,01-Nov-2017,3356071-2387832,"11,700.00",ATLAS HEALTHCARE LTD.
Adult and Health Services,Head of Adults,Third Party Payments,470101,Purchase of Care,01-Nov-2017,3356071-2392766,"3,900.00",ATLAS HEALTHCARE LTD.
Adult and Health Services,Head of Adults,Third Party Payments,470101,Purchase of Care,01-Nov-2017,3356071-2392767,"3,900.00",ATLAS HEALTHCARE LTD.
Adult and Health Services,Head of Adults,Third Party Payments,470101,Purchase of Care,01-Nov-2017,3356071-2392768,"7,800.00",ATLAS HEALTHCARE LTD.
Adult and Health Services,Head of Adults,Third Party Payments,470101,Purchase of Care,01-Nov-2017,3356071-2399278,"3,900.00",ATLAS HEALTHCARE LTD.
Adult and Health Services,Head of Adults,Third Party Payments,470101,Purchase of Care,01-Nov-2017,3356071-2399279,"3,900.00",ATLAS HEALTHCARE LTD.
Adult and Health Services,Head of Adults,Third Party Payments,470101,Purchase of Care,01-Nov-2017,3356071-2399280,"7,800.00",ATLAS HEALTHCARE LTD.
Adult and Health Services,Head of Adults,Third Party Payments,470101,Purchase of Care,01-Nov-2017,3356071-2403241,"7,800.00",ATLAS HEALTHCARE LTD.
Adult and Health Services,Head of Adults,Third Party Payments,470101,Purchase of Care,01-Nov-2017,3356071-2404377,"3,900.00",ATLAS HEALTHCARE LTD.
Adult and Health Services,Head of Adults,Third Party Payments,470101,Purchase of Care,01-Nov-2017,3356071-2405319,"3,900.00",ATLAS HEALTHCARE LTD.
Adult and Health Services,Head of Adults,Third Party Payments,470101,Purchase of Care,01-Nov-2017,3356071-2410724,"3,900.00",ATLAS HEALTHCARE LTD.
Adult and Health Services,Head of Adults,Third Party Payments,470101,Purchase of Care,01-Nov-2017,3356071-2410725,"3,900.00",ATLAS HEALTHCARE LTD.
Adult and Health Services,Head of Adults,Third Party Payments,470101,Purchase of Care,01-Nov-2017,3356071-2410726,"7,800.00",ATLAS HEALTHCARE LTD.
Adult and Health Services,Head of Adults,Third Party Payments,470101,Purchase of Care,01-Nov-2017,3356072-2410685,"4,244.80",AUTISM CARE UK (4) LTD.
Adult and Health Services,Head of Adults,Third Party Payments,470101,Purchase of Care,01-Nov-2017,3356072-2410686,"1,742.44",AUTISM CARE UK (4) LTD.
Adult and Health Services,Head of Adults,Third Party Payments,470101,Purchase of Care,01-Nov-2017,3356072-2410687,568.96,AUTISM CARE UK (4) LTD.
Adult and Health Services,Head of Adults,Third Party Payments,470101,Purchase of Care,01-Nov-2017,3356072-2410688,"3,030.60",AUTISM CARE UK (4) LTD.
Adult and Health Services,Head of Adults,Third Party Payments,470101,Purchase of Care,01-Nov-2017,3356073-2410689,"6,478.68",AUTISM NORTH.
Adult and Health Services,Head of Adults,Third Party Payments,470101,Purchase of Care,01-Nov-2017,3356074-2411229,"1,964.56",AUTISM NORTH.
Adult and Health Services,Head of Adults,Third Party Payments,470101,Purchase of Care,01-Nov-2017,3356074-2411230,"4,560.00",AUTISM NORTH.
Adult and Health Services,Head of Adults,Third Party Payments,470101,Purchase of Care,01-Nov-2017,3356074-2411231,"2,610.72",AUTISM NORTH.
Adult and Health Services,Head of Adults,Third Party Payments,470101,Purchase of Care,01-Nov-2017,3356074-2411232,"9,318.00",AUTISM NORTH.
Adult and Health Services,Central/Other,Debtors,930024,Debtor-free nursing care,01-Nov-2017,3356078-2408973,620.20,BARCHESTER HEALTHCARE HOMES LTD.
Adult and Health Services,Central/Other,Debtors,930024,Debtor-free nursing care,01-Nov-2017,3356078-2408975,620.20,BARCHESTER HEALTHCARE HOMES LTD.
Adult and Health Services,Central/Other,Debtors,930024,Debtor-free nursing care,01-Nov-2017,3356078-2408978,620.20,BARCHESTER HEALTHCARE HOMES LTD.
Adult and Health Services,Central/Other,Debtors,930024,Debtor-free nursing care,01-Nov-2017,3356078-2408980,620.20,BARCHESTER HEALTHCARE HOMES LTD.
Adult and Health Services,Central/Other,Debtors,930024,Debtor-free nursing care,01-Nov-2017,3356078-2408982,620.20,BARCHESTER HEALTHCARE HOMES LTD.
Adult and Health Services,Central/Other,Debtors,930024,Debtor-free nursing care,01-Nov-2017,3356078-2408985,620.20,BARCHESTER HEALTHCARE HOMES LTD.
Adult and Health Services,Central/Other,Debtors,930024,Debtor-free nursing care,01-Nov-2017,3356078-2408987,620.20,BARCHESTER HEALTHCARE HOMES LTD.
Adult and Health Services,Central/Other,Debtors,930024,Debtor-free nursing care,01-Nov-2017,3356078-2408988,620.20,BARCHESTER HEALTHCARE HOMES LTD.
Adult and Health Services,Central/Other,Debtors,930024,Debtor-free nursing care,01-Nov-2017,3356078-2408990,620.20,BARCHESTER HEALTHCARE HOMES LTD.
Adult and Health Services,Central/Other,Debtors,930024,Debtor-free nursing care,01-Nov-2017,3356078-2408993,620.20,BARCHESTER HEALTHCARE HOMES LTD.
Adult and Health Services,Central/Other,Debtors,930024,Debtor-free nursing care,01-Nov-2017,3356078-2408996,620.20,BARCHESTER HEALTHCARE HOMES LTD.
Adult and Health Services,Central/Other,Debtors,930024,Debtor-free nursing care,01-Nov-2017,3356078-2408999,620.20,BARCHESTER HEALTHCARE HOMES LTD.
Adult and Health Services,Central/Other,Debtors,930024,Debtor-free nursing care,01-Nov-2017,3356078-2409004,620.20,BARCHESTER HEALTHCARE HOMES LTD.
Adult and Health Services,Central/Other,Debtors,930024,Debtor-free nursing care,01-Nov-2017,3356078-2409006,620.20,BARCHESTER HEALTHCARE HOMES LTD.
Adult and Health Services,Central/Other,Debtors,930024,Debtor-free nursing care,01-Nov-2017,3356078-2409011,620.20,BARCHESTER HEALTHCARE HOMES LTD.
Adult and Health Services,Central/Other,Debtors,930024,Debtor-free nursing care,01-Nov-2017,3356078-2409014,620.20,BARCHESTER HEALTHCARE HOMES LTD.
Adult and Health Services,Central/Other,Debtors,930024,Debtor-free nursing care,01-Nov-2017,3356078-2409017,620.20,BARCHESTER HEALTHCARE HOMES LTD.
Adult and Health Services,Central/Other,Debtors,930024,Debtor-free nursing care,01-Nov-2017,3356078-2409020,620.20,BARCHESTER HEALTHCARE HOMES LTD.
Adult and Health Services,Central/Other,Debtors,930024,Debtor-free nursing care,01-Nov-2017,3356078-2409023,620.20,BARCHESTER HEALTHCARE HOMES LTD.
Adult and Health Services,Central/Other,Debtors,930024,Debtor-free nursing care,01-Nov-2017,3356078-2409026,620.20,BARCHESTER HEALTHCARE HOMES LTD.
Adult and Health Services,Central/Other,Debtors,930024,Debtor-free nursing care,01-Nov-2017,3356078-2409028,620.20,BARCHESTER HEALTHCARE HOMES LTD.
Adult and Health Services,Central/Other,Debtors,930024,Debtor-free nursing care,01-Nov-2017,3356078-2409030,620.20,BARCHESTER HEALTHCARE HOMES LTD.
Adult and Health Services,Central/Other,Debtors,930024,Debtor-free nursing care,01-Nov-2017,3356078-2409033,620.20,BARCHESTER HEALTHCARE HOMES LTD.
Adult and Health Services,Head of Adults,Third Party Payments,474999,Purchase of Care,01-Nov-2017,3356078-2408977,675.62,BARCHESTER HEALTHCARE HOMES LTD.
Adult and Health Services,Head of Adults,Third Party Payments,474101,Purchase of Care,01-Nov-2017,3356076-2411458,"2,220.00",BARCHESTER HEALTHCARE HOMES LTD.
Adult and Health Services,Head of Adults,Third Party Payments,474101,Purchase of Care,01-Nov-2017,3356078-2408974,"2,125.76",BARCHESTER HEALTHCARE HOMES LTD.
Adult and Health Services,Head of Adults,Third Party Payments,474101,Purchase of Care,01-Nov-2017,3356078-2408976,"2,315.56",BARCHESTER HEALTHCARE HOMES LTD.
Adult and Health Services,Head of Adults,Third Party Payments,474101,Purchase of Care,01-Nov-2017,3356078-2408979,"2,125.76",BARCHESTER HEALTHCARE HOMES LTD.
Adult and Health Services,Head of Adults,Third Party Payments,474101,Purchase of Care,01-Nov-2017,3356078-2408981,"2,125.76",BARCHESTER HEALTHCARE HOMES LTD.
Adult and Health Services,Head of Adults,Third Party Payments,474101,Purchase of Care,01-Nov-2017,3356078-2408983,"1,518.40",BARCHESTER HEALTHCARE HOMES LTD.
Adult and Health Services,Head of Adults,Third Party Payments,474101,Purchase of Care,01-Nov-2017,3356078-2408986,"2,125.76",BARCHESTER HEALTHCARE HOMES LTD.
Adult and Health Services,Head of Adults,Third Party Payments,474101,Purchase of Care,01-Nov-2017,3356078-2408989,"2,125.76",BARCHESTER HEALTHCARE HOMES LTD.
Adult and Health Services,Head of Adults,Third Party Payments,474101,Purchase of Care,01-Nov-2017,3356078-2408992,"2,125.76",BARCHESTER HEALTHCARE HOMES LTD.
Adult and Health Services,Head of Adults,Third Party Payments,474101,Purchase of Care,01-Nov-2017,3356078-2408995,"2,125.76",BARCHESTER HEALTHCARE HOMES LTD.
Adult and Health Services,Head of Adults,Third Party Payments,474101,Purchase of Care,01-Nov-2017,3356078-2408998,"2,125.76",BARCHESTER HEALTHCARE HOMES LTD.
Adult and Health Services,Head of Adults,Third Party Payments,474101,Purchase of Care,01-Nov-2017,3356078-2409001,"1,062.88",BARCHESTER HEALTHCARE HOMES LTD.
Adult and Health Services,Head of Adults,Third Party Payments,474101,Purchase of Care,01-Nov-2017,3356078-2409002,"1,093.12",BARCHESTER HEALTHCARE HOMES LTD.
Adult and Health Services,Head of Adults,Third Party Payments,474101,Purchase of Care,01-Nov-2017,3356078-2409005,"2,125.76",BARCHESTER HEALTHCARE HOMES LTD.
Adult and Health Services,Head of Adults,Third Party Payments,474101,Purchase of Care,01-Nov-2017,3356078-2409008,"1,062.88",BARCHESTER HEALTHCARE HOMES LTD.
Adult and Health Services,Head of Adults,Third Party Payments,474101,Purchase of Care,01-Nov-2017,3356078-2409010,"2,125.76",BARCHESTER HEALTHCARE HOMES LTD.
Adult and Health Services,Head of Adults,Third Party Payments,474101,Purchase of Care,01-Nov-2017,3356078-2409013,"2,318.44",BARCHESTER HEALTHCARE HOMES LTD.
Adult and Health Services,Head of Adults,Third Party Payments,474101,Purchase of Care,01-Nov-2017,3356078-2409016,"2,125.76",BARCHESTER HEALTHCARE HOMES LTD.
Adult and Health Services,Head of Adults,Third Party Payments,474101,Purchase of Care,01-Nov-2017,3356078-2409019,"2,125.76",BARCHESTER HEALTHCARE HOMES LTD.
Adult and Health Services,Head of Adults,Third Party Payments,474101,Purchase of Care,01-Nov-2017,3356078-2409022,"2,125.76",BARCHESTER HEALTHCARE HOMES LTD.
Adult and Health Services,Head of Adults,Third Party Payments,474101,Purchase of Care,01-Nov-2017,3356078-2409025,"2,125.76",BARCHESTER HEALTHCARE HOMES LTD.
Adult and Health Services,Head of Adults,Third Party Payments,474101,Purchase of Care,01-Nov-2017,3356078-2409029,"2,125.76",BARCHESTER HEALTHCARE HOMES LTD.
Adult and Health Services,Head of Adults,Third Party Payments,474101,Purchase of Care,01-Nov-2017,3356078-2409032,"2,318.44",BARCHESTER HEALTHCARE HOMES LTD.
Adult and Health Services,Head of Adults,Third Party Payments,470101,Purchase of Care,01-Nov-2017,3356079-2409906,"2,204.00",BARCHESTER HEALTHCARE HOMES LTD.
Adult and Health Services,Head of Adults,Third Party Payments,470101,Purchase of Care,01-Nov-2017,3356079-2409907,"2,204.00",BARCHESTER HEALTHCARE HOMES LTD.
Adult and Health Services,Head of Adults,Third Party Payments,470101,Purchase of Care,01-Nov-2017,3356079-2409909,"2,204.00",BARCHESTER HEALTHCARE HOMES LTD.
Adult and Health Services,Head of Adults,Third Party Payments,470101,Purchase of Care,01-Nov-2017,3356079-2409910,"2,204.00",BARCHESTER HEALTHCARE HOMES LTD.
Adult and Health Services,Head of Adults,Third Party Payments,471101,Purchase of Care,01-Nov-2017,3356075-2411401,"1,967.56",BARCHESTER HEALTHCARE HOMES LTD.
Adult and Health Services,Head of Adults,Third Party Payments,471101,Purchase of Care,01-Nov-2017,3356077-2411451,"1,237.84",BARCHESTER HEALTHCARE HOMES LTD.
Adult and Health Services,Head of Adults,Third Party Payments,471101,Purchase of Care,01-Nov-2017,3356079-2409908,"2,280.00",BARCHESTER HEALTHCARE HOMES LTD.
Adult and Health Services,Head of Adults,Third Party Payments,471101,Purchase of Care,01-Nov-2017,3356079-2409911,"2,280.00",BARCHESTER HEALTHCARE HOMES LTD.
Adult and Health Services,Head of Adults,Third Party Payments,474101,Purchase of Care,01-Nov-2017,3356080-2388748,"2,824.80",BARCHESTER HEALTHCARE T/A WINGFIELD CARE HOME.
Adult and Health Services,Head of Adults,Third Party Payments,474101,Purchase of Care,01-Nov-2017,3356080-2393698,"2,824.80",BARCHESTER HEALTHCARE T/A WINGFIELD CARE HOME.
Adult and Health Services,Head of Adults,Third Party Payments,474101,Purchase of Care,01-Nov-2017,3356080-2400204,"2,824.80",BARCHESTER HEALTHCARE T/A WINGFIELD CARE HOME.
Adult and Health Services,Head of Adults,Third Party Payments,474101,Purchase of Care,01-Nov-2017,3356080-2411651,"2,824.80",BARCHESTER HEALTHCARE T/A WINGFIELD CARE HOME.
Adult and Health Services,Head of Adults,Third Party Payments,474101,Purchase of Care,01-Nov-2017,3356081-2409814,"1,819.52",BARNES COURT NURSING HOME.
Adult and Health Services,Head of Adults,Third Party Payments,470101,Purchase of Care,01-Nov-2017,3356082-2409164,"2,139.24",BEACONSFIELD COURT.
Adult and Health Services,Head of Adults,Third Party Payments,470101,Purchase of Care,01-Nov-2017,3356082-2409165,"1,069.62",BEACONSFIELD COURT.
Adult and Health Services,Head of Adults,Third Party Payments,470101,Purchase of Care,01-Nov-2017,3356082-2409166,"2,299.24",BEACONSFIELD COURT.
Adult and Health Services,Head of Adults,Third Party Payments,470101,Purchase of Care,01-Nov-2017,3356082-2409167,"2,139.24",BEACONSFIELD COURT.
Adult and Health Services,Head of Adults,Third Party Payments,470101,Purchase of Care,01-Nov-2017,3356082-2409168,"2,139.24",BEACONSFIELD COURT.
Adult and Health Services,Head of Adults,Third Party Payments,470101,Purchase of Care,01-Nov-2017,3356082-2409169,"2,139.24",BEACONSFIELD COURT.
Adult and Health Services,Head of Adults,Third Party Payments,470101,Purchase of Care,01-Nov-2017,3356082-2409170,"2,299.24",BEACONSFIELD COURT.
Adult and Health Services,Head of Adults,Third Party Payments,470101,Purchase of Care,01-Nov-2017,3356082-2409171,"2,139.24",BEACONSFIELD COURT.
Adult and Health Services,Head of Adults,Third Party Payments,470101,Purchase of Care,01-Nov-2017,3356082-2409172,"2,139.24",BEACONSFIELD COURT.
Adult and Health Services,Head of Adults,Third Party Payments,470101,Purchase of Care,01-Nov-2017,3356082-2409173,"2,139.24",BEACONSFIELD COURT.
Adult and Health Services,Head of Adults,Third Party Payments,470101,Purchase of Care,01-Nov-2017,3356082-2409174,"2,139.24",BEACONSFIELD COURT.
Adult and Health Services,Head of Adults,Third Party Payments,470101,Purchase of Care,01-Nov-2017,3356082-2409175,"2,139.24",BEACONSFIELD COURT.
Adult and Health Services,Head of Adults,Third Party Payments,470101,Purchase of Care,01-Nov-2017,3356082-2409176,"2,139.24",BEACONSFIELD COURT.
Adult and Health Services,Head of Adults,Third Party Payments,470101,Purchase of Care,01-Nov-2017,3356082-2409177,"2,139.24",BEACONSFIELD COURT.
Adult and Health Services,Head of Adults,Third Party Payments,470101,Purchase of Care,01-Nov-2017,3356082-2409178,"2,139.24",BEACONSFIELD COURT.
Adult and Health Services,Head of Adults,Third Party Payments,470101,Purchase of Care,01-Nov-2017,3356082-2409179,"2,139.24",BEACONSFIELD COURT.
Adult and Health Services,Head of Adults,Third Party Payments,470101,Purchase of Care,01-Nov-2017,3356082-2409180,"2,139.24",BEACONSFIELD COURT.
Adult and Health Services,Head of Adults,Third Party Payments,470101,Purchase of Care,01-Nov-2017,3356082-2409181,"2,139.24",BEACONSFIELD COURT.
Adult and Health Services,Head of Adults,Third Party Payments,470101,Purchase of Care,01-Nov-2017,3356083-2410764,"1,354.84",BEAMISH RESIDENTIAL HOME.
Adult and Health Services,Head of Adults,Third Party Payments,470101,Purchase of Care,01-Nov-2017,3356083-2410766,"2,024.64",BEAMISH RESIDENTIAL HOME.
Adult and Health Services,Head of Adults,Third Party Payments,470101,Purchase of Care,01-Nov-2017,3356083-2410767,"2,024.64",BEAMISH RESIDENTIAL HOME.
Adult and Health Services,Head of Adults,Third Party Payments,470101,Purchase of Care,01-Nov-2017,3356083-2410770,"1,468.28",BEAMISH RESIDENTIAL HOME.
Adult and Health Services,Head of Adults,Third Party Payments,470101,Purchase of Care,01-Nov-2017,3356083-2410771,"1,012.32",BEAMISH RESIDENTIAL HOME.
Adult and Health Services,Head of Adults,Third Party Payments,470101,Purchase of Care,01-Nov-2017,3356083-2410772,"2,024.64",BEAMISH RESIDENTIAL HOME.
Adult and Health Services,Head of Adults,Third Party Payments,470101,Purchase of Care,01-Nov-2017,3356083-2410773,"2,024.64",BEAMISH RESIDENTIAL HOME.
Adult and Health Services,Head of Adults,Third Party Payments,470101,Purchase of Care,01-Nov-2017,3356083-2410774,"1,012.32",BEAMISH RESIDENTIAL HOME.
Adult and Health Services,Head of Adults,Third Party Payments,470101,Purchase of Care,01-Nov-2017,3356083-2410775,"2,024.64",BEAMISH RESIDENTIAL HOME.
Adult and Health Services,Head of Adults,Third Party Payments,470101,Purchase of Care,01-Nov-2017,3356083-2410776,"1,005.32",BEAMISH RESIDENTIAL HOME.
Adult and Health Services,Head of Adults,Third Party Payments,470101,Purchase of Care,01-Nov-2017,3356083-2410777,"1,477.52",BEAMISH RESIDENTIAL HOME.
Adult and Health Services,Head of Adults,Third Party Payments,470101,Purchase of Care,01-Nov-2017,3356083-2410778,"1,489.28",BEAMISH RESIDENTIAL HOME.
Adult and Health Services,Head of Adults,Third Party Payments,470101,Purchase of Care,01-Nov-2017,3356083-2410779,"2,024.64",BEAMISH RESIDENTIAL HOME.
Adult and Health Services,Head of Adults,Third Party Payments,471101,Purchase of Care,01-Nov-2017,3356083-2410765,"1,349.72",BEAMISH RESIDENTIAL HOME.
Adult and Health Services,Head of Adults,Third Party Payments,471101,Purchase of Care,01-Nov-2017,3356083-2410768,"1,566.96",BEAMISH RESIDENTIAL HOME.
Adult and Health Services,Head of Adults,Third Party Payments,471101,Purchase of Care,01-Nov-2017,3356083-2410769,"2,104.76",BEAMISH RESIDENTIAL HOME.
Adult and Health Services,Head of Adults,Third Party Payments,470101,Purchase of Care,01-Nov-2017,3356084-2409055,"2,133.53",BEDDELL HOUSE.
Adult and Health Services,Head of Adults,Third Party Payments,470101,Purchase of Care,01-Nov-2017,3356084-2409056,"1,222.42",BEDDELL HOUSE.
Adult and Health Services,Head of Adults,Third Party Payments,470101,Purchase of Care,01-Nov-2017,3356084-2409057,"2,139.24",BEDDELL HOUSE.
Adult and Health Services,Head of Adults,Third Party Payments,470101,Purchase of Care,01-Nov-2017,3356084-2409058,"2,133.53",BEDDELL HOUSE.
Adult and Health Services,Head of Adults,Third Party Payments,470101,Purchase of Care,01-Nov-2017,3356084-2409059,"2,133.53",BEDDELL HOUSE.
Adult and Health Services,Head of Adults,Third Party Payments,470101,Purchase of Care,01-Nov-2017,3356084-2409060,534.81,BEDDELL HOUSE.
Adult and Health Services,Head of Adults,Third Party Payments,470101,Purchase of Care,01-Nov-2017,3356084-2409061,"2,133.53",BEDDELL HOUSE.
Adult and Health Services,Head of Adults,Third Party Payments,470101,Purchase of Care,01-Nov-2017,3356084-2409062,"2,133.53",BEDDELL HOUSE.
Adult and Health Services,Head of Adults,Third Party Payments,470101,Purchase of Care,01-Nov-2017,3356084-2409063,"2,133.53",BEDDELL HOUSE.
Adult and Health Services,Head of Adults,Third Party Payments,470101,Purchase of Care,01-Nov-2017,3356084-2409064,"2,144.94",BEDDELL HOUSE.
Adult and Health Services,Head of Adults,Third Party Payments,470101,Purchase of Care,01-Nov-2017,3356084-2409065,"2,144.94",BEDDELL HOUSE.
Adult and Health Services,Head of Adults,Third Party Payments,470101,Purchase of Care,01-Nov-2017,3356084-2409066,"2,144.94",BEDDELL HOUSE.
Adult and Health Services,Central/Other,Debtors,930024,Debtor-free nursing care,01-Nov-2017,3356085-2408782,620.20,BENFIELD HALL RESIDENTIAL CARE.
Adult and Health Services,Central/Other,Debtors,930024,Debtor-free nursing care,01-Nov-2017,3356085-2408788,620.20,BENFIELD HALL RESIDENTIAL CARE.
Adult and Health Services,Head of Adults,Third Party Payments,474101,Purchase of Care,01-Nov-2017,3356085-2408779,"1,112.00",BENFIELD HALL RESIDENTIAL CARE.
Adult and Health Services,Head of Adults,Third Party Payments,474101,Purchase of Care,01-Nov-2017,3356085-2408781,"1,994.88",BENFIELD HALL RESIDENTIAL CARE.
Adult and Health Services,Head of Adults,Third Party Payments,474101,Purchase of Care,01-Nov-2017,3356085-2408785,997.48,BENFIELD HALL RESIDENTIAL CARE.
Adult and Health Services,Head of Adults,Third Party Payments,474101,Purchase of Care,01-Nov-2017,3356085-2408787,"1,457.08",BENFIELD HALL RESIDENTIAL CARE.
Adult and Health Services,Head of Adults,Third Party Payments,474101,Purchase of Care,01-Nov-2017,3356085-2408789,997.44,BENFIELD HALL RESIDENTIAL CARE.
Adult and Health Services,Head of Adults,Third Party Payments,474101,Purchase of Care,01-Nov-2017,3356085-2408791,997.44,BENFIELD HALL RESIDENTIAL CARE.
Adult and Health Services,Head of Adults,Third Party Payments,474101,Purchase of Care,01-Nov-2017,3356085-2412244,"1,709.89",BENFIELD HALL RESIDENTIAL CARE.
Adult and Health Services,Head of Adults,Third Party Payments,470101,Purchase of Care,01-Nov-2017,3356085-2408778,949.68,BENFIELD HALL RESIDENTIAL CARE.
Adult and Health Services,Head of Adults,Third Party Payments,470101,Purchase of Care,01-Nov-2017,3356085-2408783,949.68,BENFIELD HALL RESIDENTIAL CARE.
Adult and Health Services,Head of Adults,Third Party Payments,470101,Purchase of Care,01-Nov-2017,3356085-2408784,"1,899.32",BENFIELD HALL RESIDENTIAL CARE.
Adult and Health Services,Head of Adults,Third Party Payments,470101,Purchase of Care,01-Nov-2017,3356086-2408754,"1,964.56",BENTON CARE SERVICES LTD.
Adult and Health Services,Head of Adults,Third Party Payments,470101,Purchase of Care,01-Nov-2017,3356086-2408755,"3,059.04",BENTON CARE SERVICES LTD.
Adult and Health Services,Head of Adults,Third Party Payments,470101,Purchase of Care,01-Nov-2017,3356086-2408756,"3,059.04",BENTON CARE SERVICES LTD.
Adult and Health Services,Head of Adults,Third Party Payments,470101,Purchase of Care,01-Nov-2017,3356086-2408757,"3,059.04",BENTON CARE SERVICES LTD.
Adult and Health Services,Head of Adults,Third Party Payments,470101,Purchase of Care,01-Nov-2017,3356086-2408758,"3,059.04",BENTON CARE SERVICES LTD.
Adult and Health Services,Head of Adults,Third Party Payments,470101,Purchase of Care,01-Nov-2017,3356086-2408759,"3,059.04",BENTON CARE SERVICES LTD.
Adult and Health Services,Head of Adults,Third Party Payments,470101,Purchase of Care,01-Nov-2017,3356086-2408760,"3,059.04",BENTON CARE SERVICES LTD.
Adult and Health Services,Head of Adults,Third Party Payments,470101,Purchase of Care,01-Nov-2017,3356086-2411404,953.84,BENTON CARE SERVICES LTD.
Adult and Health Services,Head of Adults,Third Party Payments,470101,Purchase of Care,01-Nov-2017,3356086-2411405,"1,964.56",BENTON CARE SERVICES LTD.
Adult and Health Services,Central/Other,Debtors,930024,Debtor-free nursing care,01-Nov-2017,3356088-2407780,620.20,BISHOPSGATE LODGE.
Adult and Health Services,Central/Other,Debtors,930024,Debtor-free nursing care,01-Nov-2017,3356088-2407782,620.20,BISHOPSGATE LODGE.
Adult and Health Services,Central/Other,Debtors,930024,Debtor-free nursing care,01-Nov-2017,3356088-2407784,620.20,BISHOPSGATE LODGE.
Adult and Health Services,Central/Other,Debtors,930024,Debtor-free nursing care,01-Nov-2017,3356088-2407788,620.20,BISHOPSGATE LODGE.
Adult and Health Services,Central/Other,Debtors,930024,Debtor-free nursing care,01-Nov-2017,3356088-2407794,620.20,BISHOPSGATE LODGE.
Adult and Health Services,Central/Other,Debtors,930024,Debtor-free nursing care,01-Nov-2017,3356088-2407796,620.20,BISHOPSGATE LODGE.
Adult and Health Services,Central/Other,Debtors,930024,Debtor-free nursing care,01-Nov-2017,3356088-2407800,620.20,BISHOPSGATE LODGE.
Adult and Health Services,Central/Other,Debtors,930024,Debtor-free nursing care,01-Nov-2017,3356088-2411873,"1,816.30",BISHOPSGATE LODGE.
Adult and Health Services,Head of Adults,Third Party Payments,474101,Purchase of Care,01-Nov-2017,3356088-2407779,"2,205.76",BISHOPSGATE LODGE.
Adult and Health Services,Head of Adults,Third Party Payments,474101,Purchase of Care,01-Nov-2017,3356088-2407781,"2,125.76",BISHOPSGATE LODGE.
Adult and Health Services,Head of Adults,Third Party Payments,474101,Purchase of Care,01-Nov-2017,3356088-2407787,"2,125.76",BISHOPSGATE LODGE.
Adult and Health Services,Head of Adults,Third Party Payments,474101,Purchase of Care,01-Nov-2017,3356088-2407793,"2,125.76",BISHOPSGATE LODGE.
Adult and Health Services,Head of Adults,Third Party Payments,474101,Purchase of Care,01-Nov-2017,3356088-2407795,"2,125.76",BISHOPSGATE LODGE.
Adult and Health Services,Head of Adults,Third Party Payments,474101,Purchase of Care,01-Nov-2017,3356088-2407799,"2,125.76",BISHOPSGATE LODGE.
Adult and Health Services,Head of Adults,Third Party Payments,470101,Purchase of Care,01-Nov-2017,3356088-2407771,"2,024.64",BISHOPSGATE LODGE.
Adult and Health Services,Head of Adults,Third Party Payments,470101,Purchase of Care,01-Nov-2017,3356088-2407772,"1,889.20",BISHOPSGATE LODGE.
Adult and Health Services,Head of Adults,Third Party Payments,470101,Purchase of Care,01-Nov-2017,3356088-2407773,"2,024.64",BISHOPSGATE LODGE.
Adult and Health Services,Head of Adults,Third Party Payments,470101,Purchase of Care,01-Nov-2017,3356088-2407774,"2,024.64",BISHOPSGATE LODGE.
Adult and Health Services,Head of Adults,Third Party Payments,470101,Purchase of Care,01-Nov-2017,3356088-2407775,"1,673.98",BISHOPSGATE LODGE.
Adult and Health Services,Head of Adults,Third Party Payments,470101,Purchase of Care,01-Nov-2017,3356088-2407778,"2,024.64",BISHOPSGATE LODGE.
Adult and Health Services,Head of Adults,Third Party Payments,470101,Purchase of Care,01-Nov-2017,3356088-2407783,"2,024.64",BISHOPSGATE LODGE.
Adult and Health Services,Head of Adults,Third Party Payments,470101,Purchase of Care,01-Nov-2017,3356088-2407785,"2,024.64",BISHOPSGATE LODGE.
Adult and Health Services,Head of Adults,Third Party Payments,470101,Purchase of Care,01-Nov-2017,3356088-2407786,"2,024.64",BISHOPSGATE LODGE.
Adult and Health Services,Head of Adults,Third Party Payments,470101,Purchase of Care,01-Nov-2017,3356088-2407790,"2,024.64",BISHOPSGATE LODGE.
Adult and Health Services,Head of Adults,Third Party Payments,470101,Purchase of Care,01-Nov-2017,3356088-2407791,"2,024.64",BISHOPSGATE LODGE.
Adult and Health Services,Head of Adults,Third Party Payments,470101,Purchase of Care,01-Nov-2017,3356088-2407797,"2,024.64",BISHOPSGATE LODGE.
Adult and Health Services,Head of Adults,Third Party Payments,470101,Purchase of Care,01-Nov-2017,3356088-2407798,"2,024.64",BISHOPSGATE LODGE.
Adult and Health Services,Head of Adults,Third Party Payments,470101,Purchase of Care,01-Nov-2017,3356088-2407802,"2,024.64",BISHOPSGATE LODGE.
Adult and Health Services,Head of Adults,Third Party Payments,470101,Purchase of Care,01-Nov-2017,3356088-2407803,"2,024.64",BISHOPSGATE LODGE.
Adult and Health Services,Head of Adults,Third Party Payments,470101,Purchase of Care,01-Nov-2017,3356088-2407805,"2,024.64",BISHOPSGATE LODGE.
Adult and Health Services,Head of Adults,Third Party Payments,470101,Purchase of Care,01-Nov-2017,3356088-2407806,"2,024.64",BISHOPSGATE LODGE.
Adult and Health Services,Head of Adults,Third Party Payments,470101,Purchase of Care,01-Nov-2017,3356088-2407807,"2,024.64",BISHOPSGATE LODGE.
Adult and Health Services,Head of Adults,Third Party Payments,470101,Purchase of Care,01-Nov-2017,3356088-2407808,"2,024.64",BISHOPSGATE LODGE.
Adult and Health Services,Head of Adults,Third Party Payments,470101,Purchase of Care,01-Nov-2017,3356088-2407809,"2,024.64",BISHOPSGATE LODGE.
Adult and Health Services,Head of Adults,Third Party Payments,471101,Purchase of Care,01-Nov-2017,3356088-2407776,"2,104.76",BISHOPSGATE LODGE.
Adult and Health Services,Head of Adults,Third Party Payments,471101,Purchase of Care,01-Nov-2017,3356088-2407777,"1,052.40",BISHOPSGATE LODGE.
Adult and Health Services,Head of Adults,Third Party Payments,471101,Purchase of Care,01-Nov-2017,3356088-2407792,"2,104.76",BISHOPSGATE LODGE.
Adult and Health Services,Head of Adults,Third Party Payments,471101,Purchase of Care,01-Nov-2017,3356088-2407801,"2,104.76",BISHOPSGATE LODGE.
Adult and Health Services,Head of Adults,Third Party Payments,471101,Purchase of Care,01-Nov-2017,3356088-2407804,"2,104.76",BISHOPSGATE LODGE.
Adult and Health Services,Central/Other,Debtors,930024,Debtor-free nursing care,01-Nov-2017,3356089-2407594,620.20,BONDCARE T/A BRANCEPETH COURT CARE HOME.
Adult and Health Services,Central/Other,Debtors,930024,Debtor-free nursing care,01-Nov-2017,3356089-2407599,620.20,BONDCARE T/A BRANCEPETH COURT CARE HOME.
Adult and Health Services,Central/Other,Debtors,930024,Debtor-free nursing care,01-Nov-2017,3356089-2407604,620.20,BONDCARE T/A BRANCEPETH COURT CARE HOME.
Adult and Health Services,Central/Other,Debtors,930024,Debtor-free nursing care,01-Nov-2017,3356089-2407608,620.20,BONDCARE T/A BRANCEPETH COURT CARE HOME.
Adult and Health Services,Central/Other,Debtors,930024,Debtor-free nursing care,01-Nov-2017,3356089-2407614,620.20,BONDCARE T/A BRANCEPETH COURT CARE HOME.
Adult and Health Services,Central/Other,Debtors,930024,Debtor-free nursing care,01-Nov-2017,3356089-2407617,620.20,BONDCARE T/A BRANCEPETH COURT CARE HOME.
Adult and Health Services,Central/Other,Debtors,930024,Debtor-free nursing care,01-Nov-2017,3356089-2407621,620.20,BONDCARE T/A BRANCEPETH COURT CARE HOME.
Adult and Health Services,Central/Other,Debtors,930024,Debtor-free nursing care,01-Nov-2017,3356089-2407624,620.20,BONDCARE T/A BRANCEPETH COURT CARE HOME.
Adult and Health Services,Central/Other,Debtors,930024,Debtor-free nursing care,01-Nov-2017,3356089-2407628,620.20,BONDCARE T/A BRANCEPETH COURT CARE HOME.
Adult and Health Services,Head of Adults,Third Party Payments,474101,Purchase of Care,01-Nov-2017,3356089-2407593,"2,240.40",BONDCARE T/A BRANCEPETH COURT CARE HOME.
Adult and Health Services,Head of Adults,Third Party Payments,474101,Purchase of Care,01-Nov-2017,3356089-2407598,"2,240.40",BONDCARE T/A BRANCEPETH COURT CARE HOME.
Adult and Health Services,Head of Adults,Third Party Payments,474101,Purchase of Care,01-Nov-2017,3356089-2407603,"2,240.40",BONDCARE T/A BRANCEPETH COURT CARE HOME.
Adult and Health Services,Head of Adults,Third Party Payments,474101,Purchase of Care,01-Nov-2017,3356089-2407607,"2,240.40",BONDCARE T/A BRANCEPETH COURT CARE HOME.
Adult and Health Services,Head of Adults,Third Party Payments,474101,Purchase of Care,01-Nov-2017,3356089-2407613,"2,250.00",BONDCARE T/A BRANCEPETH COURT CARE HOME.
Adult and Health Services,Head of Adults,Third Party Payments,474101,Purchase of Care,01-Nov-2017,3356089-2407616,"2,433.04",BONDCARE T/A BRANCEPETH COURT CARE HOME.
Adult and Health Services,Head of Adults,Third Party Payments,474101,Purchase of Care,01-Nov-2017,3356089-2407620,"2,240.40",BONDCARE T/A BRANCEPETH COURT CARE HOME.
Adult and Health Services,Head of Adults,Third Party Payments,474101,Purchase of Care,01-Nov-2017,3356089-2407623,"2,240.40",BONDCARE T/A BRANCEPETH COURT CARE HOME.
Adult and Health Services,Head of Adults,Third Party Payments,474101,Purchase of Care,01-Nov-2017,3356089-2407627,"2,240.40",BONDCARE T/A BRANCEPETH COURT CARE HOME.
Adult and Health Services,Head of Adults,Third Party Payments,474101,Purchase of Care,01-Nov-2017,3356089-2411993,"2,124.71",BONDCARE T/A BRANCEPETH COURT CARE HOME.
Adult and Health Services,Head of Adults,Third Party Payments,474101,Purchase of Care,01-Nov-2017,3356089-2411995,560.09,BONDCARE T/A BRANCEPETH COURT CARE HOME.
Adult and Health Services,Head of Adults,Third Party Payments,470101,Purchase of Care,01-Nov-2017,3356089-2407590,"2,139.24",BONDCARE T/A BRANCEPETH COURT CARE HOME.
Adult and Health Services,Head of Adults,Third Party Payments,470101,Purchase of Care,01-Nov-2017,3356089-2407591,"2,206.72",BONDCARE T/A BRANCEPETH COURT CARE HOME.
Adult and Health Services,Head of Adults,Third Party Payments,470101,Purchase of Care,01-Nov-2017,3356089-2407595,"2,979.66",BONDCARE T/A BRANCEPETH COURT CARE HOME.
Adult and Health Services,Head of Adults,Third Party Payments,470101,Purchase of Care,01-Nov-2017,3356089-2407596,"2,139.24",BONDCARE T/A BRANCEPETH COURT CARE HOME.
Adult and Health Services,Head of Adults,Third Party Payments,470101,Purchase of Care,01-Nov-2017,3356089-2407600,"2,139.24",BONDCARE T/A BRANCEPETH COURT CARE HOME.
Adult and Health Services,Head of Adults,Third Party Payments,470101,Purchase of Care,01-Nov-2017,3356089-2407601,"2,139.24",BONDCARE T/A BRANCEPETH COURT CARE HOME.
Adult and Health Services,Head of Adults,Third Party Payments,470101,Purchase of Care,01-Nov-2017,3356089-2407602,"2,139.24",BONDCARE T/A BRANCEPETH COURT CARE HOME.
Adult and Health Services,Head of Adults,Third Party Payments,470101,Purchase of Care,01-Nov-2017,3356089-2407605,600.32,BONDCARE T/A BRANCEPETH COURT CARE HOME.
Adult and Health Services,Head of Adults,Third Party Payments,470101,Purchase of Care,01-Nov-2017,3356089-2407606,"2,808.84",BONDCARE T/A BRANCEPETH COURT CARE HOME.
Adult and Health Services,Head of Adults,Third Party Payments,470101,Purchase of Care,01-Nov-2017,3356089-2407609,"2,139.24",BONDCARE T/A BRANCEPETH COURT CARE HOME.
Adult and Health Services,Head of Adults,Third Party Payments,470101,Purchase of Care,01-Nov-2017,3356089-2407610,"2,399.00",BONDCARE T/A BRANCEPETH COURT CARE HOME.
Adult and Health Services,Head of Adults,Third Party Payments,470101,Purchase of Care,01-Nov-2017,3356089-2407611,"2,139.24",BONDCARE T/A BRANCEPETH COURT CARE HOME.
Adult and Health Services,Head of Adults,Third Party Payments,470101,Purchase of Care,01-Nov-2017,3356089-2407612,"2,139.24",BONDCARE T/A BRANCEPETH COURT CARE HOME.
Adult and Health Services,Head of Adults,Third Party Payments,470101,Purchase of Care,01-Nov-2017,3356089-2407615,"2,139.24",BONDCARE T/A BRANCEPETH COURT CARE HOME.
Adult and Health Services,Head of Adults,Third Party Payments,470101,Purchase of Care,01-Nov-2017,3356089-2407618,"2,139.24",BONDCARE T/A BRANCEPETH COURT CARE HOME.
Adult and Health Services,Head of Adults,Third Party Payments,470101,Purchase of Care,01-Nov-2017,3356089-2407619,"2,206.72",BONDCARE T/A BRANCEPETH COURT CARE HOME.
Adult and Health Services,Head of Adults,Third Party Payments,470101,Purchase of Care,01-Nov-2017,3356089-2407622,"2,139.24",BONDCARE T/A BRANCEPETH COURT CARE HOME.
Adult and Health Services,Head of Adults,Third Party Payments,470101,Purchase of Care,01-Nov-2017,3356089-2407625,"2,139.24",BONDCARE T/A BRANCEPETH COURT CARE HOME.
Adult and Health Services,Head of Adults,Third Party Payments,470101,Purchase of Care,01-Nov-2017,3356089-2407626,"2,206.72",BONDCARE T/A BRANCEPETH COURT CARE HOME.
Adult and Health Services,Head of Adults,Third Party Payments,470101,Purchase of Care,01-Nov-2017,3356089-2407629,"2,206.72",BONDCARE T/A BRANCEPETH COURT CARE HOME.
Adult and Health Services,Head of Adults,Third Party Payments,470101,Purchase of Care,01-Nov-2017,3356089-2407630,"2,206.72",BONDCARE T/A BRANCEPETH COURT CARE HOME.
Adult and Health Services,Head of Adults,Third Party Payments,470101,Purchase of Care,01-Nov-2017,3356089-2407631,"2,206.72",BONDCARE T/A BRANCEPETH COURT CARE HOME.
Adult and Health Services,Head of Adults,Third Party Payments,470101,Purchase of Care,01-Nov-2017,3356089-2411986,"1,799.25",BONDCARE T/A BRANCEPETH COURT CARE HOME.
Adult and Health Services,Head of Adults,Third Party Payments,470101,Purchase of Care,01-Nov-2017,3356089-2411989,"2,444.85",BONDCARE T/A BRANCEPETH COURT CARE HOME.
Adult and Health Services,Head of Adults,Third Party Payments,470101,Purchase of Care,01-Nov-2017,3356089-2411992,"2,049.09",BONDCARE T/A BRANCEPETH COURT CARE HOME.
Adult and Health Services,Head of Adults,Third Party Payments,470101,Purchase of Care,01-Nov-2017,3356089-2411997,"1,298.82",BONDCARE T/A BRANCEPETH COURT CARE HOME.
Adult and Health Services,Head of Adults,Third Party Payments,470101,Purchase of Care,01-Nov-2017,3356090-2409346,956.36,BONDCARE T/A LUMLEY COURT CARE HOME.
Adult and Health Services,Head of Adults,Third Party Payments,470101,Purchase of Care,01-Nov-2017,3356090-2409347,"3,395.60",BONDCARE T/A LUMLEY COURT CARE HOME.
Adult and Health Services,Head of Adults,Third Party Payments,470101,Purchase of Care,01-Nov-2017,3356090-2409348,"2,206.72",BONDCARE T/A LUMLEY COURT CARE HOME.
Adult and Health Services,Head of Adults,Third Party Payments,470101,Purchase of Care,01-Nov-2017,3356090-2409350,"2,206.72",BONDCARE T/A LUMLEY COURT CARE HOME.
Adult and Health Services,Head of Adults,Third Party Payments,470101,Purchase of Care,01-Nov-2017,3356090-2409355,"2,206.72",BONDCARE T/A LUMLEY COURT CARE HOME.
Adult and Health Services,Head of Adults,Third Party Payments,470101,Purchase of Care,01-Nov-2017,3356090-2409356,"2,206.72",BONDCARE T/A LUMLEY COURT CARE HOME.
Adult and Health Services,Head of Adults,Third Party Payments,470101,Purchase of Care,01-Nov-2017,3356090-2409362,"2,206.72",BONDCARE T/A LUMLEY COURT CARE HOME.
Adult and Health Services,Head of Adults,Third Party Payments,470101,Purchase of Care,01-Nov-2017,3356090-2409364,"2,206.72",BONDCARE T/A LUMLEY COURT CARE HOME.
Adult and Health Services,Head of Adults,Third Party Payments,471101,Purchase of Care,01-Nov-2017,3356090-2409349,"2,218.20",BONDCARE T/A LUMLEY COURT CARE HOME.
Adult and Health Services,Head of Adults,Third Party Payments,471101,Purchase of Care,01-Nov-2017,3356090-2409352,"2,218.20",BONDCARE T/A LUMLEY COURT CARE HOME.
Adult and Health Services,Head of Adults,Third Party Payments,471101,Purchase of Care,01-Nov-2017,3356090-2409353,"1,425.98",BONDCARE T/A LUMLEY COURT CARE HOME.
Adult and Health Services,Head of Adults,Third Party Payments,471101,Purchase of Care,01-Nov-2017,3356090-2409354,"2,218.20",BONDCARE T/A LUMLEY COURT CARE HOME.
Adult and Health Services,Head of Adults,Third Party Payments,471101,Purchase of Care,01-Nov-2017,3356090-2409357,"2,218.20",BONDCARE T/A LUMLEY COURT CARE HOME.
Adult and Health Services,Head of Adults,Third Party Payments,471101,Purchase of Care,01-Nov-2017,3356090-2409358,"2,218.20",BONDCARE T/A LUMLEY COURT CARE HOME.
Adult and Health Services,Head of Adults,Third Party Payments,471101,Purchase of Care,01-Nov-2017,3356090-2409359,"2,218.20",BONDCARE T/A LUMLEY COURT CARE HOME.
Adult and Health Services,Head of Adults,Third Party Payments,471101,Purchase of Care,01-Nov-2017,3356090-2409360,"2,218.20",BONDCARE T/A LUMLEY COURT CARE HOME.
Adult and Health Services,Head of Adults,Third Party Payments,471101,Purchase of Care,01-Nov-2017,3356090-2409361,"2,218.20",BONDCARE T/A LUMLEY COURT CARE HOME.
Adult and Health Services,Head of Adults,Third Party Payments,471101,Purchase of Care,01-Nov-2017,3356090-2409363,"2,218.20",BONDCARE T/A LUMLEY COURT CARE HOME.
Adult and Health Services,Head of Adults,Third Party Payments,471101,Purchase of Care,01-Nov-2017,3356090-2409365,"2,218.20",BONDCARE T/A LUMLEY COURT CARE HOME.
Adult and Health Services,Head of Adults,Third Party Payments,471101,Purchase of Care,01-Nov-2017,3356090-2409366,"2,218.20",BONDCARE T/A LUMLEY COURT CARE HOME.
Adult and Health Services,Head of Adults,Third Party Payments,471101,Purchase of Care,01-Nov-2017,3356090-2409367,"2,218.20",BONDCARE T/A LUMLEY COURT CARE HOME.
Adult and Health Services,Head of Adults,Third Party Payments,471101,Purchase of Care,01-Nov-2017,3356090-2409368,"2,218.20",BONDCARE T/A LUMLEY COURT CARE HOME.
Adult and Health Services,Head of Adults,Third Party Payments,471101,Purchase of Care,01-Nov-2017,3356090-2409369,"2,218.20",BONDCARE T/A LUMLEY COURT CARE HOME.
Adult and Health Services,Head of Adults,Third Party Payments,471101,Purchase of Care,01-Nov-2017,3356090-2409370,"2,218.20",BONDCARE T/A LUMLEY COURT CARE HOME.
Adult and Health Services,Head of Adults,Third Party Payments,471101,Purchase of Care,01-Nov-2017,3356090-2409371,"2,218.20",BONDCARE T/A LUMLEY COURT CARE HOME.
Adult and Health Services,Head of Adults,Third Party Payments,471101,Purchase of Care,01-Nov-2017,3356090-2412053,"1,663.65",BONDCARE T/A LUMLEY COURT CARE HOME.
Adult and Health Services,Central/Other,Debtors,930024,Debtor-free nursing care,01-Nov-2017,3356091-2409188,620.20,BONDCARE T/A RICHMOND COURT CARE HOME.
Adult and Health Services,Central/Other,Debtors,930024,Debtor-free nursing care,01-Nov-2017,3356091-2409200,620.20,BONDCARE T/A RICHMOND COURT CARE HOME.
Adult and Health Services,Central/Other,Debtors,930024,Debtor-free nursing care,01-Nov-2017,3356091-2409211,620.20,BONDCARE T/A RICHMOND COURT CARE HOME.
Adult and Health Services,Central/Other,Debtors,930024,Debtor-free nursing care,01-Nov-2017,3356091-2409214,620.20,BONDCARE T/A RICHMOND COURT CARE HOME.
Adult and Health Services,Central/Other,Debtors,930024,Debtor-free nursing care,01-Nov-2017,3356091-2409220,620.20,BONDCARE T/A RICHMOND COURT CARE HOME.
Adult and Health Services,Head of Adults,Third Party Payments,474101,Purchase of Care,01-Nov-2017,3356091-2409183,"1,078.48",BONDCARE T/A RICHMOND COURT CARE HOME.
Adult and Health Services,Head of Adults,Third Party Payments,474101,Purchase of Care,01-Nov-2017,3356091-2409185,"1,120.20",BONDCARE T/A RICHMOND COURT CARE HOME.
Adult and Health Services,Head of Adults,Third Party Payments,474101,Purchase of Care,01-Nov-2017,3356091-2409187,"2,240.40",BONDCARE T/A RICHMOND COURT CARE HOME.
Adult and Health Services,Head of Adults,Third Party Payments,474101,Purchase of Care,01-Nov-2017,3356091-2409189,"1,120.20",BONDCARE T/A RICHMOND COURT CARE HOME.
Adult and Health Services,Head of Adults,Third Party Payments,474101,Purchase of Care,01-Nov-2017,3356091-2409194,"1,078.48",BONDCARE T/A RICHMOND COURT CARE HOME.
Adult and Health Services,Head of Adults,Third Party Payments,474101,Purchase of Care,01-Nov-2017,3356091-2409199,"2,240.40",BONDCARE T/A RICHMOND COURT CARE HOME.
Adult and Health Services,Head of Adults,Third Party Payments,474101,Purchase of Care,01-Nov-2017,3356091-2409202,"1,120.20",BONDCARE T/A RICHMOND COURT CARE HOME.
Adult and Health Services,Head of Adults,Third Party Payments,474101,Purchase of Care,01-Nov-2017,3356091-2409210,"2,240.40",BONDCARE T/A RICHMOND COURT CARE HOME.
Adult and Health Services,Head of Adults,Third Party Payments,474101,Purchase of Care,01-Nov-2017,3356091-2409213,"2,240.40",BONDCARE T/A RICHMOND COURT CARE HOME.
Adult and Health Services,Head of Adults,Third Party Payments,474101,Purchase of Care,01-Nov-2017,3356091-2409218,"1,120.20",BONDCARE T/A RICHMOND COURT CARE HOME.
Adult and Health Services,Head of Adults,Third Party Payments,470101,Purchase of Care,01-Nov-2017,3356091-2409191,"2,206.72",BONDCARE T/A RICHMOND COURT CARE HOME.
Adult and Health Services,Head of Adults,Third Party Payments,470101,Purchase of Care,01-Nov-2017,3356091-2409192,"2,206.72",BONDCARE T/A RICHMOND COURT CARE HOME.
Adult and Health Services,Head of Adults,Third Party Payments,470101,Purchase of Care,01-Nov-2017,3356091-2409193,"2,206.72",BONDCARE T/A RICHMOND COURT CARE HOME.
Adult and Health Services,Head of Adults,Third Party Payments,470101,Purchase of Care,01-Nov-2017,3356091-2409196,"2,206.72",BONDCARE T/A RICHMOND COURT CARE HOME.
Adult and Health Services,Head of Adults,Third Party Payments,470101,Purchase of Care,01-Nov-2017,3356091-2409197,"2,206.72",BONDCARE T/A RICHMOND COURT CARE HOME.
Adult and Health Services,Head of Adults,Third Party Payments,470101,Purchase of Care,01-Nov-2017,3356091-2409204,"2,206.72",BONDCARE T/A RICHMOND COURT CARE HOME.
Adult and Health Services,Head of Adults,Third Party Payments,470101,Purchase of Care,01-Nov-2017,3356091-2409205,"2,206.72",BONDCARE T/A RICHMOND COURT CARE HOME.
Adult and Health Services,Head of Adults,Third Party Payments,470101,Purchase of Care,01-Nov-2017,3356091-2409206,604.80,BONDCARE T/A RICHMOND COURT CARE HOME.
Adult and Health Services,Head of Adults,Third Party Payments,470101,Purchase of Care,01-Nov-2017,3356091-2409207,"2,206.72",BONDCARE T/A RICHMOND COURT CARE HOME.
Adult and Health Services,Head of Adults,Third Party Payments,470101,Purchase of Care,01-Nov-2017,3356091-2409208,"2,206.72",BONDCARE T/A RICHMOND COURT CARE HOME.
Adult and Health Services,Head of Adults,Third Party Payments,470101,Purchase of Care,01-Nov-2017,3356091-2409209,"2,206.72",BONDCARE T/A RICHMOND COURT CARE HOME.
Adult and Health Services,Head of Adults,Third Party Payments,470101,Purchase of Care,01-Nov-2017,3356091-2409212,"2,206.72",BONDCARE T/A RICHMOND COURT CARE HOME.
Adult and Health Services,Head of Adults,Third Party Payments,470101,Purchase of Care,01-Nov-2017,3356091-2409215,"2,206.72",BONDCARE T/A RICHMOND COURT CARE HOME.
Adult and Health Services,Head of Adults,Third Party Payments,470101,Purchase of Care,01-Nov-2017,3356091-2409216,"2,206.72",BONDCARE T/A RICHMOND COURT CARE HOME.
Adult and Health Services,Head of Adults,Third Party Payments,470101,Purchase of Care,01-Nov-2017,3356091-2409217,"1,103.36",BONDCARE T/A RICHMOND COURT CARE HOME.
Adult and Health Services,Head of Adults,Third Party Payments,471101,Purchase of Care,01-Nov-2017,3356091-2409182,"2,218.20",BONDCARE T/A RICHMOND COURT CARE HOME.
Adult and Health Services,Head of Adults,Third Party Payments,471101,Purchase of Care,01-Nov-2017,3356091-2409201,"2,218.20",BONDCARE T/A RICHMOND COURT CARE HOME.
Adult and Health Services,Central/Other,Debtors,930024,Debtor-free nursing care,01-Nov-2017,3356092-2410525,620.20,BOWES COURT CARE HOME.
Adult and Health Services,Central/Other,Debtors,930024,Debtor-free nursing care,01-Nov-2017,3356092-2410526,620.20,BOWES COURT CARE HOME.
Adult and Health Services,Central/Other,Debtors,930024,Debtor-free nursing care,01-Nov-2017,3356092-2410529,620.20,BOWES COURT CARE HOME.
Adult and Health Services,Head of Adults,Third Party Payments,474101,Purchase of Care,01-Nov-2017,3356092-2410527,"4,800.00",BOWES COURT CARE HOME.
Adult and Health Services,Head of Adults,Third Party Payments,474101,Purchase of Care,01-Nov-2017,3356092-2410528,"4,800.00",BOWES COURT CARE HOME.
Adult and Health Services,Head of Adults,Third Party Payments,470101,Purchase of Care,01-Nov-2017,3356092-2410522,"2,594.00",BOWES COURT CARE HOME.
Adult and Health Services,Head of Adults,Third Party Payments,470101,Purchase of Care,01-Nov-2017,3356092-2410524,"2,222.00",BOWES COURT CARE HOME.
Adult and Health Services,Head of Adults,Third Party Payments,470101,Purchase of Care,01-Nov-2017,3356092-2412426,"3,352.14",BOWES COURT CARE HOME.
Adult and Health Services,Head of Adults,Third Party Payments,470101,Purchase of Care,01-Nov-2017,3356093-2408220,"2,139.24",BROOMHOUSE CARE LTD.
Adult and Health Services,Head of Adults,Third Party Payments,470101,Purchase of Care,01-Nov-2017,3356093-2408221,"2,139.24",BROOMHOUSE CARE LTD.
Adult and Health Services,Head of Adults,Third Party Payments,470101,Purchase of Care,01-Nov-2017,3356093-2408226,"2,139.24",BROOMHOUSE CARE LTD.
Adult and Health Services,Head of Adults,Third Party Payments,470101,Purchase of Care,01-Nov-2017,3356093-2408230,"2,139.24",BROOMHOUSE CARE LTD.
Adult and Health Services,Head of Adults,Third Party Payments,470101,Purchase of Care,01-Nov-2017,3356093-2408232,"2,139.24",BROOMHOUSE CARE LTD.
Adult and Health Services,Head of Adults,Third Party Payments,470101,Purchase of Care,01-Nov-2017,3356093-2408233,"2,139.24",BROOMHOUSE CARE LTD.
Adult and Health Services,Head of Adults,Third Party Payments,470101,Purchase of Care,01-Nov-2017,3356093-2408237,"1,601.44",BROOMHOUSE CARE LTD.
Adult and Health Services,Head of Adults,Third Party Payments,471101,Purchase of Care,01-Nov-2017,3356093-2408218,"2,218.20",BROOMHOUSE CARE LTD.
Adult and Health Services,Head of Adults,Third Party Payments,471101,Purchase of Care,01-Nov-2017,3356093-2408219,"2,218.20",BROOMHOUSE CARE LTD.
Adult and Health Services,Head of Adults,Third Party Payments,471101,Purchase of Care,01-Nov-2017,3356093-2408222,"2,218.20",BROOMHOUSE CARE LTD.
Adult and Health Services,Head of Adults,Third Party Payments,471101,Purchase of Care,01-Nov-2017,3356093-2408223,"2,218.20",BROOMHOUSE CARE LTD.
Adult and Health Services,Head of Adults,Third Party Payments,471101,Purchase of Care,01-Nov-2017,3356093-2408224,"2,218.20",BROOMHOUSE CARE LTD.
Adult and Health Services,Head of Adults,Third Party Payments,471101,Purchase of Care,01-Nov-2017,3356093-2408225,"2,218.20",BROOMHOUSE CARE LTD.
Adult and Health Services,Head of Adults,Third Party Payments,471101,Purchase of Care,01-Nov-2017,3356093-2408227,"2,218.20",BROOMHOUSE CARE LTD.
Adult and Health Services,Head of Adults,Third Party Payments,471101,Purchase of Care,01-Nov-2017,3356093-2408228,"1,452.68",BROOMHOUSE CARE LTD.
Adult and Health Services,Head of Adults,Third Party Payments,471101,Purchase of Care,01-Nov-2017,3356093-2408229,"1,416.20",BROOMHOUSE CARE LTD.
Adult and Health Services,Head of Adults,Third Party Payments,471101,Purchase of Care,01-Nov-2017,3356093-2408231,"2,218.20",BROOMHOUSE CARE LTD.
Adult and Health Services,Head of Adults,Third Party Payments,471101,Purchase of Care,01-Nov-2017,3356093-2408234,"2,218.20",BROOMHOUSE CARE LTD.
Adult and Health Services,Head of Adults,Third Party Payments,471101,Purchase of Care,01-Nov-2017,3356093-2408235,"1,382.00",BROOMHOUSE CARE LTD.
Adult and Health Services,Head of Adults,Third Party Payments,471101,Purchase of Care,01-Nov-2017,3356093-2412112,554.55,BROOMHOUSE CARE LTD.
Adult and Health Services,Head of Adults,Third Party Payments,471101,Purchase of Care,01-Nov-2017,3356093-2412113,"1,121.39",BROOMHOUSE CARE LTD.
Adult and Health Services,Head of Adults,Third Party Payments,474101,Purchase of Care,01-Nov-2017,3356094-2409488,"2,029.72",BURLINGTON CARE LTD T/A MAPLE LODGE CARE HOME.
Adult and Health Services,Head of Adults,Third Party Payments,471101,Purchase of Care,01-Nov-2017,3356095-2410308,"2,068.00",BURLINGTON CARE LTD T/A THE LAWNS CARE HOME.
Adult and Health Services,Head of Adults,Third Party Payments,471101,Purchase of Care,01-Nov-2017,3356095-2410309,"2,068.00",BURLINGTON CARE LTD T/A THE LAWNS CARE HOME.
Adult and Health Services,Head of Adults,Third Party Payments,474101,Purchase of Care,01-Nov-2017,3356097-2407588,"1,916.00",CARE UK LTD.
Adult and Health Services,Head of Adults,Third Party Payments,470101,Purchase of Care,01-Nov-2017,3356097-2407586,"1,916.00",CARE UK LTD.
Adult and Health Services,Head of Adults,Third Party Payments,470101,Purchase of Care,01-Nov-2017,3356097-2407589,"1,916.00",CARE UK LTD.
Adult and Health Services,Head of Adults,Third Party Payments,471101,Purchase of Care,01-Nov-2017,3356097-2407587,"1,916.00",CARE UK LTD.
Adult and Health Services,Head of Adults,Third Party Payments,474101,Purchase of Care,01-Nov-2017,3356098-2411448,"4,103.40",CARELINE LIFESTYLES (UK) LTD.
Adult and Health Services,Head of Adults,Third Party Payments,474101,Purchase of Care,01-Nov-2017,3356098-2411449,"2,415.00",CARELINE LIFESTYLES (UK) LTD.
Adult and Health Services,Head of Adults,Third Party Payments,474101,Purchase of Care,01-Nov-2017,3356099-2411226,"5,055.00",CARELINE LIFESTYLES (UK) LTD.
Adult and Health Services,Head of Adults,Third Party Payments,474101,Purchase of Care,01-Nov-2017,3356099-2411227,"4,800.00",CARELINE LIFESTYLES (UK) LTD.
Adult and Health Services,Head of Adults,Third Party Payments,474101,Purchase of Care,01-Nov-2017,3356099-2411228,"2,808.00",CARELINE LIFESTYLES (UK) LTD.
Adult and Health Services,Head of Adults,Third Party Payments,474101,Purchase of Care,01-Nov-2017,3356100-2412142,924.96,CARELINE LIFESTYLES (UK) LTD.
Adult and Health Services,Head of Adults,Third Party Payments,470101,Purchase of Care,01-Nov-2017,3356098-2411450,740.88,CARELINE LIFESTYLES (UK) LTD.
Adult and Health Services,Head of Adults,Third Party Payments,470101,Purchase of Care,01-Nov-2017,3356100-2412140,"3,158.93",CARELINE LIFESTYLES (UK) LTD.
Adult and Health Services,Head of Adults,Third Party Payments,470101,Purchase of Care,01-Nov-2017,3356100-2412141,"2,016.00",CARELINE LIFESTYLES (UK) LTD.
Adult and Health Services,Head of Adults,Third Party Payments,470101,Purchase of Care,01-Nov-2017,3356101-2410187,"2,461.68",CARELINE LIFESTYLES (UK) LTD.
Adult and Health Services,Head of Adults,Third Party Payments,471101,Purchase of Care,01-Nov-2017,3356102-2411583,"1,909.84",CHHG LTD T/A GILDAWOOD COURT CARE HOME.
Adult and Health Services,Head of Adults,Third Party Payments,471101,Purchase of Care,01-Nov-2017,3356103-2411576,"2,484.00",CHRISTIAN HEAD CARE HOME.
Adult and Health Services,Head of Adults,Third Party Payments,470101,Purchase of Care,01-Nov-2017,3356104-2410153,"2,139.24",CHURCH VIEW CARE HOME.
Adult and Health Services,Head of Adults,Third Party Payments,470101,Purchase of Care,01-Nov-2017,3356104-2410154,"2,123.95",CHURCH VIEW CARE HOME.
Adult and Health Services,Head of Adults,Third Party Payments,470101,Purchase of Care,01-Nov-2017,3356104-2410156,"2,139.24",CHURCH VIEW CARE HOME.
Adult and Health Services,Head of Adults,Third Party Payments,470101,Purchase of Care,01-Nov-2017,3356104-2410157,"2,139.24",CHURCH VIEW CARE HOME.
Adult and Health Services,Head of Adults,Third Party Payments,470101,Purchase of Care,01-Nov-2017,3356104-2410160,"2,139.24",CHURCH VIEW CARE HOME.
Adult and Health Services,Head of Adults,Third Party Payments,470101,Purchase of Care,01-Nov-2017,3356104-2410161,"2,139.24",CHURCH VIEW CARE HOME.
Adult and Health Services,Head of Adults,Third Party Payments,470101,Purchase of Care,01-Nov-2017,3356104-2410162,"1,069.64",CHURCH VIEW CARE HOME.
Adult and Health Services,Head of Adults,Third Party Payments,470101,Purchase of Care,01-Nov-2017,3356104-2410168,"2,139.24",CHURCH VIEW CARE HOME.
Adult and Health Services,Head of Adults,Third Party Payments,470101,Purchase of Care,01-Nov-2017,3356104-2410169,"1,104.60",CHURCH VIEW CARE HOME.
Adult and Health Services,Head of Adults,Third Party Payments,470101,Purchase of Care,01-Nov-2017,3356104-2410170,"2,139.24",CHURCH VIEW CARE HOME.
Adult and Health Services,Head of Adults,Third Party Payments,470101,Purchase of Care,01-Nov-2017,3356104-2410173,"2,139.24",CHURCH VIEW CARE HOME.
Adult and Health Services,Head of Adults,Third Party Payments,470101,Purchase of Care,01-Nov-2017,3356104-2410176,"2,139.24",CHURCH VIEW CARE HOME.
Adult and Health Services,Head of Adults,Third Party Payments,470101,Purchase of Care,01-Nov-2017,3356104-2410177,"2,139.24",CHURCH VIEW CARE HOME.
Adult and Health Services,Head of Adults,Third Party Payments,470101,Purchase of Care,01-Nov-2017,3356104-2410181,"2,139.24",CHURCH VIEW CARE HOME.
Adult and Health Services,Head of Adults,Third Party Payments,470101,Purchase of Care,01-Nov-2017,3356104-2410182,"2,139.24",CHURCH VIEW CARE HOME.
Adult and Health Services,Head of Adults,Third Party Payments,470101,Purchase of Care,01-Nov-2017,3356104-2410183,"2,139.24",CHURCH VIEW CARE HOME.
Adult and Health Services,Head of Adults,Third Party Payments,470101,Purchase of Care,01-Nov-2017,3356104-2410186,"2,139.24",CHURCH VIEW CARE HOME.
Adult and Health Services,Head of Adults,Third Party Payments,471101,Purchase of Care,01-Nov-2017,3356104-2410155,"2,218.20",CHURCH VIEW CARE HOME.
Adult and Health Services,Head of Adults,Third Party Payments,471101,Purchase of Care,01-Nov-2017,3356104-2410158,"2,218.20",CHURCH VIEW CARE HOME.
Adult and Health Services,Head of Adults,Third Party Payments,471101,Purchase of Care,01-Nov-2017,3356104-2410159,864.52,CHURCH VIEW CARE HOME.
Adult and Health Services,Head of Adults,Third Party Payments,471101,Purchase of Care,01-Nov-2017,3356104-2410163,"2,218.20",CHURCH VIEW CARE HOME.
Adult and Health Services,Head of Adults,Third Party Payments,471101,Purchase of Care,01-Nov-2017,3356104-2410164,"2,218.20",CHURCH VIEW CARE HOME.
Adult and Health Services,Head of Adults,Third Party Payments,471101,Purchase of Care,01-Nov-2017,3356104-2410165,"3,881.85",CHURCH VIEW CARE HOME.
Adult and Health Services,Head of Adults,Third Party Payments,471101,Purchase of Care,01-Nov-2017,3356104-2410166,"2,218.20",CHURCH VIEW CARE HOME.
Adult and Health Services,Head of Adults,Third Party Payments,471101,Purchase of Care,01-Nov-2017,3356104-2410167,"2,218.20",CHURCH VIEW CARE HOME.
Adult and Health Services,Head of Adults,Third Party Payments,471101,Purchase of Care,01-Nov-2017,3356104-2410171,"2,218.20",CHURCH VIEW CARE HOME.
Adult and Health Services,Head of Adults,Third Party Payments,471101,Purchase of Care,01-Nov-2017,3356104-2410172,"2,218.20",CHURCH VIEW CARE HOME.
Adult and Health Services,Head of Adults,Third Party Payments,471101,Purchase of Care,01-Nov-2017,3356104-2410174,"2,218.20",CHURCH VIEW CARE HOME.
Adult and Health Services,Head of Adults,Third Party Payments,471101,Purchase of Care,01-Nov-2017,3356104-2410175,"2,218.20",CHURCH VIEW CARE HOME.
Adult and Health Services,Head of Adults,Third Party Payments,471101,Purchase of Care,01-Nov-2017,3356104-2410178,"2,218.20",CHURCH VIEW CARE HOME.
Adult and Health Services,Head of Adults,Third Party Payments,471101,Purchase of Care,01-Nov-2017,3356104-2410179,"2,218.20",CHURCH VIEW CARE HOME.
Adult and Health Services,Head of Adults,Third Party Payments,471101,Purchase of Care,01-Nov-2017,3356104-2410180,"2,218.20",CHURCH VIEW CARE HOME.
Adult and Health Services,Head of Adults,Third Party Payments,471101,Purchase of Care,01-Nov-2017,3356104-2410184,"2,218.20",CHURCH VIEW CARE HOME.
Adult and Health Services,Head of Adults,Third Party Payments,471101,Purchase of Care,01-Nov-2017,3356104-2410185,"4,372.20",CHURCH VIEW CARE HOME.
Adult and Health Services,Head of Adults,Third Party Payments,471101,Purchase of Care,01-Nov-2017,3356104-2411886,"3,327.30",CHURCH VIEW CARE HOME.
Adult and Health Services,Head of Adults,Third Party Payments,470101,Purchase of Care,01-Nov-2017,3356105-2411754,"1,229.24",CHURCH VIEW RESIDENTIAL CARE HOME.
Adult and Health Services,Head of Adults,Third Party Payments,470101,Purchase of Care,01-Nov-2017,3356105-2411888,795.39,CHURCH VIEW RESIDENTIAL CARE HOME.
Adult and Health Services,Head of Adults,Third Party Payments,470101,Purchase of Care,01-Nov-2017,3356105-2411889,"2,024.64",CHURCH VIEW RESIDENTIAL CARE HOME.
Adult and Health Services,Head of Adults,Third Party Payments,470101,Purchase of Care,01-Nov-2017,3356105-2411890,"2,024.64",CHURCH VIEW RESIDENTIAL CARE HOME.
Adult and Health Services,Head of Adults,Third Party Payments,470101,Purchase of Care,01-Nov-2017,3356105-2411891,"2,024.64",CHURCH VIEW RESIDENTIAL CARE HOME.
Adult and Health Services,Head of Adults,Third Party Payments,470101,Purchase of Care,01-Nov-2017,3356105-2411892,"2,024.64",CHURCH VIEW RESIDENTIAL CARE HOME.
Adult and Health Services,Head of Adults,Third Party Payments,470101,Purchase of Care,01-Nov-2017,3356105-2411893,"2,024.64",CHURCH VIEW RESIDENTIAL CARE HOME.
Adult and Health Services,Head of Adults,Third Party Payments,470101,Purchase of Care,01-Nov-2017,3356105-2411894,"1,012.32",CHURCH VIEW RESIDENTIAL CARE HOME.
Adult and Health Services,Head of Adults,Third Party Payments,470101,Purchase of Care,01-Nov-2017,3356105-2411895,"2,024.64",CHURCH VIEW RESIDENTIAL CARE HOME.
Adult and Health Services,Head of Adults,Third Party Payments,470101,Purchase of Care,01-Nov-2017,3356105-2411896,"2,024.64",CHURCH VIEW RESIDENTIAL CARE HOME.
Adult and Health Services,Head of Adults,Third Party Payments,470101,Purchase of Care,01-Nov-2017,3356105-2411897,"2,024.64",CHURCH VIEW RESIDENTIAL CARE HOME.
Adult and Health Services,Head of Adults,Third Party Payments,470101,Purchase of Care,01-Nov-2017,3356105-2411898,"2,024.64",CHURCH VIEW RESIDENTIAL CARE HOME.
Adult and Health Services,Head of Adults,Third Party Payments,470101,Purchase of Care,01-Nov-2017,3356105-2411899,"2,024.64",CHURCH VIEW RESIDENTIAL CARE HOME.
Adult and Health Services,Head of Adults,Third Party Payments,470101,Purchase of Care,01-Nov-2017,3356105-2411902,"1,229.24",CHURCH VIEW RESIDENTIAL CARE HOME.
Adult and Health Services,Head of Adults,Third Party Payments,470101,Purchase of Care,01-Nov-2017,3356105-2411903,650.77,CHURCH VIEW RESIDENTIAL CARE HOME.
Adult and Health Services,Head of Adults,Third Party Payments,470101,Purchase of Care,01-Nov-2017,3356105-2411904,"2,024.64",CHURCH VIEW RESIDENTIAL CARE HOME.
Adult and Health Services,Head of Adults,Third Party Payments,470101,Purchase of Care,01-Nov-2017,3356105-2412379,"1,229.24",CHURCH VIEW RESIDENTIAL CARE HOME.
Adult and Health Services,Head of Adults,Third Party Payments,471101,Purchase of Care,01-Nov-2017,3356105-2411905,"2,104.76",CHURCH VIEW RESIDENTIAL CARE HOME.
Adult and Health Services,Head of Adults,Third Party Payments,471101,Purchase of Care,01-Nov-2017,3356105-2411906,"2,104.76",CHURCH VIEW RESIDENTIAL CARE HOME.
Adult and Health Services,Head of Adults,Third Party Payments,471101,Purchase of Care,01-Nov-2017,3356105-2411907,"2,104.76",CHURCH VIEW RESIDENTIAL CARE HOME.
Adult and Health Services,Head of Adults,Third Party Payments,471101,Purchase of Care,01-Nov-2017,3356105-2411908,"2,104.76",CHURCH VIEW RESIDENTIAL CARE HOME.
Adult and Health Services,Head of Adults,Third Party Payments,471101,Purchase of Care,01-Nov-2017,3356105-2411909,"1,052.40",CHURCH VIEW RESIDENTIAL CARE HOME.
Adult and Health Services,Head of Adults,Third Party Payments,471101,Purchase of Care,01-Nov-2017,3356105-2411910,"2,029.59",CHURCH VIEW RESIDENTIAL CARE HOME.
Adult and Health Services,Head of Adults,Third Party Payments,471101,Purchase of Care,01-Nov-2017,3356105-2411911,"2,104.76",CHURCH VIEW RESIDENTIAL CARE HOME.
Adult and Health Services,Head of Adults,Third Party Payments,471101,Purchase of Care,01-Nov-2017,3356105-2411912,"2,104.76",CHURCH VIEW RESIDENTIAL CARE HOME.
Adult and Health Services,Head of Adults,Third Party Payments,471101,Purchase of Care,01-Nov-2017,3356105-2411914,"2,104.76",CHURCH VIEW RESIDENTIAL CARE HOME.
Adult and Health Services,Head of Adults,Third Party Payments,471101,Purchase of Care,01-Nov-2017,3356105-2411915,676.53,CHURCH VIEW RESIDENTIAL CARE HOME.
Adult and Health Services,Head of Adults,Third Party Payments,471101,Purchase of Care,01-Nov-2017,3356105-2411916,"2,104.76",CHURCH VIEW RESIDENTIAL CARE HOME.
Adult and Health Services,Head of Adults,Third Party Payments,471101,Purchase of Care,01-Nov-2017,3356105-2411917,"2,104.76",CHURCH VIEW RESIDENTIAL CARE HOME.
Adult and Health Services,Head of Adults,Third Party Payments,471101,Purchase of Care,01-Nov-2017,3356105-2411918,"2,104.76",CHURCH VIEW RESIDENTIAL CARE HOME.
Adult and Health Services,Head of Adults,Third Party Payments,471101,Purchase of Care,01-Nov-2017,3356105-2411919,"1,052.40",CHURCH VIEW RESIDENTIAL CARE HOME.
Adult and Health Services,Head of Adults,Third Party Payments,471101,Purchase of Care,01-Nov-2017,3356105-2411920,"2,104.76",CHURCH VIEW RESIDENTIAL CARE HOME.
Adult and Health Services,Head of Adults,Third Party Payments,471101,Purchase of Care,01-Nov-2017,3356105-2411921,"2,104.76",CHURCH VIEW RESIDENTIAL CARE HOME.
Adult and Health Services,Head of Adults,Third Party Payments,471101,Purchase of Care,01-Nov-2017,3356105-2411922,"2,104.76",CHURCH VIEW RESIDENTIAL CARE HOME.
Adult and Health Services,Head of Adults,Third Party Payments,471101,Purchase of Care,01-Nov-2017,3356105-2411923,"2,104.76",CHURCH VIEW RESIDENTIAL CARE HOME.
Adult and Health Services,Head of Adults,Third Party Payments,471101,Purchase of Care,01-Nov-2017,3356105-2411924,"2,104.76",CHURCH VIEW RESIDENTIAL CARE HOME.
Adult and Health Services,Head of Adults,Third Party Payments,471101,Purchase of Care,01-Nov-2017,3356105-2411925,"2,104.76",CHURCH VIEW RESIDENTIAL CARE HOME.
Adult and Health Services,Head of Adults,Third Party Payments,471101,Purchase of Care,01-Nov-2017,3356105-2411926,"2,104.76",CHURCH VIEW RESIDENTIAL CARE HOME.
Adult and Health Services,Head of Adults,Third Party Payments,471101,Purchase of Care,01-Nov-2017,3356105-2411927,"1,428.23",CHURCH VIEW RESIDENTIAL CARE HOME.
Adult and Health Services,Head of Adults,Third Party Payments,471101,Purchase of Care,01-Nov-2017,3356105-2411928,"2,104.76",CHURCH VIEW RESIDENTIAL CARE HOME.
Adult and Health Services,Head of Adults,Third Party Payments,471101,Purchase of Care,01-Nov-2017,3356105-2411929,"2,104.76",CHURCH VIEW RESIDENTIAL CARE HOME.
Adult and Health Services,Head of Adults,Third Party Payments,471101,Purchase of Care,01-Nov-2017,3356105-2411930,826.87,CHURCH VIEW RESIDENTIAL CARE HOME.
Adult and Health Services,Head of Adults,Third Party Payments,471101,Purchase of Care,01-Nov-2017,3356105-2411931,"2,104.76",CHURCH VIEW RESIDENTIAL CARE HOME.
Adult and Health Services,Head of Adults,Third Party Payments,474101,Purchase of Care,01-Nov-2017,3356106-2410020,"2,221.96",CONAGS CARE LTD T/A RYHOPE MANOR CARE HOME.
Adult and Health Services,Head of Adults,Third Party Payments,474101,Purchase of Care,01-Nov-2017,3356107-2411664,"2,000.00",CORNWALL CARE LTD T/A TRENGROUSE CARE HOME.
Adult and Health Services,Head of Adults,Third Party Payments,474101,Purchase of Care,01-Nov-2017,3356108-2411379,"2,204.00",COVENT HOUSE.
Adult and Health Services,Head of Adults,Third Party Payments,474101,Purchase of Care,01-Nov-2017,3356108-2411380,"2,204.00",COVENT HOUSE.
Adult and Health Services,Head of Adults,Third Party Payments,474101,Purchase of Care,01-Nov-2017,3356108-2411382,"2,280.00",COVENT HOUSE.
Adult and Health Services,Head of Adults,Third Party Payments,474101,Purchase of Care,01-Nov-2017,3356108-2411383,"2,204.00",COVENT HOUSE.
Adult and Health Services,Head of Adults,Third Party Payments,474101,Purchase of Care,01-Nov-2017,3356108-2411385,"1,140.00",COVENT HOUSE.
Adult and Health Services,Head of Adults,Third Party Payments,474101,Purchase of Care,01-Nov-2017,3356108-2411386,"1,140.00",COVENT HOUSE.
Adult and Health Services,Head of Adults,Third Party Payments,474101,Purchase of Care,01-Nov-2017,3356108-2411387,"2,280.00",COVENT HOUSE.
Adult and Health Services,Head of Adults,Third Party Payments,474101,Purchase of Care,01-Nov-2017,3356108-2411389,"1,102.00",COVENT HOUSE.
Adult and Health Services,Head of Adults,Third Party Payments,474101,Purchase of Care,01-Nov-2017,3356108-2411390,"2,204.00",COVENT HOUSE.
Adult and Health Services,Head of Adults,Third Party Payments,474101,Purchase of Care,01-Nov-2017,3356108-2411391,"2,204.00",COVENT HOUSE.
Adult and Health Services,Head of Adults,Third Party Payments,471101,Purchase of Care,01-Nov-2017,3356108-2411381,"1,140.00",COVENT HOUSE.
Adult and Health Services,Head of Adults,Third Party Payments,471101,Purchase of Care,01-Nov-2017,3356108-2411384,"2,280.00",COVENT HOUSE.
Adult and Health Services,Head of Adults,Third Party Payments,471101,Purchase of Care,01-Nov-2017,3356108-2411388,"2,280.00",COVENT HOUSE.
Adult and Health Services,Central/Other,Debtors,930024,Debtor-free nursing care,01-Nov-2017,3356109-2409314,620.20,CRAIGARRAN LTD T/A CRAIGARRAN CARE HOME WITH NURSING.
Adult and Health Services,Central/Other,Debtors,930024,Debtor-free nursing care,01-Nov-2017,3356109-2409321,620.20,CRAIGARRAN LTD T/A CRAIGARRAN CARE HOME WITH NURSING.
Adult and Health Services,Central/Other,Debtors,930024,Debtor-free nursing care,01-Nov-2017,3356109-2409326,620.20,CRAIGARRAN LTD T/A CRAIGARRAN CARE HOME WITH NURSING.
Adult and Health Services,Central/Other,Debtors,930024,Debtor-free nursing care,01-Nov-2017,3356109-2409328,620.20,CRAIGARRAN LTD T/A CRAIGARRAN CARE HOME WITH NURSING.
Adult and Health Services,Central/Other,Debtors,930024,Debtor-free nursing care,01-Nov-2017,3356109-2409330,620.20,CRAIGARRAN LTD T/A CRAIGARRAN CARE HOME WITH NURSING.
Adult and Health Services,Central/Other,Debtors,930024,Debtor-free nursing care,01-Nov-2017,3356109-2409332,620.20,CRAIGARRAN LTD T/A CRAIGARRAN CARE HOME WITH NURSING.
Adult and Health Services,Central/Other,Debtors,930024,Debtor-free nursing care,01-Nov-2017,3356109-2409334,620.20,CRAIGARRAN LTD T/A CRAIGARRAN CARE HOME WITH NURSING.
Adult and Health Services,Central/Other,Debtors,930024,Debtor-free nursing care,01-Nov-2017,3356109-2409337,620.20,CRAIGARRAN LTD T/A CRAIGARRAN CARE HOME WITH NURSING.
Adult and Health Services,Central/Other,Debtors,930024,Debtor-free nursing care,01-Nov-2017,3356109-2409340,620.20,CRAIGARRAN LTD T/A CRAIGARRAN CARE HOME WITH NURSING.
Adult and Health Services,Central/Other,Debtors,930024,Debtor-free nursing care,01-Nov-2017,3356109-2409344,620.20,CRAIGARRAN LTD T/A CRAIGARRAN CARE HOME WITH NURSING.
Adult and Health Services,Central/Other,Debtors,930024,Debtor-free nursing care,01-Nov-2017,3356109-2411868,598.05,CRAIGARRAN LTD T/A CRAIGARRAN CARE HOME WITH NURSING.
Adult and Health Services,Head of Adults,Third Party Payments,474101,Purchase of Care,01-Nov-2017,3356109-2409309,"1,120.20",CRAIGARRAN LTD T/A CRAIGARRAN CARE HOME WITH NURSING.
Adult and Health Services,Head of Adults,Third Party Payments,474101,Purchase of Care,01-Nov-2017,3356109-2409313,"2,240.40",CRAIGARRAN LTD T/A CRAIGARRAN CARE HOME WITH NURSING.
Adult and Health Services,Head of Adults,Third Party Payments,474101,Purchase of Care,01-Nov-2017,3356109-2409318,"1,120.20",CRAIGARRAN LTD T/A CRAIGARRAN CARE HOME WITH NURSING.
Adult and Health Services,Head of Adults,Third Party Payments,474101,Purchase of Care,01-Nov-2017,3356109-2409320,"2,240.40",CRAIGARRAN LTD T/A CRAIGARRAN CARE HOME WITH NURSING.
Adult and Health Services,Head of Adults,Third Party Payments,474101,Purchase of Care,01-Nov-2017,3356109-2409322,"1,120.20",CRAIGARRAN LTD T/A CRAIGARRAN CARE HOME WITH NURSING.
Adult and Health Services,Head of Adults,Third Party Payments,474101,Purchase of Care,01-Nov-2017,3356109-2409323,"5,024.40",CRAIGARRAN LTD T/A CRAIGARRAN CARE HOME WITH NURSING.
Adult and Health Services,Head of Adults,Third Party Payments,474101,Purchase of Care,01-Nov-2017,3356109-2409325,"2,240.40",CRAIGARRAN LTD T/A CRAIGARRAN CARE HOME WITH NURSING.
Adult and Health Services,Head of Adults,Third Party Payments,474101,Purchase of Care,01-Nov-2017,3356109-2409327,"2,240.40",CRAIGARRAN LTD T/A CRAIGARRAN CARE HOME WITH NURSING.
Adult and Health Services,Head of Adults,Third Party Payments,474101,Purchase of Care,01-Nov-2017,3356109-2409329,"2,240.40",CRAIGARRAN LTD T/A CRAIGARRAN CARE HOME WITH NURSING.
Adult and Health Services,Head of Adults,Third Party Payments,474101,Purchase of Care,01-Nov-2017,3356109-2409333,"2,240.40",CRAIGARRAN LTD T/A CRAIGARRAN CARE HOME WITH NURSING.
Adult and Health Services,Head of Adults,Third Party Payments,474101,Purchase of Care,01-Nov-2017,3356109-2409339,"2,240.40",CRAIGARRAN LTD T/A CRAIGARRAN CARE HOME WITH NURSING.
Adult and Health Services,Head of Adults,Third Party Payments,474101,Purchase of Care,01-Nov-2017,3356109-2409343,"2,240.40",CRAIGARRAN LTD T/A CRAIGARRAN CARE HOME WITH NURSING.
Adult and Health Services,Head of Adults,Third Party Payments,474101,Purchase of Care,01-Nov-2017,3356109-2411867,"2,160.38",CRAIGARRAN LTD T/A CRAIGARRAN CARE HOME WITH NURSING.
Adult and Health Services,Head of Adults,Third Party Payments,470101,Purchase of Care,01-Nov-2017,3356109-2409335,"2,139.24",CRAIGARRAN LTD T/A CRAIGARRAN CARE HOME WITH NURSING.
Adult and Health Services,Head of Adults,Third Party Payments,470101,Purchase of Care,01-Nov-2017,3356109-2409336,"2,139.24",CRAIGARRAN LTD T/A CRAIGARRAN CARE HOME WITH NURSING.
Adult and Health Services,Head of Adults,Third Party Payments,470101,Purchase of Care,01-Nov-2017,3356109-2409338,"2,139.24",CRAIGARRAN LTD T/A CRAIGARRAN CARE HOME WITH NURSING.
Adult and Health Services,Head of Adults,Third Party Payments,470101,Purchase of Care,01-Nov-2017,3356109-2409341,"2,139.24",CRAIGARRAN LTD T/A CRAIGARRAN CARE HOME WITH NURSING.
Adult and Health Services,Head of Adults,Third Party Payments,470101,Purchase of Care,01-Nov-2017,3356109-2409345,"2,139.24",CRAIGARRAN LTD T/A CRAIGARRAN CARE HOME WITH NURSING.
Adult and Health Services,Head of Adults,Third Party Payments,471101,Purchase of Care,01-Nov-2017,3356109-2409308,"2,218.20",CRAIGARRAN LTD T/A CRAIGARRAN CARE HOME WITH NURSING.
Adult and Health Services,Head of Adults,Third Party Payments,471101,Purchase of Care,01-Nov-2017,3356109-2409315,"1,109.08",CRAIGARRAN LTD T/A CRAIGARRAN CARE HOME WITH NURSING.
Adult and Health Services,Head of Adults,Third Party Payments,471101,Purchase of Care,01-Nov-2017,3356109-2409317,"1,109.08",CRAIGARRAN LTD T/A CRAIGARRAN CARE HOME WITH NURSING.
Adult and Health Services,Head of Adults,Third Party Payments,471101,Purchase of Care,01-Nov-2017,3356109-2409331,"2,218.20",CRAIGARRAN LTD T/A CRAIGARRAN CARE HOME WITH NURSING.
Adult and Health Services,Head of Adults,Third Party Payments,471101,Purchase of Care,01-Nov-2017,3356109-2409342,"2,218.20",CRAIGARRAN LTD T/A CRAIGARRAN CARE HOME WITH NURSING.
Adult and Health Services,Central/Other,Debtors,930024,Debtor-free nursing care,01-Nov-2017,3356110-2410781,620.20,CROFT HOUSE RESIDENTIAL HOME.
Adult and Health Services,Central/Other,Debtors,930024,Debtor-free nursing care,01-Nov-2017,3356110-2410783,"1,085.35",CROFT HOUSE RESIDENTIAL HOME.
Adult and Health Services,Central/Other,Debtors,930024,Debtor-free nursing care,01-Nov-2017,3356110-2410786,620.20,CROFT HOUSE RESIDENTIAL HOME.
Adult and Health Services,Central/Other,Debtors,930024,Debtor-free nursing care,01-Nov-2017,3356110-2410787,620.20,CROFT HOUSE RESIDENTIAL HOME.
Adult and Health Services,Central/Other,Debtors,930024,Debtor-free nursing care,01-Nov-2017,3356110-2410801,620.20,CROFT HOUSE RESIDENTIAL HOME.
Adult and Health Services,Central/Other,Debtors,930024,Debtor-free nursing care,01-Nov-2017,3356110-2410803,620.20,CROFT HOUSE RESIDENTIAL HOME.
Adult and Health Services,Central/Other,Debtors,930024,Debtor-free nursing care,01-Nov-2017,3356110-2410805,620.20,CROFT HOUSE RESIDENTIAL HOME.
Adult and Health Services,Central/Other,Debtors,930024,Debtor-free nursing care,01-Nov-2017,3356110-2410811,620.20,CROFT HOUSE RESIDENTIAL HOME.
Adult and Health Services,Central/Other,Debtors,930024,Debtor-free nursing care,01-Nov-2017,3356110-2410817,620.20,CROFT HOUSE RESIDENTIAL HOME.
Adult and Health Services,Head of Adults,Third Party Payments,474101,Purchase of Care,01-Nov-2017,3356110-2410782,"3,920.70",CROFT HOUSE RESIDENTIAL HOME.
Adult and Health Services,Head of Adults,Third Party Payments,474101,Purchase of Care,01-Nov-2017,3356110-2410785,"2,240.40",CROFT HOUSE RESIDENTIAL HOME.
Adult and Health Services,Head of Adults,Third Party Payments,474101,Purchase of Care,01-Nov-2017,3356110-2410800,"1,372.56",CROFT HOUSE RESIDENTIAL HOME.
Adult and Health Services,Head of Adults,Third Party Payments,474101,Purchase of Care,01-Nov-2017,3356110-2410802,"1,666.28",CROFT HOUSE RESIDENTIAL HOME.
Adult and Health Services,Head of Adults,Third Party Payments,474101,Purchase of Care,01-Nov-2017,3356110-2410804,"2,240.40",CROFT HOUSE RESIDENTIAL HOME.
Adult and Health Services,Head of Adults,Third Party Payments,474101,Purchase of Care,01-Nov-2017,3356110-2410808,"1,120.20",CROFT HOUSE RESIDENTIAL HOME.
Adult and Health Services,Head of Adults,Third Party Payments,474101,Purchase of Care,01-Nov-2017,3356110-2410810,"2,433.04",CROFT HOUSE RESIDENTIAL HOME.
Adult and Health Services,Head of Adults,Third Party Payments,474101,Purchase of Care,01-Nov-2017,3356110-2410812,"1,120.20",CROFT HOUSE RESIDENTIAL HOME.
Adult and Health Services,Head of Adults,Third Party Payments,474101,Purchase of Care,01-Nov-2017,3356110-2410816,"2,240.40",CROFT HOUSE RESIDENTIAL HOME.
Adult and Health Services,Head of Adults,Third Party Payments,470101,Purchase of Care,01-Nov-2017,3356110-2410784,"2,139.24",CROFT HOUSE RESIDENTIAL HOME.
Adult and Health Services,Head of Adults,Third Party Payments,470101,Purchase of Care,01-Nov-2017,3356110-2410788,"2,062.83",CROFT HOUSE RESIDENTIAL HOME.
Adult and Health Services,Head of Adults,Third Party Payments,470101,Purchase of Care,01-Nov-2017,3356110-2410790,764.01,CROFT HOUSE RESIDENTIAL HOME.
Adult and Health Services,Head of Adults,Third Party Payments,470101,Purchase of Care,01-Nov-2017,3356110-2410794,"2,139.24",CROFT HOUSE RESIDENTIAL HOME.
Adult and Health Services,Head of Adults,Third Party Payments,470101,Purchase of Care,01-Nov-2017,3356110-2410795,"2,139.24",CROFT HOUSE RESIDENTIAL HOME.
Adult and Health Services,Head of Adults,Third Party Payments,470101,Purchase of Care,01-Nov-2017,3356110-2410796,"2,139.24",CROFT HOUSE RESIDENTIAL HOME.
Adult and Health Services,Head of Adults,Third Party Payments,470101,Purchase of Care,01-Nov-2017,3356110-2410797,"2,139.24",CROFT HOUSE RESIDENTIAL HOME.
Adult and Health Services,Head of Adults,Third Party Payments,470101,Purchase of Care,01-Nov-2017,3356110-2410798,"2,139.24",CROFT HOUSE RESIDENTIAL HOME.
Adult and Health Services,Head of Adults,Third Party Payments,470101,Purchase of Care,01-Nov-2017,3356110-2410799,"2,139.24",CROFT HOUSE RESIDENTIAL HOME.
Adult and Health Services,Head of Adults,Third Party Payments,470101,Purchase of Care,01-Nov-2017,3356110-2410807,"2,139.24",CROFT HOUSE RESIDENTIAL HOME.
Adult and Health Services,Head of Adults,Third Party Payments,470101,Purchase of Care,01-Nov-2017,3356110-2410814,"1,590.72",CROFT HOUSE RESIDENTIAL HOME.
Adult and Health Services,Head of Adults,Third Party Payments,470101,Purchase of Care,01-Nov-2017,3356110-2410815,"2,399.00",CROFT HOUSE RESIDENTIAL HOME.
Adult and Health Services,Head of Adults,Third Party Payments,471101,Purchase of Care,01-Nov-2017,3356110-2410780,"2,218.20",CROFT HOUSE RESIDENTIAL HOME.
Adult and Health Services,Head of Adults,Third Party Payments,471101,Purchase of Care,01-Nov-2017,3356110-2410789,"2,218.20",CROFT HOUSE RESIDENTIAL HOME.
Adult and Health Services,Head of Adults,Third Party Payments,471101,Purchase of Care,01-Nov-2017,3356110-2410792,"2,218.20",CROFT HOUSE RESIDENTIAL HOME.
Adult and Health Services,Head of Adults,Third Party Payments,471101,Purchase of Care,01-Nov-2017,3356110-2410793,"2,218.20",CROFT HOUSE RESIDENTIAL HOME.
Adult and Health Services,Head of Adults,Third Party Payments,471101,Purchase of Care,01-Nov-2017,3356110-2410806,"1,109.08",CROFT HOUSE RESIDENTIAL HOME.
Adult and Health Services,Head of Adults,Third Party Payments,470101,Purchase of Care,01-Nov-2017,3356111-2408794,"1,379.92",CROFT UNIT.
Adult and Health Services,Head of Adults,Third Party Payments,470101,Purchase of Care,01-Nov-2017,3356111-2408795,"2,388.32",CROFT UNIT.
Adult and Health Services,Head of Adults,Third Party Payments,470101,Purchase of Care,01-Nov-2017,3356111-2408796,"1,492.32",CROFT UNIT.
Adult and Health Services,Head of Adults,Third Party Payments,470101,Purchase of Care,01-Nov-2017,3356111-2408797,"1,492.32",CROFT UNIT.
Adult and Health Services,Head of Adults,Third Party Payments,470101,Purchase of Care,01-Nov-2017,3356111-2408798,"1,364.32",CROFT UNIT.
Adult and Health Services,Head of Adults,Third Party Payments,470101,Purchase of Care,01-Nov-2017,3356111-2408799,"2,831.04",CROFT UNIT.
Adult and Health Services,Head of Adults,Third Party Payments,470101,Purchase of Care,01-Nov-2017,3356111-2408800,"1,214.00",CROFT UNIT.
Adult and Health Services,Head of Adults,Third Party Payments,470101,Purchase of Care,01-Nov-2017,3356111-2408802,"2,428.00",CROFT UNIT.
Adult and Health Services,Head of Adults,Third Party Payments,470101,Purchase of Care,01-Nov-2017,3356111-2408803,"2,755.88",CROFT UNIT.
Adult and Health Services,Head of Adults,Third Party Payments,470101,Purchase of Care,01-Nov-2017,3356111-2408804,"1,880.52",CROFT UNIT.
Adult and Health Services,Head of Adults,Third Party Payments,470101,Purchase of Care,01-Nov-2017,3356111-2408805,"1,125.88",CROFT UNIT.
Adult and Health Services,Head of Adults,Third Party Payments,470101,Purchase of Care,01-Nov-2017,3356111-2412376,"1,627.98",CROFT UNIT.
Adult and Health Services,Central/Other,Debtors,930024,Debtor-free nursing care,01-Nov-2017,3356112-2410194,620.20,CROWN CARE VI LTD T/A SANDRINGHAM CARE HOME.
Adult and Health Services,Central/Other,Debtors,930024,Debtor-free nursing care,01-Nov-2017,3356112-2410195,620.20,CROWN CARE VI LTD T/A SANDRINGHAM CARE HOME.
Adult and Health Services,Central/Other,Debtors,930024,Debtor-free nursing care,01-Nov-2017,3356112-2410198,620.20,CROWN CARE VI LTD T/A SANDRINGHAM CARE HOME.
Adult and Health Services,Central/Other,Debtors,930024,Debtor-free nursing care,01-Nov-2017,3356112-2410200,620.20,CROWN CARE VI LTD T/A SANDRINGHAM CARE HOME.
Adult and Health Services,Central/Other,Debtors,930024,Debtor-free nursing care,01-Nov-2017,3356112-2410206,620.20,CROWN CARE VI LTD T/A SANDRINGHAM CARE HOME.
Adult and Health Services,Central/Other,Debtors,930024,Debtor-free nursing care,01-Nov-2017,3356112-2410217,620.20,CROWN CARE VI LTD T/A SANDRINGHAM CARE HOME.
Adult and Health Services,Central/Other,Debtors,930024,Debtor-free nursing care,01-Nov-2017,3356112-2410231,620.20,CROWN CARE VI LTD T/A SANDRINGHAM CARE HOME.
Adult and Health Services,Central/Other,Debtors,930024,Debtor-free nursing care,01-Nov-2017,3356112-2410242,620.20,CROWN CARE VI LTD T/A SANDRINGHAM CARE HOME.
Adult and Health Services,Central/Other,Debtors,930024,Debtor-free nursing care,01-Nov-2017,3356112-2410247,620.20,CROWN CARE VI LTD T/A SANDRINGHAM CARE HOME.
Adult and Health Services,Central/Other,Debtors,930024,Debtor-free nursing care,01-Nov-2017,3356112-2410252,620.20,CROWN CARE VI LTD T/A SANDRINGHAM CARE HOME.
Adult and Health Services,Central/Other,Debtors,930024,Debtor-free nursing care,01-Nov-2017,3356112-2410259,620.20,CROWN CARE VI LTD T/A SANDRINGHAM CARE HOME.
Adult and Health Services,Central/Other,Debtors,930024,Debtor-free nursing care,01-Nov-2017,3356112-2410262,620.20,CROWN CARE VI LTD T/A SANDRINGHAM CARE HOME.
Adult and Health Services,Central/Other,Debtors,930024,Debtor-free nursing care,01-Nov-2017,3356112-2410264,620.20,CROWN CARE VI LTD T/A SANDRINGHAM CARE HOME.
Adult and Health Services,Central/Other,Debtors,930024,Debtor-free nursing care,01-Nov-2017,3356112-2410266,620.20,CROWN CARE VI LTD T/A SANDRINGHAM CARE HOME.
Adult and Health Services,Central/Other,Debtors,930024,Debtor-free nursing care,01-Nov-2017,3356112-2410269,620.20,CROWN CARE VI LTD T/A SANDRINGHAM CARE HOME.
Adult and Health Services,Head of Adults,Third Party Payments,474101,Purchase of Care,01-Nov-2017,3356112-2410193,"2,240.40",CROWN CARE VI LTD T/A SANDRINGHAM CARE HOME.
Adult and Health Services,Head of Adults,Third Party Payments,474101,Purchase of Care,01-Nov-2017,3356112-2410199,"2,240.40",CROWN CARE VI LTD T/A SANDRINGHAM CARE HOME.
Adult and Health Services,Head of Adults,Third Party Payments,474101,Purchase of Care,01-Nov-2017,3356112-2410202,"1,120.20",CROWN CARE VI LTD T/A SANDRINGHAM CARE HOME.
Adult and Health Services,Head of Adults,Third Party Payments,474101,Purchase of Care,01-Nov-2017,3356112-2410205,"2,240.40",CROWN CARE VI LTD T/A SANDRINGHAM CARE HOME.
Adult and Health Services,Head of Adults,Third Party Payments,474101,Purchase of Care,01-Nov-2017,3356112-2410209,"1,120.20",CROWN CARE VI LTD T/A SANDRINGHAM CARE HOME.
Adult and Health Services,Head of Adults,Third Party Payments,474101,Purchase of Care,01-Nov-2017,3356112-2410214,"2,720.49",CROWN CARE VI LTD T/A SANDRINGHAM CARE HOME.
Adult and Health Services,Head of Adults,Third Party Payments,474101,Purchase of Care,01-Nov-2017,3356112-2410216,"2,240.40",CROWN CARE VI LTD T/A SANDRINGHAM CARE HOME.
Adult and Health Services,Head of Adults,Third Party Payments,474101,Purchase of Care,01-Nov-2017,3356112-2410219,"1,120.20",CROWN CARE VI LTD T/A SANDRINGHAM CARE HOME.
Adult and Health Services,Head of Adults,Third Party Payments,474101,Purchase of Care,01-Nov-2017,3356112-2410230,"2,240.40",CROWN CARE VI LTD T/A SANDRINGHAM CARE HOME.
Adult and Health Services,Head of Adults,Third Party Payments,474101,Purchase of Care,01-Nov-2017,3356112-2410239,"1,120.20",CROWN CARE VI LTD T/A SANDRINGHAM CARE HOME.
Adult and Health Services,Head of Adults,Third Party Payments,474101,Purchase of Care,01-Nov-2017,3356112-2410241,"2,240.40",CROWN CARE VI LTD T/A SANDRINGHAM CARE HOME.
Adult and Health Services,Head of Adults,Third Party Payments,474101,Purchase of Care,01-Nov-2017,3356112-2410246,"2,240.40",CROWN CARE VI LTD T/A SANDRINGHAM CARE HOME.
Adult and Health Services,Head of Adults,Third Party Payments,474101,Purchase of Care,01-Nov-2017,3356112-2410251,"2,240.40",CROWN CARE VI LTD T/A SANDRINGHAM CARE HOME.
Adult and Health Services,Head of Adults,Third Party Payments,474101,Purchase of Care,01-Nov-2017,3356112-2410258,"2,240.40",CROWN CARE VI LTD T/A SANDRINGHAM CARE HOME.
Adult and Health Services,Head of Adults,Third Party Payments,474101,Purchase of Care,01-Nov-2017,3356112-2410263,"2,240.40",CROWN CARE VI LTD T/A SANDRINGHAM CARE HOME.
Adult and Health Services,Head of Adults,Third Party Payments,474101,Purchase of Care,01-Nov-2017,3356112-2410265,"2,240.40",CROWN CARE VI LTD T/A SANDRINGHAM CARE HOME.
Adult and Health Services,Head of Adults,Third Party Payments,474101,Purchase of Care,01-Nov-2017,3356112-2410268,"2,240.40",CROWN CARE VI LTD T/A SANDRINGHAM CARE HOME.
Adult and Health Services,Head of Adults,Third Party Payments,470101,Purchase of Care,01-Nov-2017,3356112-2410196,"1,298.82",CROWN CARE VI LTD T/A SANDRINGHAM CARE HOME.
Adult and Health Services,Head of Adults,Third Party Payments,470101,Purchase of Care,01-Nov-2017,3356112-2410197,"2,139.24",CROWN CARE VI LTD T/A SANDRINGHAM CARE HOME.
Adult and Health Services,Head of Adults,Third Party Payments,470101,Purchase of Care,01-Nov-2017,3356112-2410221,"2,139.24",CROWN CARE VI LTD T/A SANDRINGHAM CARE HOME.
Adult and Health Services,Head of Adults,Third Party Payments,470101,Purchase of Care,01-Nov-2017,3356112-2410223,"2,139.24",CROWN CARE VI LTD T/A SANDRINGHAM CARE HOME.
Adult and Health Services,Head of Adults,Third Party Payments,470101,Purchase of Care,01-Nov-2017,3356112-2410226,"2,139.24",CROWN CARE VI LTD T/A SANDRINGHAM CARE HOME.
Adult and Health Services,Head of Adults,Third Party Payments,470101,Purchase of Care,01-Nov-2017,3356112-2410228,"2,139.24",CROWN CARE VI LTD T/A SANDRINGHAM CARE HOME.
Adult and Health Services,Head of Adults,Third Party Payments,470101,Purchase of Care,01-Nov-2017,3356112-2410234,"2,139.24",CROWN CARE VI LTD T/A SANDRINGHAM CARE HOME.
Adult and Health Services,Head of Adults,Third Party Payments,470101,Purchase of Care,01-Nov-2017,3356112-2410235,"1,069.64",CROWN CARE VI LTD T/A SANDRINGHAM CARE HOME.
Adult and Health Services,Head of Adults,Third Party Payments,470101,Purchase of Care,01-Nov-2017,3356112-2410243,"2,139.24",CROWN CARE VI LTD T/A SANDRINGHAM CARE HOME.
Adult and Health Services,Head of Adults,Third Party Payments,470101,Purchase of Care,01-Nov-2017,3356112-2410244,"2,139.24",CROWN CARE VI LTD T/A SANDRINGHAM CARE HOME.
Adult and Health Services,Head of Adults,Third Party Payments,470101,Purchase of Care,01-Nov-2017,3356112-2410250,"2,139.24",CROWN CARE VI LTD T/A SANDRINGHAM CARE HOME.
Adult and Health Services,Head of Adults,Third Party Payments,470101,Purchase of Care,01-Nov-2017,3356112-2410255,"2,139.24",CROWN CARE VI LTD T/A SANDRINGHAM CARE HOME.
Adult and Health Services,Head of Adults,Third Party Payments,470101,Purchase of Care,01-Nov-2017,3356112-2410256,"2,139.24",CROWN CARE VI LTD T/A SANDRINGHAM CARE HOME.
Adult and Health Services,Head of Adults,Third Party Payments,470101,Purchase of Care,01-Nov-2017,3356112-2410257,"2,139.24",CROWN CARE VI LTD T/A SANDRINGHAM CARE HOME.
Adult and Health Services,Head of Adults,Third Party Payments,470101,Purchase of Care,01-Nov-2017,3356112-2410267,"2,139.24",CROWN CARE VI LTD T/A SANDRINGHAM CARE HOME.
Adult and Health Services,Head of Adults,Third Party Payments,470101,Purchase of Care,01-Nov-2017,3356112-2411988,"1,375.23",CROWN CARE VI LTD T/A SANDRINGHAM CARE HOME.
Adult and Health Services,Head of Adults,Third Party Payments,470101,Purchase of Care,01-Nov-2017,3356112-2411991,"2,139.24",CROWN CARE VI LTD T/A SANDRINGHAM CARE HOME.
Adult and Health Services,Head of Adults,Third Party Payments,470101,Purchase of Care,01-Nov-2017,3356112-2412210,"1,451.63",CROWN CARE VI LTD T/A SANDRINGHAM CARE HOME.
Adult and Health Services,Head of Adults,Third Party Payments,470101,Purchase of Care,01-Nov-2017,3356112-2412216,993.21,CROWN CARE VI LTD T/A SANDRINGHAM CARE HOME.
Adult and Health Services,Head of Adults,Third Party Payments,471101,Purchase of Care,01-Nov-2017,3356112-2410201,"2,218.20",CROWN CARE VI LTD T/A SANDRINGHAM CARE HOME.
Adult and Health Services,Head of Adults,Third Party Payments,471101,Purchase of Care,01-Nov-2017,3356112-2410204,"5,387.06",CROWN CARE VI LTD T/A SANDRINGHAM CARE HOME.
Adult and Health Services,Head of Adults,Third Party Payments,471101,Purchase of Care,01-Nov-2017,3356112-2410207,"1,346.76",CROWN CARE VI LTD T/A SANDRINGHAM CARE HOME.
Adult and Health Services,Head of Adults,Third Party Payments,471101,Purchase of Care,01-Nov-2017,3356112-2410208,"2,218.20",CROWN CARE VI LTD T/A SANDRINGHAM CARE HOME.
Adult and Health Services,Head of Adults,Third Party Payments,471101,Purchase of Care,01-Nov-2017,3356112-2410211,"2,218.20",CROWN CARE VI LTD T/A SANDRINGHAM CARE HOME.
Adult and Health Services,Head of Adults,Third Party Payments,471101,Purchase of Care,01-Nov-2017,3356112-2410212,"2,218.20",CROWN CARE VI LTD T/A SANDRINGHAM CARE HOME.
Adult and Health Services,Head of Adults,Third Party Payments,471101,Purchase of Care,01-Nov-2017,3356112-2410213,"2,218.20",CROWN CARE VI LTD T/A SANDRINGHAM CARE HOME.
Adult and Health Services,Head of Adults,Third Party Payments,471101,Purchase of Care,01-Nov-2017,3356112-2410218,"2,218.20",CROWN CARE VI LTD T/A SANDRINGHAM CARE HOME.
Adult and Health Services,Head of Adults,Third Party Payments,471101,Purchase of Care,01-Nov-2017,3356112-2410222,"1,109.12",CROWN CARE VI LTD T/A SANDRINGHAM CARE HOME.
Adult and Health Services,Head of Adults,Third Party Payments,471101,Purchase of Care,01-Nov-2017,3356112-2410224,"2,218.20",CROWN CARE VI LTD T/A SANDRINGHAM CARE HOME.
Adult and Health Services,Head of Adults,Third Party Payments,471101,Purchase of Care,01-Nov-2017,3356112-2410225,"1,109.12",CROWN CARE VI LTD T/A SANDRINGHAM CARE HOME.
Adult and Health Services,Head of Adults,Third Party Payments,471101,Purchase of Care,01-Nov-2017,3356112-2410227,"2,218.20",CROWN CARE VI LTD T/A SANDRINGHAM CARE HOME.
Adult and Health Services,Head of Adults,Third Party Payments,471101,Purchase of Care,01-Nov-2017,3356112-2410232,"2,218.20",CROWN CARE VI LTD T/A SANDRINGHAM CARE HOME.
Adult and Health Services,Head of Adults,Third Party Payments,471101,Purchase of Care,01-Nov-2017,3356112-2410237,"2,218.20",CROWN CARE VI LTD T/A SANDRINGHAM CARE HOME.
Adult and Health Services,Head of Adults,Third Party Payments,471101,Purchase of Care,01-Nov-2017,3356112-2410238,"1,109.12",CROWN CARE VI LTD T/A SANDRINGHAM CARE HOME.
Adult and Health Services,Head of Adults,Third Party Payments,471101,Purchase of Care,01-Nov-2017,3356112-2410245,"1,109.12",CROWN CARE VI LTD T/A SANDRINGHAM CARE HOME.
Adult and Health Services,Head of Adults,Third Party Payments,471101,Purchase of Care,01-Nov-2017,3356112-2410248,712.99,CROWN CARE VI LTD T/A SANDRINGHAM CARE HOME.
Adult and Health Services,Head of Adults,Third Party Payments,471101,Purchase of Care,01-Nov-2017,3356112-2410249,"2,218.20",CROWN CARE VI LTD T/A SANDRINGHAM CARE HOME.
Adult and Health Services,Head of Adults,Third Party Payments,471101,Purchase of Care,01-Nov-2017,3356112-2410253,"2,218.20",CROWN CARE VI LTD T/A SANDRINGHAM CARE HOME.
Adult and Health Services,Head of Adults,Third Party Payments,471101,Purchase of Care,01-Nov-2017,3356112-2410254,"2,218.20",CROWN CARE VI LTD T/A SANDRINGHAM CARE HOME.
Adult and Health Services,Head of Adults,Third Party Payments,471101,Purchase of Care,01-Nov-2017,3356112-2411987,"3,327.30",CROWN CARE VI LTD T/A SANDRINGHAM CARE HOME.
Adult and Health Services,Head of Adults,Third Party Payments,474101,Purchase of Care,01-Nov-2017,3356113-2409486,"4,200.00",DANSHELL HEALTHCARE LTD T/A OAKLANDS CARE HOME.
Adult and Health Services,Head of Adults,Third Party Payments,470101,Purchase of Care,01-Nov-2017,3356113-2409487,"7,152.00",DANSHELL HEALTHCARE LTD T/A OAKLANDS CARE HOME.
Adult and Health Services,Central/Other,Debtors,930024,Debtor-free nursing care,01-Nov-2017,3356114-2410023,620.20,DANSHELL HEALTHCARE LTD T/A THORNFIELD GRANGE.
Adult and Health Services,Central/Other,Debtors,930024,Debtor-free nursing care,01-Nov-2017,3356114-2410026,620.20,DANSHELL HEALTHCARE LTD T/A THORNFIELD GRANGE.
Adult and Health Services,Head of Adults,Third Party Payments,474101,Purchase of Care,01-Nov-2017,3356114-2410021,"5,292.00",DANSHELL HEALTHCARE LTD T/A THORNFIELD GRANGE.
Adult and Health Services,Head of Adults,Third Party Payments,474101,Purchase of Care,01-Nov-2017,3356114-2410024,"4,500.00",DANSHELL HEALTHCARE LTD T/A THORNFIELD GRANGE.
Adult and Health Services,Head of Adults,Third Party Payments,470101,Purchase of Care,01-Nov-2017,3356114-2409639,"4,200.00",DANSHELL HEALTHCARE LTD T/A THORNFIELD GRANGE.
Adult and Health Services,Head of Adults,Third Party Payments,470101,Purchase of Care,01-Nov-2017,3356114-2409640,"2,520.00",DANSHELL HEALTHCARE LTD T/A THORNFIELD GRANGE.
Adult and Health Services,Head of Adults,Third Party Payments,470101,Purchase of Care,01-Nov-2017,3356114-2409641,"4,088.00",DANSHELL HEALTHCARE LTD T/A THORNFIELD GRANGE.
Adult and Health Services,Head of Adults,Third Party Payments,470101,Purchase of Care,01-Nov-2017,3356114-2409642,"2,310.00",DANSHELL HEALTHCARE LTD T/A THORNFIELD GRANGE.
Adult and Health Services,Head of Adults,Third Party Payments,470101,Purchase of Care,01-Nov-2017,3356114-2409643,"4,804.00",DANSHELL HEALTHCARE LTD T/A THORNFIELD GRANGE.
Adult and Health Services,Head of Adults,Third Party Payments,470101,Purchase of Care,01-Nov-2017,3356114-2409644,"1,680.00",DANSHELL HEALTHCARE LTD T/A THORNFIELD GRANGE.
Adult and Health Services,Head of Adults,Third Party Payments,470101,Purchase of Care,01-Nov-2017,3356114-2409645,"11,900.00",DANSHELL HEALTHCARE LTD T/A THORNFIELD GRANGE.
Adult and Health Services,Head of Adults,Third Party Payments,470101,Purchase of Care,01-Nov-2017,3356114-2409646,"4,800.00",DANSHELL HEALTHCARE LTD T/A THORNFIELD GRANGE.
Adult and Health Services,Head of Adults,Third Party Payments,470101,Purchase of Care,01-Nov-2017,3356114-2410022,"4,412.00",DANSHELL HEALTHCARE LTD T/A THORNFIELD GRANGE.
Adult and Health Services,Head of Adults,Third Party Payments,470101,Purchase of Care,01-Nov-2017,3356114-2410025,"1,903.44",DANSHELL HEALTHCARE LTD T/A THORNFIELD GRANGE.
Adult and Health Services,Head of Adults,Third Party Payments,470101,Purchase of Care,01-Nov-2017,3356115-2409485,"1,008.00",DARLINGTON MANOR CARE HOME.
Adult and Health Services,Head of Adults,Third Party Payments,470101,Purchase of Care,01-Nov-2017,3356116-2411510,"6,027.08",DARWIN PLACE CARE HOME.
Adult and Health Services,Central/Other,Debtors,930024,Debtor-free nursing care,01-Nov-2017,3356117-2409764,553.75,DEFOE COURT.
Adult and Health Services,Central/Other,Debtors,930024,Debtor-free nursing care,01-Nov-2017,3356117-2409769,620.20,DEFOE COURT.
Adult and Health Services,Central/Other,Debtors,930024,Debtor-free nursing care,01-Nov-2017,3356117-2409771,620.20,DEFOE COURT.
Adult and Health Services,Central/Other,Debtors,930024,Debtor-free nursing care,01-Nov-2017,3356117-2409773,620.20,DEFOE COURT.
Adult and Health Services,Central/Other,Debtors,930024,Debtor-free nursing care,01-Nov-2017,3356117-2409775,620.20,DEFOE COURT.
Adult and Health Services,Central/Other,Debtors,930024,Debtor-free nursing care,01-Nov-2017,3356117-2409778,620.20,DEFOE COURT.
Adult and Health Services,Central/Other,Debtors,930024,Debtor-free nursing care,01-Nov-2017,3356117-2409780,620.20,DEFOE COURT.
Adult and Health Services,Central/Other,Debtors,930024,Debtor-free nursing care,01-Nov-2017,3356117-2409782,620.20,DEFOE COURT.
Adult and Health Services,Central/Other,Debtors,930024,Debtor-free nursing care,01-Nov-2017,3356117-2409785,620.20,DEFOE COURT.
Adult and Health Services,Central/Other,Debtors,930024,Debtor-free nursing care,01-Nov-2017,3356117-2409788,620.20,DEFOE COURT.
Adult and Health Services,Central/Other,Debtors,930024,Debtor-free nursing care,01-Nov-2017,3356117-2409790,620.20,DEFOE COURT.
Adult and Health Services,Central/Other,Debtors,930024,Debtor-free nursing care,01-Nov-2017,3356117-2409792,620.20,DEFOE COURT.
Adult and Health Services,Head of Adults,Third Party Payments,474101,Purchase of Care,01-Nov-2017,3356117-2409763,"2,071.78",DEFOE COURT.
Adult and Health Services,Head of Adults,Third Party Payments,474101,Purchase of Care,01-Nov-2017,3356117-2409768,"2,320.40",DEFOE COURT.
Adult and Health Services,Head of Adults,Third Party Payments,474101,Purchase of Care,01-Nov-2017,3356117-2409770,"2,240.40",DEFOE COURT.
Adult and Health Services,Head of Adults,Third Party Payments,474101,Purchase of Care,01-Nov-2017,3356117-2409772,"2,240.40",DEFOE COURT.
Adult and Health Services,Head of Adults,Third Party Payments,474101,Purchase of Care,01-Nov-2017,3356117-2409777,"2,240.40",DEFOE COURT.
Adult and Health Services,Head of Adults,Third Party Payments,474101,Purchase of Care,01-Nov-2017,3356117-2409779,"2,240.40",DEFOE COURT.
Adult and Health Services,Head of Adults,Third Party Payments,474101,Purchase of Care,01-Nov-2017,3356117-2409781,"2,240.40",DEFOE COURT.
Adult and Health Services,Head of Adults,Third Party Payments,474101,Purchase of Care,01-Nov-2017,3356117-2409784,"2,240.40",DEFOE COURT.
Adult and Health Services,Head of Adults,Third Party Payments,474101,Purchase of Care,01-Nov-2017,3356117-2409787,"2,240.40",DEFOE COURT.
Adult and Health Services,Head of Adults,Third Party Payments,474101,Purchase of Care,01-Nov-2017,3356117-2409789,"2,240.40",DEFOE COURT.
Adult and Health Services,Head of Adults,Third Party Payments,474101,Purchase of Care,01-Nov-2017,3356117-2409791,"2,240.40",DEFOE COURT.
Adult and Health Services,Head of Adults,Third Party Payments,470101,Purchase of Care,01-Nov-2017,3356117-2409758,"2,219.24",DEFOE COURT.
Adult and Health Services,Head of Adults,Third Party Payments,470101,Purchase of Care,01-Nov-2017,3356117-2409759,"2,219.24",DEFOE COURT.
Adult and Health Services,Head of Adults,Third Party Payments,470101,Purchase of Care,01-Nov-2017,3356117-2409761,"2,139.24",DEFOE COURT.
Adult and Health Services,Head of Adults,Third Party Payments,470101,Purchase of Care,01-Nov-2017,3356117-2409765,"2,139.24",DEFOE COURT.
Adult and Health Services,Head of Adults,Third Party Payments,470101,Purchase of Care,01-Nov-2017,3356117-2409766,"2,139.24",DEFOE COURT.
Adult and Health Services,Head of Adults,Third Party Payments,470101,Purchase of Care,01-Nov-2017,3356117-2409767,"2,139.24",DEFOE COURT.
Adult and Health Services,Head of Adults,Third Party Payments,470101,Purchase of Care,01-Nov-2017,3356117-2409774,"2,139.24",DEFOE COURT.
Adult and Health Services,Head of Adults,Third Party Payments,470101,Purchase of Care,01-Nov-2017,3356117-2409776,"2,219.24",DEFOE COURT.
Adult and Health Services,Head of Adults,Third Party Payments,470101,Purchase of Care,01-Nov-2017,3356117-2409783,"2,139.24",DEFOE COURT.
Adult and Health Services,Head of Adults,Third Party Payments,470101,Purchase of Care,01-Nov-2017,3356117-2409793,"2,139.24",DEFOE COURT.
Adult and Health Services,Head of Adults,Third Party Payments,470101,Purchase of Care,01-Nov-2017,3356117-2409794,"2,139.24",DEFOE COURT.
Adult and Health Services,Head of Adults,Third Party Payments,470101,Purchase of Care,01-Nov-2017,3356117-2409795,573.02,DEFOE COURT.
Adult and Health Services,Head of Adults,Third Party Payments,470101,Purchase of Care,01-Nov-2017,3356117-2409796,"2,139.24",DEFOE COURT.
Adult and Health Services,Head of Adults,Third Party Payments,470101,Purchase of Care,01-Nov-2017,3356117-2412139,"1,799.25",DEFOE COURT.
Adult and Health Services,Head of Adults,Third Party Payments,471101,Purchase of Care,01-Nov-2017,3356117-2409786,"1,109.12",DEFOE COURT.
Adult and Health Services,Head of Adults,Third Party Payments,470101,Purchase of Care,01-Nov-2017,3356118-2410504,"2,139.24",DERWENT CARE HOME.
Adult and Health Services,Head of Adults,Third Party Payments,470101,Purchase of Care,01-Nov-2017,3356118-2410507,"2,139.24",DERWENT CARE HOME.
Adult and Health Services,Head of Adults,Third Party Payments,470101,Purchase of Care,01-Nov-2017,3356118-2410508,"2,139.24",DERWENT CARE HOME.
Adult and Health Services,Head of Adults,Third Party Payments,470101,Purchase of Care,01-Nov-2017,3356118-2410511,"2,139.24",DERWENT CARE HOME.
Adult and Health Services,Head of Adults,Third Party Payments,470101,Purchase of Care,01-Nov-2017,3356118-2410512,534.81,DERWENT CARE HOME.
Adult and Health Services,Head of Adults,Third Party Payments,470101,Purchase of Care,01-Nov-2017,3356118-2410513,"2,139.24",DERWENT CARE HOME.
Adult and Health Services,Head of Adults,Third Party Payments,470101,Purchase of Care,01-Nov-2017,3356118-2410517,"2,139.24",DERWENT CARE HOME.
Adult and Health Services,Head of Adults,Third Party Payments,471101,Purchase of Care,01-Nov-2017,3356118-2410501,"1,109.10",DERWENT CARE HOME.
Adult and Health Services,Head of Adults,Third Party Payments,471101,Purchase of Care,01-Nov-2017,3356118-2410502,"1,901.31",DERWENT CARE HOME.
Adult and Health Services,Head of Adults,Third Party Payments,471101,Purchase of Care,01-Nov-2017,3356118-2410505,"2,218.20",DERWENT CARE HOME.
Adult and Health Services,Head of Adults,Third Party Payments,471101,Purchase of Care,01-Nov-2017,3356118-2410506,"2,218.20",DERWENT CARE HOME.
Adult and Health Services,Head of Adults,Third Party Payments,471101,Purchase of Care,01-Nov-2017,3356118-2410514,"2,218.20",DERWENT CARE HOME.
Adult and Health Services,Head of Adults,Third Party Payments,471101,Purchase of Care,01-Nov-2017,3356118-2410515,"1,109.08",DERWENT CARE HOME.
Adult and Health Services,Head of Adults,Third Party Payments,471101,Purchase of Care,01-Nov-2017,3356118-2410516,"2,218.20",DERWENT CARE HOME.
Adult and Health Services,Head of Adults,Third Party Payments,470101,Purchase of Care,01-Nov-2017,3356119-2407691,"2,139.24",DEVONSHIRE HOUSE CARE HOME.
Adult and Health Services,Head of Adults,Third Party Payments,470101,Purchase of Care,01-Nov-2017,3356119-2407692,"2,206.72",DEVONSHIRE HOUSE CARE HOME.
Adult and Health Services,Head of Adults,Third Party Payments,470101,Purchase of Care,01-Nov-2017,3356119-2407693,"1,494.20",DEVONSHIRE HOUSE CARE HOME.
Adult and Health Services,Head of Adults,Third Party Payments,470101,Purchase of Care,01-Nov-2017,3356119-2407694,"2,206.72",DEVONSHIRE HOUSE CARE HOME.
Adult and Health Services,Head of Adults,Third Party Payments,470101,Purchase of Care,01-Nov-2017,3356119-2407695,"2,077.32",DEVONSHIRE HOUSE CARE HOME.
Adult and Health Services,Head of Adults,Third Party Payments,470101,Purchase of Care,01-Nov-2017,3356119-2407696,"2,077.32",DEVONSHIRE HOUSE CARE HOME.
Adult and Health Services,Head of Adults,Third Party Payments,470101,Purchase of Care,01-Nov-2017,3356119-2407697,"2,077.32",DEVONSHIRE HOUSE CARE HOME.
Adult and Health Services,Head of Adults,Third Party Payments,470101,Purchase of Care,01-Nov-2017,3356119-2407698,"1,601.64",DEVONSHIRE HOUSE CARE HOME.
Adult and Health Services,Head of Adults,Third Party Payments,470101,Purchase of Care,01-Nov-2017,3356119-2407699,"2,139.24",DEVONSHIRE HOUSE CARE HOME.
Adult and Health Services,Head of Adults,Third Party Payments,470101,Purchase of Care,01-Nov-2017,3356119-2407700,"2,139.24",DEVONSHIRE HOUSE CARE HOME.
Adult and Health Services,Head of Adults,Third Party Payments,470101,Purchase of Care,01-Nov-2017,3356119-2407701,"2,139.24",DEVONSHIRE HOUSE CARE HOME.
Adult and Health Services,Head of Adults,Third Party Payments,470101,Purchase of Care,01-Nov-2017,3356119-2412110,993.21,DEVONSHIRE HOUSE CARE HOME.
Adult and Health Services,Head of Adults,Third Party Payments,470101,Purchase of Care,01-Nov-2017,3356119-2412111,"2,215.64",DEVONSHIRE HOUSE CARE HOME.
Adult and Health Services,Central/Other,Debtors,930024,Debtor-free nursing care,01-Nov-2017,3356120-2411465,620.20,DIPTON CARE HOME LTD.
Adult and Health Services,Central/Other,Debtors,930024,Debtor-free nursing care,01-Nov-2017,3356120-2411470,620.20,DIPTON CARE HOME LTD.
Adult and Health Services,Central/Other,Debtors,930024,Debtor-free nursing care,01-Nov-2017,3356120-2411473,620.20,DIPTON CARE HOME LTD.
Adult and Health Services,Central/Other,Debtors,930024,Debtor-free nursing care,01-Nov-2017,3356120-2411476,620.20,DIPTON CARE HOME LTD.
Adult and Health Services,Central/Other,Debtors,930024,Debtor-free nursing care,01-Nov-2017,3356120-2411480,620.20,DIPTON CARE HOME LTD.
Adult and Health Services,Central/Other,Debtors,930024,Debtor-free nursing care,01-Nov-2017,3356120-2411498,620.20,DIPTON CARE HOME LTD.
Adult and Health Services,Central/Other,Debtors,930024,Debtor-free nursing care,01-Nov-2017,3356120-2411682,"3,101.00",DIPTON CARE HOME LTD.
Adult and Health Services,Head of Adults,Third Party Payments,474101,Purchase of Care,01-Nov-2017,3356120-2411464,"2,240.40",DIPTON CARE HOME LTD.
Adult and Health Services,Head of Adults,Third Party Payments,474101,Purchase of Care,01-Nov-2017,3356120-2411469,"2,240.40",DIPTON CARE HOME LTD.
Adult and Health Services,Head of Adults,Third Party Payments,470101,Purchase of Care,01-Nov-2017,3356120-2411466,"2,139.24",DIPTON CARE HOME LTD.
Adult and Health Services,Head of Adults,Third Party Payments,470101,Purchase of Care,01-Nov-2017,3356120-2411475,"2,139.24",DIPTON CARE HOME LTD.
Adult and Health Services,Head of Adults,Third Party Payments,470101,Purchase of Care,01-Nov-2017,3356120-2411478,764.01,DIPTON CARE HOME LTD.
Adult and Health Services,Head of Adults,Third Party Payments,470101,Purchase of Care,01-Nov-2017,3356120-2411479,"2,139.24",DIPTON CARE HOME LTD.
Adult and Health Services,Head of Adults,Third Party Payments,470101,Purchase of Care,01-Nov-2017,3356120-2411487,"2,139.24",DIPTON CARE HOME LTD.
Adult and Health Services,Head of Adults,Third Party Payments,470101,Purchase of Care,01-Nov-2017,3356120-2411489,"2,139.24",DIPTON CARE HOME LTD.
Adult and Health Services,Head of Adults,Third Party Payments,470101,Purchase of Care,01-Nov-2017,3356120-2411490,"2,139.24",DIPTON CARE HOME LTD.
Adult and Health Services,Head of Adults,Third Party Payments,470101,Purchase of Care,01-Nov-2017,3356120-2411491,"2,139.24",DIPTON CARE HOME LTD.
Adult and Health Services,Head of Adults,Third Party Payments,470101,Purchase of Care,01-Nov-2017,3356120-2411494,"2,139.24",DIPTON CARE HOME LTD.
Adult and Health Services,Head of Adults,Third Party Payments,470101,Purchase of Care,01-Nov-2017,3356120-2411496,"2,139.24",DIPTON CARE HOME LTD.
Adult and Health Services,Head of Adults,Third Party Payments,470101,Purchase of Care,01-Nov-2017,3356120-2411497,"2,139.24",DIPTON CARE HOME LTD.
Adult and Health Services,Head of Adults,Third Party Payments,470101,Purchase of Care,01-Nov-2017,3356120-2411499,"2,139.24",DIPTON CARE HOME LTD.
Adult and Health Services,Head of Adults,Third Party Payments,470101,Purchase of Care,01-Nov-2017,3356120-2411501,"2,139.24",DIPTON CARE HOME LTD.
Adult and Health Services,Head of Adults,Third Party Payments,470101,Purchase of Care,01-Nov-2017,3356120-2411502,"2,139.24",DIPTON CARE HOME LTD.
Adult and Health Services,Head of Adults,Third Party Payments,470101,Purchase of Care,01-Nov-2017,3356120-2411503,"2,139.24",DIPTON CARE HOME LTD.
Adult and Health Services,Head of Adults,Third Party Payments,470101,Purchase of Care,01-Nov-2017,3356120-2411504,"2,139.24",DIPTON CARE HOME LTD.
Adult and Health Services,Head of Adults,Third Party Payments,470101,Purchase of Care,01-Nov-2017,3356120-2412007,"1,528.02",DIPTON CARE HOME LTD.
Adult and Health Services,Head of Adults,Third Party Payments,470101,Purchase of Care,01-Nov-2017,3356120-2412008,611.21,DIPTON CARE HOME LTD.
Adult and Health Services,Head of Adults,Third Party Payments,471101,Purchase of Care,01-Nov-2017,3356120-2411463,"2,218.20",DIPTON CARE HOME LTD.
Adult and Health Services,Head of Adults,Third Party Payments,471101,Purchase of Care,01-Nov-2017,3356120-2411471,"2,218.20",DIPTON CARE HOME LTD.
Adult and Health Services,Head of Adults,Third Party Payments,471101,Purchase of Care,01-Nov-2017,3356120-2411472,"2,218.20",DIPTON CARE HOME LTD.
Adult and Health Services,Head of Adults,Third Party Payments,471101,Purchase of Care,01-Nov-2017,3356120-2411474,"2,218.20",DIPTON CARE HOME LTD.
Adult and Health Services,Head of Adults,Third Party Payments,471101,Purchase of Care,01-Nov-2017,3356120-2411481,"2,218.20",DIPTON CARE HOME LTD.
Adult and Health Services,Head of Adults,Third Party Payments,471101,Purchase of Care,01-Nov-2017,3356120-2411482,"2,218.20",DIPTON CARE HOME LTD.
Adult and Health Services,Head of Adults,Third Party Payments,471101,Purchase of Care,01-Nov-2017,3356120-2411483,"1,663.65",DIPTON CARE HOME LTD.
Adult and Health Services,Head of Adults,Third Party Payments,471101,Purchase of Care,01-Nov-2017,3356120-2411484,"2,218.20",DIPTON CARE HOME LTD.
Adult and Health Services,Head of Adults,Third Party Payments,471101,Purchase of Care,01-Nov-2017,3356120-2411485,"2,218.20",DIPTON CARE HOME LTD.
Adult and Health Services,Head of Adults,Third Party Payments,471101,Purchase of Care,01-Nov-2017,3356120-2411486,"2,218.20",DIPTON CARE HOME LTD.
Adult and Health Services,Head of Adults,Third Party Payments,471101,Purchase of Care,01-Nov-2017,3356120-2411488,"2,218.20",DIPTON CARE HOME LTD.
Adult and Health Services,Head of Adults,Third Party Payments,471101,Purchase of Care,01-Nov-2017,3356120-2411492,"2,218.20",DIPTON CARE HOME LTD.
Adult and Health Services,Head of Adults,Third Party Payments,471101,Purchase of Care,01-Nov-2017,3356120-2411493,"2,218.20",DIPTON CARE HOME LTD.
Adult and Health Services,Head of Adults,Third Party Payments,471101,Purchase of Care,01-Nov-2017,3356120-2411495,"2,218.20",DIPTON CARE HOME LTD.
Adult and Health Services,Head of Adults,Third Party Payments,471101,Purchase of Care,01-Nov-2017,3356120-2411500,"2,218.20",DIPTON CARE HOME LTD.
Adult and Health Services,Head of Adults,Third Party Payments,471101,Purchase of Care,01-Nov-2017,3356120-2412004,"1,109.12",DIPTON CARE HOME LTD.
Adult and Health Services,Head of Adults,Third Party Payments,471101,Purchase of Care,01-Nov-2017,3356120-2412005,"1,188.32",DIPTON CARE HOME LTD.
Adult and Health Services,Head of Adults,Third Party Payments,471101,Purchase of Care,01-Nov-2017,3356120-2412006,"1,029.87",DIPTON CARE HOME LTD.
Adult and Health Services,Central/Other,Debtors,930024,Debtor-free nursing care,01-Nov-2017,3356121-2407657,620.20,DR ANDREW ASHDOWN (DENEHURST NURSING HOME).
Adult and Health Services,Central/Other,Debtors,930024,Debtor-free nursing care,01-Nov-2017,3356121-2407661,620.20,DR ANDREW ASHDOWN (DENEHURST NURSING HOME).
Adult and Health Services,Central/Other,Debtors,930024,Debtor-free nursing care,01-Nov-2017,3356121-2407668,620.20,DR ANDREW ASHDOWN (DENEHURST NURSING HOME).
Adult and Health Services,Central/Other,Debtors,930024,Debtor-free nursing care,01-Nov-2017,3356121-2407673,620.20,DR ANDREW ASHDOWN (DENEHURST NURSING HOME).
Adult and Health Services,Central/Other,Debtors,930024,Debtor-free nursing care,01-Nov-2017,3356121-2407677,620.20,DR ANDREW ASHDOWN (DENEHURST NURSING HOME).
Adult and Health Services,Central/Other,Debtors,930024,Debtor-free nursing care,01-Nov-2017,3356121-2407679,620.20,DR ANDREW ASHDOWN (DENEHURST NURSING HOME).
Adult and Health Services,Central/Other,Debtors,930024,Debtor-free nursing care,01-Nov-2017,3356121-2407682,620.20,DR ANDREW ASHDOWN (DENEHURST NURSING HOME).
Adult and Health Services,Central/Other,Debtors,930024,Debtor-free nursing care,01-Nov-2017,3356121-2407690,620.20,DR ANDREW ASHDOWN (DENEHURST NURSING HOME).
Adult and Health Services,Central/Other,Debtors,930024,Debtor-free nursing care,01-Nov-2017,3356121-2411881,"3,344.65",DR ANDREW ASHDOWN (DENEHURST NURSING HOME).
Adult and Health Services,Central/Other,Debtors,930024,Debtor-free nursing care,01-Nov-2017,3356121-2411883,"1,550.50",DR ANDREW ASHDOWN (DENEHURST NURSING HOME).
Adult and Health Services,Central/Other,Debtors,930024,Debtor-free nursing care,01-Nov-2017,3356121-2411884,553.75,DR ANDREW ASHDOWN (DENEHURST NURSING HOME).
Adult and Health Services,Head of Adults,Third Party Payments,474101,Purchase of Care,01-Nov-2017,3356121-2407656,"2,125.76",DR ANDREW ASHDOWN (DENEHURST NURSING HOME).
Adult and Health Services,Head of Adults,Third Party Payments,474101,Purchase of Care,01-Nov-2017,3356121-2407658,"1,023.32",DR ANDREW ASHDOWN (DENEHURST NURSING HOME).
Adult and Health Services,Head of Adults,Third Party Payments,474101,Purchase of Care,01-Nov-2017,3356121-2407660,"2,125.76",DR ANDREW ASHDOWN (DENEHURST NURSING HOME).
Adult and Health Services,Head of Adults,Third Party Payments,474101,Purchase of Care,01-Nov-2017,3356121-2407667,"2,125.76",DR ANDREW ASHDOWN (DENEHURST NURSING HOME).
Adult and Health Services,Head of Adults,Third Party Payments,474101,Purchase of Care,01-Nov-2017,3356121-2407669,"1,062.88",DR ANDREW ASHDOWN (DENEHURST NURSING HOME).
Adult and Health Services,Head of Adults,Third Party Payments,474101,Purchase of Care,01-Nov-2017,3356121-2407670,560.00,DR ANDREW ASHDOWN (DENEHURST NURSING HOME).
Adult and Health Services,Head of Adults,Third Party Payments,474101,Purchase of Care,01-Nov-2017,3356121-2407672,"2,125.76",DR ANDREW ASHDOWN (DENEHURST NURSING HOME).
Adult and Health Services,Head of Adults,Third Party Payments,474101,Purchase of Care,01-Nov-2017,3356121-2407676,"2,125.76",DR ANDREW ASHDOWN (DENEHURST NURSING HOME).
Adult and Health Services,Head of Adults,Third Party Payments,474101,Purchase of Care,01-Nov-2017,3356121-2407678,"2,125.76",DR ANDREW ASHDOWN (DENEHURST NURSING HOME).
Adult and Health Services,Head of Adults,Third Party Payments,474101,Purchase of Care,01-Nov-2017,3356121-2407681,"2,125.76",DR ANDREW ASHDOWN (DENEHURST NURSING HOME).
Adult and Health Services,Head of Adults,Third Party Payments,474101,Purchase of Care,01-Nov-2017,3356121-2407684,"1,062.88",DR ANDREW ASHDOWN (DENEHURST NURSING HOME).
Adult and Health Services,Head of Adults,Third Party Payments,474101,Purchase of Care,01-Nov-2017,3356121-2407689,"2,318.44",DR ANDREW ASHDOWN (DENEHURST NURSING HOME).
Adult and Health Services,Head of Adults,Third Party Payments,474101,Purchase of Care,01-Nov-2017,3356121-2411882,"2,125.76",DR ANDREW ASHDOWN (DENEHURST NURSING HOME).
Adult and Health Services,Head of Adults,Third Party Payments,470101,Purchase of Care,01-Nov-2017,3356121-2407662,"2,024.64",DR ANDREW ASHDOWN (DENEHURST NURSING HOME).
Adult and Health Services,Head of Adults,Third Party Payments,470101,Purchase of Care,01-Nov-2017,3356121-2407663,"1,949.24",DR ANDREW ASHDOWN (DENEHURST NURSING HOME).
Adult and Health Services,Head of Adults,Third Party Payments,470101,Purchase of Care,01-Nov-2017,3356121-2407665,"2,024.64",DR ANDREW ASHDOWN (DENEHURST NURSING HOME).
Adult and Health Services,Head of Adults,Third Party Payments,470101,Purchase of Care,01-Nov-2017,3356121-2407666,"2,024.64",DR ANDREW ASHDOWN (DENEHURST NURSING HOME).
Adult and Health Services,Head of Adults,Third Party Payments,470101,Purchase of Care,01-Nov-2017,3356121-2407686,"2,024.64",DR ANDREW ASHDOWN (DENEHURST NURSING HOME).
Adult and Health Services,Head of Adults,Third Party Payments,470101,Purchase of Care,01-Nov-2017,3356121-2411885,795.39,DR ANDREW ASHDOWN (DENEHURST NURSING HOME).
Adult and Health Services,Head of Adults,Third Party Payments,471101,Purchase of Care,01-Nov-2017,3356121-2407674,"2,104.76",DR ANDREW ASHDOWN (DENEHURST NURSING HOME).
Adult and Health Services,Head of Adults,Third Party Payments,471101,Purchase of Care,01-Nov-2017,3356121-2407680,"2,104.76",DR ANDREW ASHDOWN (DENEHURST NURSING HOME).
Adult and Health Services,Head of Adults,Third Party Payments,470101,Purchase of Care,01-Nov-2017,3356122-2408664,"2,139.24",DR ANDREW ASHDOWN (STOCKTON LODGE CARE HOME).
Adult and Health Services,Head of Adults,Third Party Payments,470101,Purchase of Care,01-Nov-2017,3356122-2408667,"2,139.24",DR ANDREW ASHDOWN (STOCKTON LODGE CARE HOME).
Adult and Health Services,Head of Adults,Third Party Payments,470101,Purchase of Care,01-Nov-2017,3356122-2408669,"2,139.24",DR ANDREW ASHDOWN (STOCKTON LODGE CARE HOME).
Adult and Health Services,Head of Adults,Third Party Payments,470101,Purchase of Care,01-Nov-2017,3356122-2408670,"2,139.24",DR ANDREW ASHDOWN (STOCKTON LODGE CARE HOME).
Adult and Health Services,Head of Adults,Third Party Payments,470101,Purchase of Care,01-Nov-2017,3356122-2408671,"2,139.24",DR ANDREW ASHDOWN (STOCKTON LODGE CARE HOME).
Adult and Health Services,Head of Adults,Third Party Payments,470101,Purchase of Care,01-Nov-2017,3356122-2408672,"2,139.24",DR ANDREW ASHDOWN (STOCKTON LODGE CARE HOME).
Adult and Health Services,Head of Adults,Third Party Payments,470101,Purchase of Care,01-Nov-2017,3356122-2408673,"2,139.24",DR ANDREW ASHDOWN (STOCKTON LODGE CARE HOME).
Adult and Health Services,Head of Adults,Third Party Payments,470101,Purchase of Care,01-Nov-2017,3356122-2408674,"2,139.24",DR ANDREW ASHDOWN (STOCKTON LODGE CARE HOME).
Adult and Health Services,Head of Adults,Third Party Payments,470101,Purchase of Care,01-Nov-2017,3356122-2408675,"2,139.24",DR ANDREW ASHDOWN (STOCKTON LODGE CARE HOME).
Adult and Health Services,Head of Adults,Third Party Payments,470101,Purchase of Care,01-Nov-2017,3356122-2408677,"2,139.24",DR ANDREW ASHDOWN (STOCKTON LODGE CARE HOME).
Adult and Health Services,Head of Adults,Third Party Payments,470101,Purchase of Care,01-Nov-2017,3356122-2408679,"2,139.24",DR ANDREW ASHDOWN (STOCKTON LODGE CARE HOME).
Adult and Health Services,Head of Adults,Third Party Payments,470101,Purchase of Care,01-Nov-2017,3356122-2408681,"2,139.24",DR ANDREW ASHDOWN (STOCKTON LODGE CARE HOME).
Adult and Health Services,Head of Adults,Third Party Payments,470101,Purchase of Care,01-Nov-2017,3356122-2412368,"3,202.86",DR ANDREW ASHDOWN (STOCKTON LODGE CARE HOME).
Adult and Health Services,Head of Adults,Third Party Payments,471101,Purchase of Care,01-Nov-2017,3356122-2408665,"2,218.20",DR ANDREW ASHDOWN (STOCKTON LODGE CARE HOME).
Adult and Health Services,Head of Adults,Third Party Payments,471101,Purchase of Care,01-Nov-2017,3356122-2408666,"2,218.20",DR ANDREW ASHDOWN (STOCKTON LODGE CARE HOME).
Adult and Health Services,Head of Adults,Third Party Payments,471101,Purchase of Care,01-Nov-2017,3356122-2408668,"2,218.20",DR ANDREW ASHDOWN (STOCKTON LODGE CARE HOME).
Adult and Health Services,Head of Adults,Third Party Payments,471101,Purchase of Care,01-Nov-2017,3356122-2408676,"2,218.20",DR ANDREW ASHDOWN (STOCKTON LODGE CARE HOME).
Adult and Health Services,Head of Adults,Third Party Payments,471101,Purchase of Care,01-Nov-2017,3356122-2408678,"2,218.20",DR ANDREW ASHDOWN (STOCKTON LODGE CARE HOME).
Adult and Health Services,Head of Adults,Third Party Payments,471101,Purchase of Care,01-Nov-2017,3356122-2408680,"2,218.20",DR ANDREW ASHDOWN (STOCKTON LODGE CARE HOME).
Adult and Health Services,Head of Adults,Third Party Payments,474101,Purchase of Care,01-Nov-2017,3356123-2411552,"4,744.68",DUCKS HALT CARE HOME
Adult and Health Services,Head of Adults,Third Party Payments,474101,Purchase of Care,01-Nov-2017,3356124-2411575,"8,727.60",DUNLUCE HOUSE T/A BOHILL BUNGALOWS.
Adult and Health Services,Head of Adults,Third Party Payments,470101,Purchase of Care,01-Nov-2017,3356125-2411280,"2,508.00",DURHAM CARELINE LTD.
Adult and Health Services,Head of Adults,Third Party Payments,470101,Purchase of Care,01-Nov-2017,3356126-2408904,"2,016.00",EDEN COTTAGE RESIDENTIAL HOME.
Adult and Health Services,Head of Adults,Debtors,930135,Debtor Residential Care - IC+ Rehabilitation,01-Nov-2017,3356127-2411511,"1,528.02",ELBA CARE LTD T/A DIVINE CARE CENTRE.
Adult and Health Services,Head of Adults,Debtors,930135,Debtor Residential Care - IC+ Rehabilitation,01-Nov-2017,3356127-2411515,"1,069.62",ELBA CARE LTD T/A DIVINE CARE CENTRE.
Adult and Health Services,Head of Adults,Debtors,930135,Debtor Residential Care - IC+ Rehabilitation,01-Nov-2017,3356127-2411871,"1,604.43",ELBA CARE LTD T/A DIVINE CARE CENTRE.
Adult and Health Services,Head of Adults,Debtors,930135,Debtor Residential Care - IC+ Rehabilitation,01-Nov-2017,3356127-2411878,534.81,ELBA CARE LTD T/A DIVINE CARE CENTRE.
Adult and Health Services,Head of Adults,Debtors,930135,Debtor Residential Care - IC+ Rehabilitation,01-Nov-2017,3356127-2411879,"1,222.42",ELBA CARE LTD T/A DIVINE CARE CENTRE.
Adult and Health Services,Central/Other,Debtors,930024,Debtor-free nursing care,01-Nov-2017,3356127-2411518,620.20,ELBA CARE LTD T/A DIVINE CARE CENTRE.
Adult and Health Services,Central/Other,Debtors,930024,Debtor-free nursing care,01-Nov-2017,3356127-2411534,620.20,ELBA CARE LTD T/A DIVINE CARE CENTRE.
Adult and Health Services,Central/Other,Debtors,930024,Debtor-free nursing care,01-Nov-2017,3356127-2411537,620.20,ELBA CARE LTD T/A DIVINE CARE CENTRE.
Adult and Health Services,Head of Adults,Third Party Payments,474101,Purchase of Care,01-Nov-2017,3356127-2411517,"2,240.40",ELBA CARE LTD T/A DIVINE CARE CENTRE.
Adult and Health Services,Head of Adults,Third Party Payments,474101,Purchase of Care,01-Nov-2017,3356127-2411533,"2,240.40",ELBA CARE LTD T/A DIVINE CARE CENTRE.
Adult and Health Services,Head of Adults,Third Party Payments,474101,Purchase of Care,01-Nov-2017,3356127-2411536,"2,240.40",ELBA CARE LTD T/A DIVINE CARE CENTRE.
Adult and Health Services,Head of Adults,Third Party Payments,470102,Purchase of Care,01-Nov-2017,3356127-2411870,"1,528.02",ELBA CARE LTD T/A DIVINE CARE CENTRE.
Adult and Health Services,Head of Adults,Third Party Payments,470101,Purchase of Care,01-Nov-2017,3356127-2411513,"2,139.24",ELBA CARE LTD T/A DIVINE CARE CENTRE.
Adult and Health Services,Head of Adults,Third Party Payments,470101,Purchase of Care,01-Nov-2017,3356127-2411514,"2,139.24",ELBA CARE LTD T/A DIVINE CARE CENTRE.
Adult and Health Services,Head of Adults,Third Party Payments,470101,Purchase of Care,01-Nov-2017,3356127-2411516,"2,139.24",ELBA CARE LTD T/A DIVINE CARE CENTRE.
Adult and Health Services,Head of Adults,Third Party Payments,470101,Purchase of Care,01-Nov-2017,3356127-2411520,"2,139.24",ELBA CARE LTD T/A DIVINE CARE CENTRE.
Adult and Health Services,Head of Adults,Third Party Payments,470101,Purchase of Care,01-Nov-2017,3356127-2411522,"2,139.24",ELBA CARE LTD T/A DIVINE CARE CENTRE.
Adult and Health Services,Head of Adults,Third Party Payments,470101,Purchase of Care,01-Nov-2017,3356127-2411525,"2,139.24",ELBA CARE LTD T/A DIVINE CARE CENTRE.
Adult and Health Services,Head of Adults,Third Party Payments,470101,Purchase of Care,01-Nov-2017,3356127-2411527,534.81,ELBA CARE LTD T/A DIVINE CARE CENTRE.
Adult and Health Services,Head of Adults,Third Party Payments,470101,Purchase of Care,01-Nov-2017,3356127-2411530,"2,139.24",ELBA CARE LTD T/A DIVINE CARE CENTRE.
Adult and Health Services,Head of Adults,Third Party Payments,470101,Purchase of Care,01-Nov-2017,3356127-2411532,"2,139.24",ELBA CARE LTD T/A DIVINE CARE CENTRE.
Adult and Health Services,Head of Adults,Third Party Payments,470101,Purchase of Care,01-Nov-2017,3356127-2411535,"2,139.24",ELBA CARE LTD T/A DIVINE CARE CENTRE.
Adult and Health Services,Head of Adults,Third Party Payments,470101,Purchase of Care,01-Nov-2017,3356127-2411538,"2,139.24",ELBA CARE LTD T/A DIVINE CARE CENTRE.
Adult and Health Services,Head of Adults,Third Party Payments,470101,Purchase of Care,01-Nov-2017,3356127-2411544,"2,139.24",ELBA CARE LTD T/A DIVINE CARE CENTRE.
Adult and Health Services,Head of Adults,Third Party Payments,470101,Purchase of Care,01-Nov-2017,3356127-2411545,"2,139.24",ELBA CARE LTD T/A DIVINE CARE CENTRE.
Adult and Health Services,Head of Adults,Third Party Payments,470101,Purchase of Care,01-Nov-2017,3356127-2411546,"2,139.24",ELBA CARE LTD T/A DIVINE CARE CENTRE.
Adult and Health Services,Head of Adults,Third Party Payments,470101,Purchase of Care,01-Nov-2017,3356127-2411547,"2,139.24",ELBA CARE LTD T/A DIVINE CARE CENTRE.
Adult and Health Services,Head of Adults,Third Party Payments,470101,Purchase of Care,01-Nov-2017,3356127-2411548,"2,139.24",ELBA CARE LTD T/A DIVINE CARE CENTRE.
Adult and Health Services,Head of Adults,Third Party Payments,470101,Purchase of Care,01-Nov-2017,3356127-2411549,"2,139.24",ELBA CARE LTD T/A DIVINE CARE CENTRE.
Adult and Health Services,Head of Adults,Third Party Payments,470101,Purchase of Care,01-Nov-2017,3356127-2411551,"2,139.24",ELBA CARE LTD T/A DIVINE CARE CENTRE.
Adult and Health Services,Head of Adults,Third Party Payments,470101,Purchase of Care,01-Nov-2017,3356127-2411872,"1,069.62",ELBA CARE LTD T/A DIVINE CARE CENTRE.
Adult and Health Services,Head of Adults,Third Party Payments,471101,Purchase of Care,01-Nov-2017,3356127-2411523,"2,218.20",ELBA CARE LTD T/A DIVINE CARE CENTRE.
Adult and Health Services,Head of Adults,Third Party Payments,471101,Purchase of Care,01-Nov-2017,3356127-2411528,"2,218.20",ELBA CARE LTD T/A DIVINE CARE CENTRE.
Adult and Health Services,Head of Adults,Third Party Payments,471101,Purchase of Care,01-Nov-2017,3356127-2411531,"2,218.20",ELBA CARE LTD T/A DIVINE CARE CENTRE.
Adult and Health Services,Head of Adults,Third Party Payments,471101,Purchase of Care,01-Nov-2017,3356127-2411539,"2,218.20",ELBA CARE LTD T/A DIVINE CARE CENTRE.
Adult and Health Services,Head of Adults,Third Party Payments,471101,Purchase of Care,01-Nov-2017,3356127-2411542,"2,218.20",ELBA CARE LTD T/A DIVINE CARE CENTRE.
Adult and Health Services,Head of Adults,Third Party Payments,471101,Purchase of Care,01-Nov-2017,3356127-2411543,"2,218.20",ELBA CARE LTD T/A DIVINE CARE CENTRE.
Adult and Health Services,Head of Adults,Third Party Payments,471101,Purchase of Care,01-Nov-2017,3356127-2411550,"2,218.20",ELBA CARE LTD T/A DIVINE CARE CENTRE.
Adult and Health Services,Central/Other,Debtors,930024,Debtor-free nursing care,01-Nov-2017,3356129-2409110,620.20,ELIZABETH FLEMMING CARE HOME.
Adult and Health Services,Head of Adults,Third Party Payments,474101,Purchase of Care,01-Nov-2017,3356129-2409109,"1,089.20",ELIZABETH FLEMMING CARE HOME.
Adult and Health Services,Head of Adults,Third Party Payments,474101,Purchase of Care,01-Nov-2017,3356129-2409111,"2,178.36",ELIZABETH FLEMMING CARE HOME.
Adult and Health Services,Head of Adults,Third Party Payments,470101,Purchase of Care,01-Nov-2017,3356130-2410057,"11,023.16",ELLERSHAW HOUSE.
Adult and Health Services,Head of Adults,Third Party Payments,470101,Purchase of Care,01-Nov-2017,3356131-2409505,"2,574.60",ELPHA LODGE LTD.
Adult and Health Services,Head of Adults,Third Party Payments,474101,Purchase of Care,01-Nov-2017,3356132-2393606,"2,115.92",ELSWICK HALL CARE HOME.
Adult and Health Services,Head of Adults,Third Party Payments,474101,Purchase of Care,01-Nov-2017,3356132-2400107,"2,115.92",ELSWICK HALL CARE HOME.
Adult and Health Services,Head of Adults,Third Party Payments,474101,Purchase of Care,01-Nov-2017,3356132-2402707,"2,115.92",ELSWICK HALL CARE HOME.
Adult and Health Services,Head of Adults,Third Party Payments,474101,Purchase of Care,01-Nov-2017,3356132-2411555,"2,115.92",ELSWICK HALL CARE HOME.
Adult and Health Services,Head of Adults,Third Party Payments,471101,Purchase of Care,01-Nov-2017,3356133-2412020,"2,679.43",ELWICK GRANGE.
Adult and Health Services,Head of Adults,Debtors,930136,Debtor Nursing Care - IC+ Nursing,01-Nov-2017,3356138-2409875,"2,240.40",EMBRACE ALL LTD.
Adult and Health Services,Head of Adults,Debtors,930135,Debtor Residential Care - IC+ Rehabilitation,01-Nov-2017,3356138-2409850,"1,069.62",EMBRACE ALL LTD.
Adult and Health Services,Head of Adults,Debtors,930135,Debtor Residential Care - IC+ Rehabilitation,01-Nov-2017,3356138-2409851,534.81,EMBRACE ALL LTD.
Adult and Health Services,Head of Adults,Debtors,930135,Debtor Residential Care - IC+ Rehabilitation,01-Nov-2017,3356138-2409856,"2,139.24",EMBRACE ALL LTD.
Adult and Health Services,Head of Adults,Debtors,930135,Debtor Residential Care - IC+ Rehabilitation,01-Nov-2017,3356138-2412226,916.81,EMBRACE ALL LTD.
Adult and Health Services,Head of Adults,Debtors,930135,Debtor Residential Care - IC+ Rehabilitation,01-Nov-2017,3356138-2412232,840.41,EMBRACE ALL LTD.
Adult and Health Services,Head of Adults,Debtors,930135,Debtor Residential Care - IC+ Rehabilitation,01-Nov-2017,3356138-2412309,916.81,EMBRACE ALL LTD.
Adult and Health Services,Head of Adults,Debtors,930135,Debtor Residential Care - IC+ Rehabilitation,01-Nov-2017,3356138-2412378,"1,222.42",EMBRACE ALL LTD.
Adult and Health Services,Central/Other,Debtors,930024,Debtor-free nursing care,01-Nov-2017,3356134-2411238,620.20,EMBRACE ALL LTD.
Adult and Health Services,Central/Other,Debtors,930024,Debtor-free nursing care,01-Nov-2017,3356134-2411240,620.20,EMBRACE ALL LTD.
Adult and Health Services,Central/Other,Debtors,930024,Debtor-free nursing care,01-Nov-2017,3356134-2411242,620.20,EMBRACE ALL LTD.
Adult and Health Services,Central/Other,Debtors,930024,Debtor-free nursing care,01-Nov-2017,3356134-2411250,620.20,EMBRACE ALL LTD.
Adult and Health Services,Central/Other,Debtors,930024,Debtor-free nursing care,01-Nov-2017,3356134-2411253,620.20,EMBRACE ALL LTD.
Adult and Health Services,Central/Other,Debtors,930024,Debtor-free nursing care,01-Nov-2017,3356134-2411259,620.20,EMBRACE ALL LTD.
Adult and Health Services,Central/Other,Debtors,930024,Debtor-free nursing care,01-Nov-2017,3356134-2411263,620.20,EMBRACE ALL LTD.
Adult and Health Services,Central/Other,Debtors,930024,Debtor-free nursing care,01-Nov-2017,3356136-2411123,620.20,EMBRACE ALL LTD.
Adult and Health Services,Central/Other,Debtors,930024,Debtor-free nursing care,01-Nov-2017,3356136-2411137,620.20,EMBRACE ALL LTD.
Adult and Health Services,Central/Other,Debtors,930024,Debtor-free nursing care,01-Nov-2017,3356136-2411142,620.20,EMBRACE ALL LTD.
Adult and Health Services,Central/Other,Debtors,930024,Debtor-free nursing care,01-Nov-2017,3356136-2411144,620.20,EMBRACE ALL LTD.
Adult and Health Services,Central/Other,Debtors,930024,Debtor-free nursing care,01-Nov-2017,3356136-2411146,620.20,EMBRACE ALL LTD.
Adult and Health Services,Central/Other,Debtors,930024,Debtor-free nursing care,01-Nov-2017,3356136-2411148,620.20,EMBRACE ALL LTD.
Adult and Health Services,Central/Other,Debtors,930024,Debtor-free nursing care,01-Nov-2017,3356136-2411162,620.20,EMBRACE ALL LTD.
Adult and Health Services,Central/Other,Debtors,930024,Debtor-free nursing care,01-Nov-2017,3356136-2411164,620.20,EMBRACE ALL LTD.
Adult and Health Services,Central/Other,Debtors,930024,Debtor-free nursing care,01-Nov-2017,3356138-2409848,620.20,EMBRACE ALL LTD.
Adult and Health Services,Central/Other,Debtors,930024,Debtor-free nursing care,01-Nov-2017,3356138-2409853,620.20,EMBRACE ALL LTD.
Adult and Health Services,Central/Other,Debtors,930024,Debtor-free nursing care,01-Nov-2017,3356138-2409854,620.20,EMBRACE ALL LTD.
Adult and Health Services,Central/Other,Debtors,930024,Debtor-free nursing care,01-Nov-2017,3356138-2409860,620.20,EMBRACE ALL LTD.
Adult and Health Services,Central/Other,Debtors,930024,Debtor-free nursing care,01-Nov-2017,3356138-2409864,620.20,EMBRACE ALL LTD.
Adult and Health Services,Central/Other,Debtors,930024,Debtor-free nursing care,01-Nov-2017,3356138-2409866,620.20,EMBRACE ALL LTD.
Adult and Health Services,Central/Other,Debtors,930024,Debtor-free nursing care,01-Nov-2017,3356138-2409871,620.20,EMBRACE ALL LTD.
Adult and Health Services,Central/Other,Debtors,930024,Debtor-free nursing care,01-Nov-2017,3356138-2409873,620.20,EMBRACE ALL LTD.
Adult and Health Services,Central/Other,Debtors,930024,Debtor-free nursing care,01-Nov-2017,3356138-2409876,620.20,EMBRACE ALL LTD.
Adult and Health Services,Central/Other,Debtors,930024,Debtor-free nursing care,01-Nov-2017,3356138-2409879,620.20,EMBRACE ALL LTD.
Adult and Health Services,Central/Other,Debtors,930024,Debtor-free nursing care,01-Nov-2017,3356138-2409888,620.20,EMBRACE ALL LTD.
Adult and Health Services,Central/Other,Debtors,930024,Debtor-free nursing care,01-Nov-2017,3356138-2409890,620.20,EMBRACE ALL LTD.
Adult and Health Services,Central/Other,Debtors,930024,Debtor-free nursing care,01-Nov-2017,3356138-2409894,620.20,EMBRACE ALL LTD.
Adult and Health Services,Central/Other,Debtors,930024,Debtor-free nursing care,01-Nov-2017,3356138-2409898,620.20,EMBRACE ALL LTD.
Adult and Health Services,Central/Other,Debtors,930024,Debtor-free nursing care,01-Nov-2017,3356138-2409901,620.20,EMBRACE ALL LTD.
Adult and Health Services,Central/Other,Debtors,930024,Debtor-free nursing care,01-Nov-2017,3356138-2409903,620.20,EMBRACE ALL LTD.
Adult and Health Services,Central/Other,Debtors,930024,Debtor-free nursing care,01-Nov-2017,3356138-2412228,708.80,EMBRACE ALL LTD.
Adult and Health Services,Head of Adults,Third Party Payments,474101,Purchase of Care,01-Nov-2017,3356134-2411237,"2,240.40",EMBRACE ALL LTD.
Adult and Health Services,Head of Adults,Third Party Payments,474101,Purchase of Care,01-Nov-2017,3356134-2411239,"2,240.40",EMBRACE ALL LTD.
Adult and Health Services,Head of Adults,Third Party Payments,474101,Purchase of Care,01-Nov-2017,3356134-2411241,"2,240.40",EMBRACE ALL LTD.
Adult and Health Services,Head of Adults,Third Party Payments,474101,Purchase of Care,01-Nov-2017,3356134-2411249,"2,240.40",EMBRACE ALL LTD.
Adult and Health Services,Head of Adults,Third Party Payments,474101,Purchase of Care,01-Nov-2017,3356134-2411252,"2,240.40",EMBRACE ALL LTD.
Adult and Health Services,Head of Adults,Third Party Payments,474101,Purchase of Care,01-Nov-2017,3356134-2411258,"2,240.40",EMBRACE ALL LTD.
Adult and Health Services,Head of Adults,Third Party Payments,474101,Purchase of Care,01-Nov-2017,3356134-2411262,"2,240.40",EMBRACE ALL LTD.
Adult and Health Services,Head of Adults,Third Party Payments,474101,Purchase of Care,01-Nov-2017,3356134-2412382,"1,680.30",EMBRACE ALL LTD.
Adult and Health Services,Head of Adults,Third Party Payments,474101,Purchase of Care,01-Nov-2017,3356134-2412387,"1,282.42",EMBRACE ALL LTD.
Adult and Health Services,Head of Adults,Third Party Payments,474101,Purchase of Care,01-Nov-2017,3356135-2411739,"10,640.00",EMBRACE ALL LTD.
Adult and Health Services,Head of Adults,Third Party Payments,474101,Purchase of Care,01-Nov-2017,3356136-2411122,"2,240.40",EMBRACE ALL LTD.
Adult and Health Services,Head of Adults,Third Party Payments,474101,Purchase of Care,01-Nov-2017,3356136-2411133,"1,087.80",EMBRACE ALL LTD.
Adult and Health Services,Head of Adults,Third Party Payments,474101,Purchase of Care,01-Nov-2017,3356136-2411136,"2,240.40",EMBRACE ALL LTD.
Adult and Health Services,Head of Adults,Third Party Payments,474101,Purchase of Care,01-Nov-2017,3356136-2411141,"2,240.40",EMBRACE ALL LTD.
Adult and Health Services,Head of Adults,Third Party Payments,474101,Purchase of Care,01-Nov-2017,3356136-2411143,"2,240.40",EMBRACE ALL LTD.
Adult and Health Services,Head of Adults,Third Party Payments,474101,Purchase of Care,01-Nov-2017,3356136-2411145,"2,240.40",EMBRACE ALL LTD.
Adult and Health Services,Head of Adults,Third Party Payments,474101,Purchase of Care,01-Nov-2017,3356136-2411147,"2,240.40",EMBRACE ALL LTD.
Adult and Health Services,Head of Adults,Third Party Payments,474101,Purchase of Care,01-Nov-2017,3356136-2411149,"1,120.20",EMBRACE ALL LTD.
Adult and Health Services,Head of Adults,Third Party Payments,474101,Purchase of Care,01-Nov-2017,3356136-2411161,"2,240.40",EMBRACE ALL LTD.
Adult and Health Services,Head of Adults,Third Party Payments,474101,Purchase of Care,01-Nov-2017,3356136-2411163,"2,240.40",EMBRACE ALL LTD.
Adult and Health Services,Head of Adults,Third Party Payments,474101,Purchase of Care,01-Nov-2017,3356138-2409847,"2,240.40",EMBRACE ALL LTD.
Adult and Health Services,Head of Adults,Third Party Payments,474101,Purchase of Care,01-Nov-2017,3356138-2409852,"2,240.40",EMBRACE ALL LTD.
Adult and Health Services,Head of Adults,Third Party Payments,474101,Purchase of Care,01-Nov-2017,3356138-2409859,"2,240.40",EMBRACE ALL LTD.
Adult and Health Services,Head of Adults,Third Party Payments,474101,Purchase of Care,01-Nov-2017,3356138-2409863,"2,240.40",EMBRACE ALL LTD.
Adult and Health Services,Head of Adults,Third Party Payments,474101,Purchase of Care,01-Nov-2017,3356138-2409870,"2,240.40",EMBRACE ALL LTD.
Adult and Health Services,Head of Adults,Third Party Payments,474101,Purchase of Care,01-Nov-2017,3356138-2409872,"2,240.40",EMBRACE ALL LTD.
Adult and Health Services,Head of Adults,Third Party Payments,474101,Purchase of Care,01-Nov-2017,3356138-2409878,"2,240.40",EMBRACE ALL LTD.
Adult and Health Services,Head of Adults,Third Party Payments,474101,Purchase of Care,01-Nov-2017,3356138-2409887,"2,240.40",EMBRACE ALL LTD.
Adult and Health Services,Head of Adults,Third Party Payments,474101,Purchase of Care,01-Nov-2017,3356138-2409889,"2,240.40",EMBRACE ALL LTD.
Adult and Health Services,Head of Adults,Third Party Payments,474101,Purchase of Care,01-Nov-2017,3356138-2409891,"1,120.20",EMBRACE ALL LTD.
Adult and Health Services,Head of Adults,Third Party Payments,474101,Purchase of Care,01-Nov-2017,3356138-2409893,"2,240.40",EMBRACE ALL LTD.
Adult and Health Services,Head of Adults,Third Party Payments,474101,Purchase of Care,01-Nov-2017,3356138-2409897,"2,240.40",EMBRACE ALL LTD.
Adult and Health Services,Head of Adults,Third Party Payments,474101,Purchase of Care,01-Nov-2017,3356138-2409900,"2,240.40",EMBRACE ALL LTD.
Adult and Health Services,Head of Adults,Third Party Payments,474101,Purchase of Care,01-Nov-2017,3356138-2409902,"2,240.40",EMBRACE ALL LTD.
Adult and Health Services,Head of Adults,Third Party Payments,474101,Purchase of Care,01-Nov-2017,3356138-2412227,"2,560.45",EMBRACE ALL LTD.
Adult and Health Services,Head of Adults,Third Party Payments,474101,Purchase of Care,01-Nov-2017,3356139-2409817,"2,322.12",EMBRACE ALL LTD.
Adult and Health Services,Head of Adults,Third Party Payments,470101,Purchase of Care,01-Nov-2017,3356134-2411234,"2,139.24",EMBRACE ALL LTD.
Adult and Health Services,Head of Adults,Third Party Payments,470101,Purchase of Care,01-Nov-2017,3356134-2411235,"2,139.24",EMBRACE ALL LTD.
Adult and Health Services,Head of Adults,Third Party Payments,470101,Purchase of Care,01-Nov-2017,3356134-2411236,"2,139.24",EMBRACE ALL LTD.
Adult and Health Services,Head of Adults,Third Party Payments,470101,Purchase of Care,01-Nov-2017,3356134-2411245,"2,139.24",EMBRACE ALL LTD.
Adult and Health Services,Head of Adults,Third Party Payments,470101,Purchase of Care,01-Nov-2017,3356134-2411246,"2,139.24",EMBRACE ALL LTD.
Adult and Health Services,Head of Adults,Third Party Payments,470101,Purchase of Care,01-Nov-2017,3356134-2411247,"2,139.24",EMBRACE ALL LTD.
Adult and Health Services,Head of Adults,Third Party Payments,470101,Purchase of Care,01-Nov-2017,3356134-2411248,"2,139.24",EMBRACE ALL LTD.
Adult and Health Services,Head of Adults,Third Party Payments,470101,Purchase of Care,01-Nov-2017,3356134-2411251,"2,139.24",EMBRACE ALL LTD.
Adult and Health Services,Head of Adults,Third Party Payments,470101,Purchase of Care,01-Nov-2017,3356134-2411254,"2,139.24",EMBRACE ALL LTD.
Adult and Health Services,Head of Adults,Third Party Payments,470101,Purchase of Care,01-Nov-2017,3356134-2411255,"2,139.24",EMBRACE ALL LTD.
Adult and Health Services,Head of Adults,Third Party Payments,470101,Purchase of Care,01-Nov-2017,3356134-2411256,"2,139.24",EMBRACE ALL LTD.
Adult and Health Services,Head of Adults,Third Party Payments,470101,Purchase of Care,01-Nov-2017,3356136-2411120,"2,139.24",EMBRACE ALL LTD.
Adult and Health Services,Head of Adults,Third Party Payments,470101,Purchase of Care,01-Nov-2017,3356136-2411124,"2,139.24",EMBRACE ALL LTD.
Adult and Health Services,Head of Adults,Third Party Payments,470101,Purchase of Care,01-Nov-2017,3356136-2411126,"2,139.24",EMBRACE ALL LTD.
Adult and Health Services,Head of Adults,Third Party Payments,470101,Purchase of Care,01-Nov-2017,3356136-2411129,"2,139.24",EMBRACE ALL LTD.
Adult and Health Services,Head of Adults,Third Party Payments,470101,Purchase of Care,01-Nov-2017,3356136-2411131,"2,139.24",EMBRACE ALL LTD.
Adult and Health Services,Head of Adults,Third Party Payments,470101,Purchase of Care,01-Nov-2017,3356136-2411132,"2,139.24",EMBRACE ALL LTD.
Adult and Health Services,Head of Adults,Third Party Payments,470101,Purchase of Care,01-Nov-2017,3356136-2411135,"2,139.24",EMBRACE ALL LTD.
Adult and Health Services,Head of Adults,Third Party Payments,470101,Purchase of Care,01-Nov-2017,3356136-2411138,611.21,EMBRACE ALL LTD.
Adult and Health Services,Head of Adults,Third Party Payments,470101,Purchase of Care,01-Nov-2017,3356136-2411139,"2,139.24",EMBRACE ALL LTD.
Adult and Health Services,Head of Adults,Third Party Payments,470101,Purchase of Care,01-Nov-2017,3356136-2411140,"1,528.02",EMBRACE ALL LTD.
Adult and Health Services,Head of Adults,Third Party Payments,470101,Purchase of Care,01-Nov-2017,3356136-2411151,"2,139.24",EMBRACE ALL LTD.
Adult and Health Services,Head of Adults,Third Party Payments,470101,Purchase of Care,01-Nov-2017,3356136-2411152,"2,139.24",EMBRACE ALL LTD.
Adult and Health Services,Head of Adults,Third Party Payments,470101,Purchase of Care,01-Nov-2017,3356136-2411153,"2,139.24",EMBRACE ALL LTD.
Adult and Health Services,Head of Adults,Third Party Payments,470101,Purchase of Care,01-Nov-2017,3356136-2411154,"2,206.72",EMBRACE ALL LTD.
Adult and Health Services,Head of Adults,Third Party Payments,470101,Purchase of Care,01-Nov-2017,3356136-2411155,"2,139.24",EMBRACE ALL LTD.
Adult and Health Services,Head of Adults,Third Party Payments,470101,Purchase of Care,01-Nov-2017,3356136-2411158,"2,139.24",EMBRACE ALL LTD.
Adult and Health Services,Head of Adults,Third Party Payments,470101,Purchase of Care,01-Nov-2017,3356136-2411160,"2,139.24",EMBRACE ALL LTD.
Adult and Health Services,Head of Adults,Third Party Payments,470101,Purchase of Care,01-Nov-2017,3356136-2411165,"2,139.24",EMBRACE ALL LTD.
Adult and Health Services,Head of Adults,Third Party Payments,470101,Purchase of Care,01-Nov-2017,3356136-2411166,"2,399.00",EMBRACE ALL LTD.
Adult and Health Services,Head of Adults,Third Party Payments,470101,Purchase of Care,01-Nov-2017,3356137-2409965,"2,139.24",EMBRACE ALL LTD.
Adult and Health Services,Head of Adults,Third Party Payments,470101,Purchase of Care,01-Nov-2017,3356137-2409966,"2,139.24",EMBRACE ALL LTD.
Adult and Health Services,Head of Adults,Third Party Payments,470101,Purchase of Care,01-Nov-2017,3356137-2409967,"2,139.24",EMBRACE ALL LTD.
Adult and Health Services,Head of Adults,Third Party Payments,470101,Purchase of Care,01-Nov-2017,3356137-2409968,"2,139.24",EMBRACE ALL LTD.
Adult and Health Services,Head of Adults,Third Party Payments,470101,Purchase of Care,01-Nov-2017,3356137-2409969,"2,139.24",EMBRACE ALL LTD.
Adult and Health Services,Head of Adults,Third Party Payments,470101,Purchase of Care,01-Nov-2017,3356137-2409970,"2,139.24",EMBRACE ALL LTD.
Adult and Health Services,Head of Adults,Third Party Payments,470101,Purchase of Care,01-Nov-2017,3356137-2409971,"3,514.46",EMBRACE ALL LTD.
Adult and Health Services,Head of Adults,Third Party Payments,470101,Purchase of Care,01-Nov-2017,3356137-2409972,"2,139.24",EMBRACE ALL LTD.
Adult and Health Services,Head of Adults,Third Party Payments,470101,Purchase of Care,01-Nov-2017,3356137-2409973,"2,139.24",EMBRACE ALL LTD.
Adult and Health Services,Head of Adults,Third Party Payments,470101,Purchase of Care,01-Nov-2017,3356137-2409975,"2,139.24",EMBRACE ALL LTD.
Adult and Health Services,Head of Adults,Third Party Payments,470101,Purchase of Care,01-Nov-2017,3356137-2409976,"2,139.24",EMBRACE ALL LTD.
Adult and Health Services,Head of Adults,Third Party Payments,470101,Purchase of Care,01-Nov-2017,3356137-2409977,"2,139.24",EMBRACE ALL LTD.
Adult and Health Services,Head of Adults,Third Party Payments,470101,Purchase of Care,01-Nov-2017,3356137-2409978,"2,139.24",EMBRACE ALL LTD.
Adult and Health Services,Head of Adults,Third Party Payments,470101,Purchase of Care,01-Nov-2017,3356137-2409980,"2,139.24",EMBRACE ALL LTD.
Adult and Health Services,Head of Adults,Third Party Payments,470101,Purchase of Care,01-Nov-2017,3356137-2409981,"2,139.24",EMBRACE ALL LTD.
Adult and Health Services,Head of Adults,Third Party Payments,470101,Purchase of Care,01-Nov-2017,3356137-2409982,"2,444.84",EMBRACE ALL LTD.
Adult and Health Services,Head of Adults,Third Party Payments,470101,Purchase of Care,01-Nov-2017,3356137-2409985,"2,139.24",EMBRACE ALL LTD.
Adult and Health Services,Head of Adults,Third Party Payments,470101,Purchase of Care,01-Nov-2017,3356137-2409987,"2,139.24",EMBRACE ALL LTD.
Adult and Health Services,Head of Adults,Third Party Payments,470101,Purchase of Care,01-Nov-2017,3356137-2409988,"2,139.24",EMBRACE ALL LTD.
Adult and Health Services,Head of Adults,Third Party Payments,470101,Purchase of Care,01-Nov-2017,3356137-2409989,"2,139.24",EMBRACE ALL LTD.
Adult and Health Services,Head of Adults,Third Party Payments,470101,Purchase of Care,01-Nov-2017,3356137-2409990,"2,139.24",EMBRACE ALL LTD.
Adult and Health Services,Head of Adults,Third Party Payments,470101,Purchase of Care,01-Nov-2017,3356137-2409991,"2,139.24",EMBRACE ALL LTD.
Adult and Health Services,Head of Adults,Third Party Payments,470101,Purchase of Care,01-Nov-2017,3356137-2409992,"2,139.24",EMBRACE ALL LTD.
Adult and Health Services,Head of Adults,Third Party Payments,470101,Purchase of Care,01-Nov-2017,3356137-2409993,"2,139.24",EMBRACE ALL LTD.
Adult and Health Services,Head of Adults,Third Party Payments,470101,Purchase of Care,01-Nov-2017,3356137-2409994,"2,139.24",EMBRACE ALL LTD.
